Workbook

Sheet Sheet1
A1: 2/01 288.19 POS PURCHASE | C1: =IF(MID(A1,2,1)="/",MID(A1,1,FIND(" ",A1,1)),"") -> 2/01 | D1: =IF(MID(A1,2,1)="/",SUBSTITUTE(SUBSTITUTE(A1,LEFT(A1,FIND(" ",A1,1)),""),MID(SUBSTITUTE(A1,LEFT(A1,FIND(" ",A1,1)),""),FIND(".",SUBSTITUTE(A1,LEFT(A1,FIND(" ",A1,1)),""),1)+3,100),),"") -> 288.19 | E1: =IF(MID(A1,2,1)="/",SUBSTITUTE(_xlfn.TEXTJOIN(" ",TRUE,A1,A2,A3),_xlfn.TEXTJOIN(" ",TRUE,C1,D1),""),"") -> 2/01 288.19 POS PURCHASE EL CAMINO BUILDING SUPP Atascadero CA 000100 *****8244 02/01 11:36
A2: EL CAMINO BUILDING SUPP Atascadero CA | C2: =IF(MID(A2,2,1)="/",MID(A2,1,FIND(" ",A2,1)),"") ->  | D2: =IF(MID(A2,2,1)="/",SUBSTITUTE(SUBSTITUTE(A2,LEFT(A2,FIND(" ",A2,1)),""),MID(SUBSTITUTE(A2,LEFT(A2,FIND(" ",A2,1)),""),FIND(".",SUBSTITUTE(A2,LEFT(A2,FIND(" ",A2,1)),""),1)+3,100),),"") ->  | E2: =IF(MID(A2,2,1)="/",SUBSTITUTE(_xlfn.TEXTJOIN(" ",TRUE,A2,A3,A4),_xlfn.TEXTJOIN(" ",TRUE,C2,D2),""),"") -> 
A3: 000100 *****8244 02/01 11:36
A4: 2/01 44.35 POS PURCHASE | C4: 2/01 | D4: 44.35 | E4: 2/01 44.35 POS PURCHASE Third Base Market and S Paso Robles CA 679613 *****8244 02/01 07:12
A5: Third Base Market and S Paso Robles CA
A6: 679613 *****8244 02/01 07:12
A7: 2/01 48.30 POS PURCHASE | C7: =IF(MID(A7,2,1)="/",MID(A7,1,FIND(" ",A7,1)),"") -> 2/01 | D7: =IF(MID(A7,2,1)="/",SUBSTITUTE(SUBSTITUTE(A7,LEFT(A7,FIND(" ",A7,1)),""),MID(SUBSTITUTE(A7,LEFT(A7,FIND(" ",A7,1)),""),FIND(".",SUBSTITUTE(A7,LEFT(A7,FIND(" ",A7,1)),""),1)+3,100),),"") -> 48.30 | E7: =IF(MID(A7,2,1)="/",SUBSTITUTE(_xlfn.TEXTJOIN(" ",TRUE,A7,A8,A9),_xlfn.TEXTJOIN(" ",TRUE,C7,D7),""),"") -> 2/01 48.30 POS PURCHASE USA 63201 BUELLTON CA 15320 *****8244 02/01 15:44
A8: USA 63201 BUELLTON CA 15320
A9: *****8244 02/01 15:44
A10: 2/01 63.34 POS PURCHASE | C10: 2/01 | D10: 63.34 | E10: 2/01 63.34 POS PURCHASE Third Base Market and S Paso Robles CA 679613 *****2385 02/01 10:46
A11: Third Base Market and S Paso Robles CA
A12: 679613 *****2385 02/01 10:46
A13: 2/01 95.55 POS PURCHASE | C13: 2/01 | D13: 95.55 | E13: 2/01 95.55 POS PURCHASE TEMPLETON MARKET TEMPLETON CA 668487 *****8244 02/01 11:17
A14: TEMPLETON MARKET TEMPLETON CA 668487
A15: *****8244 02/01 11:17
A16: 2/02 40.00 ATM WITHDRAWAL | C16: 2/02 | D16: 40.00 | E16: 2/02 40.00 ATM WITHDRAWAL PACIFIC PREMI 545 12TH STRE PASO ROBLE CA IC1965 *****2385 02/02 10:20
A17: PACIFIC PREMI 545 12TH STRE PASO ROBLE
A18: CA IC1965 *****2385 02/02 10:20
A19: 2/02 100.00 ATM WITHDRAWAL | C19: 2/02 | D19: 100.00 | E19: 2/02 100.00 ATM WITHDRAWAL PACIFIC PREMI 545 12TH STRE PASO ROBLE CA IC1965 *****2385 02/02 10:19
A20: PACIFIC PREMI 545 12TH STRE PASO ROBLE | C20: =IF(MID(A20,2,1)="/",MID(A20,1,FIND(" ",A20,1)),"") ->  | D20: =IF(MID(A20,2,1)="/",SUBSTITUTE(SUBSTITUTE(A20,LEFT(A20,FIND(" ",A20,1)),""),MID(SUBSTITUTE(A20,LEFT(A20,FIND(" ",A20,1)),""),FIND(".",SUBSTITUTE(A20,LEFT(A20,FIND(" ",A20,1)),""),1)+3,100),),"") ->  | E20: =IF(MID(A20,2,1)="/",SUBSTITUTE(_xlfn.TEXTJOIN(" ",TRUE,A20,A21,A22),_xlfn.TEXTJOIN(" ",TRUE,C20,D20),""),"") -> 
A21: CA IC1965 *****2385 02/02 10:19
A22: 2/02 26.23 POS PURCHASE | C22: 2/02 | D22: 26.23 | E22: 2/02 26.23 POS PURCHASE RITE AID 05832 PASO ROBLES CA 549000 *****8244 02/02 13:43
A23: RITE AID 05832 PASO ROBLES CA 549000
A24: *****8244 02/02 13:43
A25: 2/02 62.00 POS PURCHASE | C25: 2/02 | D25: 62.00 | E25: 2/02 62.00 POS PURCHASE GOLDEN HIL PASO ROBLES CA 00N1GR *****8244 02/02 08:58
A26: GOLDEN HIL PASO ROBLES CA 00N1GR
A27: *****8244 02/02 08:58
A28: 2/05 29.00 POS PURCHASE | C28: 2/05 | D28: 29.00 | E28: 2/05 29.00 POS PURCHASE GOLDEN HIL PASO ROBLES CA 00N1GR *****2385 02/04 12:29
A29: GOLDEN HIL PASO ROBLES CA 00N1GR
A30: *****2385 02/04 12:29
A31: 2/05 42.09 POS PURCHASE | C31: 2/05 | D31: 42.09 | E31: 2/05 42.09 POS PURCHASE TRACTOR SUPPLY CO #1609 PASO ROBLES CA 090001 *****2385 02/04 11:37
A32: TRACTOR SUPPLY CO #1609 PASO ROBLES CA
A33: 090001 *****2385 02/04 11:37
A34: 2/05 45.57 POS PURCHASE | C34: 2/05 | D34: 45.57 | E34: 2/05 45.57 POS PURCHASE TRACTOR SUPPLY CO #1609 PASO ROBLES CA 090001 *****2385 02/03 15:00
A35: TRACTOR SUPPLY CO #1609 PASO ROBLES CA
A36: 090001 *****2385 02/03 15:00
A37: 2/05 80.62 POS PURCHASE | C37: 2/05 | D37: 80.62 | E37: 2/05 80.62 POS PURCHASE SMART AND FINAL 939 PASO ROBLES CA 482200 *****2385 02/04 12:20
A38: SMART AND FINAL 939 PASO ROBLES CA
A39: 482200 *****2385 02/04 12:20
A40: 2/05 27.19 POS PURCHASE | C40: 2/05 | D40: 27.19 | E40: 2/05 27.19 POS PURCHASE SQ *THE BLUEPRINTER & G Paso Robles CA IND100 *****8244 02/02 22:15
A41: SQ *THE BLUEPRINTER & G Paso Robles CA
A42: IND100 *****8244 02/02 22:15
A43: 2/05 42.20 POS PURCHASE | C43: 2/05 | D43: 42.20 | E43: 2/05 42.20 POS PURCHASE TEMPLETON MARKET TEMPLETON CA 668487 *****8244 02/05 14:42
A44: TEMPLETON MARKET TEMPLETON CA 668487
A45: *****8244 02/05 14:42
A46: 2/05 42.99 POS PURCHASE | C46: 2/05 | D46: 42.99 | E46: 2/05 42.99 POS PURCHASE Third Base Market and S Paso Robles CA 679613 *****8244 02/02 16:33
A47: Third Base Market and S Paso Robles CA
A48: 679613 *****8244 02/02 16:33
A49: 2/05 46.44 POS PURCHASE | C49: 2/05 | D49: 46.44 | E49: 2/05 46.44 POS PURCHASE TEMPLETON MARKET TEMPLETON CA 668487 *****8244 02/05 07:11
A50: TEMPLETON MARKET TEMPLETON CA 668487
A51: *****8244 02/05 07:11
A52: 2/05 70.33 POS PURCHASE | C52: 2/05 | D52: 70.33 | E52: 2/05 70.33 POS PURCHASE FARM SUPPLY COMPANY P PASO ROBLES CA 000079 *****8244 02/03 05:06
A53: FARM SUPPLY COMPANY P PASO ROBLES CA
A54: 000079 *****8244 02/03 05:06
A55: 2/05 107.54 POS PURCHASE | C55: 2/05 | D55: 107.54 | E55: 2/05 107.54 POS PURCHASE CKE*STREET SIDE ALE HOU ATASCADERO CA 523659 *****8244 02/04 08:27
A56: CKE*STREET SIDE ALE HOU ATASCADERO CA
A57: 523659 *****8244 02/04 08:27
A58: 2/05 186.38 POS PURCHASE | C58: 2/05 | D58: 186.38 | E58: 2/05 186.38 POS PURCHASE STATE FARM INSURANCE 800-956-6310 IL 00 *****2385 02/02 21:26
A59: STATE FARM INSURANCE 800-956-6310 IL
A60: 00 *****2385 02/02 21:26
A61: 2/05 247.55 POS PURCHASE | C61: 2/05 | D61: 247.55 | E61: 2/05 247.55 POS PURCHASE VZWRLSS*BILL PAY VB 800-922-0204 FL INC100 *****2385 02/04 09:17
A62: VZWRLSS*BILL PAY VB 800-922-0204 FL
A63: INC100 *****2385 02/04 09:17
A64: 2/06 59.00 POS PURCHASE | C64: 2/06 | D64: 59.00 | E64: 2/06 59.00 POS PURCHASE PASO PETCARE VETERINARY PASO ROBLES CA IN8900 *****2385 02/05 22:39
A65: PASO PETCARE VETERINARY PASO ROBLES CA
A66: IN8900 *****2385 02/05 22:39
A67: 2/07 46.69 POS PURCHASE | C67: 2/07 | D67: 46.69 | E67: 2/07 46.69 POS PURCHASE TEMPLETON MARKET TEMPLETON CA 668487 *****8244 02/07 07:14
A68: TEMPLETON MARKET TEMPLETON CA 668487
A69: *****8244 02/07 07:14
A70: 2/08 23.08 POS PURCHASE | C70: 2/08 | D70: 23.08 | E70: 2/08 23.08 POS PURCHASE TEMPLETON MARKET TEMPLETON CA 668487 *****8244 02/08 08:05
A71: TEMPLETON MARKET TEMPLETON CA 668487
A72: *****8244 02/08 08:05
A73: 2/08 31.50 POS PURCHASE | C73: 2/08 | D73: 31.50 | E73: 2/08 31.50 POS PURCHASE GOLDEN HIL PASO ROBLES CA 00N1GR *****8244 02/08 07:01
A74: GOLDEN HIL PASO ROBLES CA 00N1GR
A75: *****8244 02/08 07:01
A76: 2/08 41.87 POS PURCHASE | C76: 2/08 | D76: 41.87 | E76: 2/08 41.87 POS PURCHASE TEMPLETON MARKET TEMPLETON CA 668487 *****8244 02/08 09:39
A77: TEMPLETON MARKET TEMPLETON CA 668487
A78: *****8244 02/08 09:39
A79: 2/09 4.40 POS PURCHASE | C79: 2/09 | D79: 4.40 | E79: 2/09 4.40 POS PURCHASE USPS PO 05777004 101 N TEMPLETON CA 999999 *****2385 02/09 13:30
A80: USPS PO 05777004 101 N TEMPLETON CA
A81: 999999 *****2385 02/09 13:30
A82: 2/09 23.25 POS PURCHASE | C82: 2/09 | D82: 23.25 | E82: 2/09 23.25 POS PURCHASE GOLDEN HIL PASO ROBLES CA 00N1GR *****8244 02/09 09:49
A83: GOLDEN HIL PASO ROBLES CA 00N1GR
A84: *****8244 02/09 09:49 | C84: =IF(MID(A84,2,1)="/",MID(A84,1,FIND(" ",A84,1)),"") ->  | D84: =IF(MID(A84,2,1)="/",SUBSTITUTE(SUBSTITUTE(A84,LEFT(A84,FIND(" ",A84,1)),""),MID(SUBSTITUTE(A84,LEFT(A84,FIND(" ",A84,1)),""),FIND(".",SUBSTITUTE(A84,LEFT(A84,FIND(" ",A84,1)),""),1)+3,100),),"") ->  | E84: =IF(MID(A84,2,1)="/",SUBSTITUTE(_xlfn.TEXTJOIN(" ",TRUE,A84,A85,A86),_xlfn.TEXTJOIN(" ",TRUE,C84,D84),""),"") -> 
A85: 2/09 87.96 POS PURCHASE | C85: 2/09 | D85: 87.96 | E85: 2/09 87.96 POS PURCHASE FOOD 4 LESS 0012 PASO ROBLES CA 986142 *****8244 02/09 15:13
A86: FOOD 4 LESS 0012 PASO ROBLES CA
A87: 986142 *****8244 02/09 15:13
A88: 2/09 1,000.00 POS PURCHASE | C88: 2/09 | D88: 1,000.00 | E88: 2/09 1,000.00 POS PURCHASE Third Base Market and S Paso Robles CA 679613 *****8244 02/09 12:40
A89: Third Base Market and S Paso Robles CA
A90: 679613 *****8244 02/09 12:40
A91: 2/09 52.50 POS PURCHASE | C91: 2/09 | D91: 52.50 | E91: 2/09 52.50 POS PURCHASE GOLDEN HIL PASO ROBLES CA 00N1GR *****8244 02/09 08:36
A92: GOLDEN HIL PASO ROBLES CA 00N1GR
A93: *****8244 02/09 08:36
A94: 2/09 54.74 POS PURCHASE | C94: 2/09 | D94: 54.74 | E94: 2/09 54.74 POS PURCHASE Third Base Market and S Paso Robles CA 679613 *****8244 02/09 12:39
A95: Third Base Market and S Paso Robles CA
A96: 679613 *****8244 02/09 12:39
A97: 2/12 22.84 POS PURCHASE | C97: 2/12 | D97: 22.84 | E97: 2/12 22.84 POS PURCHASE EL CAMINO BUILDING SUPP Atascadero CA 000100 *****8244 02/12 12:07
A98: EL CAMINO BUILDING SUPP Atascadero CA
A99: 000100 *****8244 02/12 12:07
A100: 2/12 25.37 POS PURCHASE | C100: 2/12 | D100: 25.37 | E100: 2/12 25.37 POS PURCHASE TEMPLETON MARKET TEMPLETON CA 668487 *****8244 02/12 10:44
A101: TEMPLETON MARKET TEMPLETON CA 668487
A102: *****8244 02/12 10:44
A103: 2/12 45.61 POS PURCHASE | C103: 2/12 | D103: 45.61 | E103: 2/12 45.61 POS PURCHASE SMART AND FINAL 939 PASO ROBLES CA 482200 *****8244 02/10 14:18
A104: SMART AND FINAL 939 PASO ROBLES CA
A105: 482200 *****8244 02/10 14:18
A106: 2/12 817.26 POS PURCHASE | C106: 2/12 | D106: 817.26 | E106: 2/12 817.26 POS PURCHASE EL CAMINO BUILDING SUPP Atascadero CA 000100 *****8244 02/12 11:39
A107: EL CAMINO BUILDING SUPP Atascadero CA
A108: 000100 *****8244 02/12 11:39
A109: 2/12 40.00 POS PURCHASE | C109: 2/12 | D109: 40.00 | E109: 2/12 40.00 POS PURCHASE Third Base Market and S Paso Robles CA 679613 *****8244 02/12 07:08
A110: Third Base Market and S Paso Robles CA
A111: 679613 *****8244 02/12 07:08
A112: 2/13 8.66 POS PURCHASE | C112: 2/13 | D112: 8.66 | E112: 2/13 8.66 POS PURCHASE CVS/PHARMACY #09925 Paso Robles CA 309925 *****8244 02/12 17:53
A113: CVS/PHARMACY #09925 Paso Robles CA
A114: 309925 *****8244 02/12 17:53
A115: 2/13 64.00 POS PURCHASE | C115: 2/13 | D115: 64.00 | E115: 2/13 64.00 POS PURCHASE EL CAMINO BUILDING SUPP Atascadero CA 000100 *****8244 02/13 10:05
A116: EL CAMINO BUILDING SUPP Atascadero CA
A117: 000100 *****8244 02/13 10:05
A118: 2/13 84.32 POS PURCHASE | C118: 2/13 | D118: 84.32 | E118: 2/13 84.32 POS PURCHASE OAK HILL MARKET PASO ROBLES CA 832598 *****8244 02/13 12:17
A119: OAK HILL MARKET PASO ROBLES CA
A120: 832598 *****8244 02/13 12:17
A121: 2/13 40.00 POS PURCHASE | C121: 2/13 | D121: 40.00 | E121: 2/13 40.00 POS PURCHASE Third Base Market and S Paso Robles CA 679613 *****8244 02/13 07:22
A122: Third Base Market and S Paso Robles CA
A123: 679613 *****8244 02/13 07:22
A124: 2/13 44.35 POS PURCHASE | C124: 2/13 | D124: 44.35 | E124: 2/13 44.35 POS PURCHASE Third Base Market and S Paso Robles CA 679613 *****8244 02/13 10:07
A125: Third Base Market and S Paso Robles CA
A126: 679613 *****8244 02/13 10:07
A127: 2/14 13.03 POS PURCHASE | C127: 2/14 | D127: 13.03 | E127: 2/14 13.03 POS PURCHASE TEMPLETON MARKET TEMPLETON CA 668487 *****8244 02/14 08:23
A128: TEMPLETON MARKET TEMPLETON CA 668487
A129: *****8244 02/14 08:23
A130: 2/14 14.36 POS PURCHASE | C130: 2/14 | D130: 14.36 | E130: 2/14 14.36 POS PURCHASE LOWE'S #2730 PASO ROBLES CA 001 *****8244 02/14 10:08
A131: LOWE'S #2730 PASO ROBLES CA 001
A132: *****8244 02/14 10:08
A133: 2/14 23.00 POS PURCHASE | C133: 2/14 | D133: 23.00 | E133: 2/14 23.00 POS PURCHASE GOLDEN HIL PASO ROBLES CA 00N1GR *****8244 02/14 12:59
A134: GOLDEN HIL PASO ROBLES CA 00N1GR
A135: *****8244 02/14 12:59
A136: 2/14 41.28 POS PURCHASE | C136: 2/14 | D136: 41.28 | E136: 2/14 41.28 POS PURCHASE LOWE'S #2730 PASO ROBLES CA 001 *****8244 02/14 11:55
A137: LOWE'S #2730 PASO ROBLES CA 001
A138: *****8244 02/14 11:55
A139: 2/15 31.00 POS PURCHASE | C139: 2/15 | D139: 31.00 | E139: 2/15 31.00 POS PURCHASE GOLDEN HIL PASO ROBLES CA 00N1GR *****8244 02/15 10:07
A140: GOLDEN HIL PASO ROBLES CA 00N1GR
A141: *****8244 02/15 10:07
A142: 2/15 30.00 POS PURCHASE | C142: 2/15 | D142: 30.00 | E142: 2/15 30.00 POS PURCHASE GOLDEN HIL PASO ROBLES CA 00N1GR *****8244 02/15 10:11
A143: GOLDEN HIL PASO ROBLES CA 00N1GR
A144: *****8244 02/15 10:11
A145: 2/15 39.60 POS PURCHASE | C145: 2/15 | D145: 39.60 | E145: 2/15 39.60 POS PURCHASE TST* OFF THE 46 MEXICAN Paso Robles CA IN0700 *****8244 02/14 17:49
A146: TST* OFF THE 46 MEXICAN Paso Robles CA
A147: IN0700 *****8244 02/14 17:49
A148: 2/15 48.09 POS PURCHASE | C148: =IF(MID(A148,2,1)="/",MID(A148,1,FIND(" ",A148,1)),"") -> 2/15 | D148: =IF(MID(A148,2,1)="/",SUBSTITUTE(SUBSTITUTE(A148,LEFT(A148,FIND(" ",A148,1)),""),MID(SUBSTITUTE(A148,LEFT(A148,FIND(" ",A148,1)),""),FIND(".",SUBSTITUTE(A148,LEFT(A148,FIND(" ",A148,1)),""),1)+3,100),),"") -> 48.09 | E148: =IF(MID(A148,2,1)="/",SUBSTITUTE(_xlfn.TEXTJOIN(" ",TRUE,A148,A149,A150),_xlfn.TEXTJOIN(" ",TRUE,C148,D148),""),"") -> 2/15 48.09 POS PURCHASE TEMPLETON MARKET TEMPLETON CA 668487 *****8244 02/15 15:47
A149: TEMPLETON MARKET TEMPLETON CA 668487
A150: *****8244 02/15 15:47
A151: 2/16 31.99 POS PURCHASE | C151: 2/16 | D151: 31.99 | E151: 2/16 31.99 POS PURCHASE GOLDEN HIL PASO ROBLES CA 00N1GR *****8244 02/16 10:47
A152: GOLDEN HIL PASO ROBLES CA 00N1GR
A153: *****8244 02/16 10:47
A154: 2/16 44.35 POS PURCHASE | C154: 2/16 | D154: 44.35 | E154: 2/16 44.35 POS PURCHASE Third Base Market and S Paso Robles CA 679613 *****8244 02/16 08:55
A155: Third Base Market and S Paso Robles CA
A156: 679613 *****8244 02/16 08:55
A157: 2/20 26.18 POS PURCHASE | C157: 2/20 | D157: 26.18 | E157: 2/20 26.18 POS PURCHASE TEMPLETON MARKET TEMPLETON CA 668487 *****8244 02/19 11:16
A158: TEMPLETON MARKET TEMPLETON CA 668487
A159: *****8244 02/19 11:16
A160: 2/20 120.01 POS PURCHASE | C160: 2/20 | D160: 120.01 | E160: 2/20 120.01 POS PURCHASE FOOD 4 LESS 0012 PASO ROBLES CA 986142 *****2385 02/17 12:56
A161: FOOD 4 LESS 0012 PASO ROBLES CA
A162: 986142 *****2385 02/17 12:56
A163: 2/20 60.00 POS PURCHASE | C163: 2/20 | D163: 60.00 | E163: 2/20 60.00 POS PURCHASE GOLDEN HIL PASO ROBLES CA 00N1GR *****8244 02/19 10:39
A164: GOLDEN HIL PASO ROBLES CA 00N1GR
A165: *****8244 02/19 10:39
A166: 2/21 33.69 POS PURCHASE | C166: 2/21 | D166: 33.69 | E166: 2/21 33.69 POS PURCHASE TRACTOR SUPPLY CO #1609 PASO ROBLES CA 090001 *****2385 02/21 14:27
A167: TRACTOR SUPPLY CO #1609 PASO ROBLES CA
A168: 090001 *****2385 02/21 14:27
A169: 2/21 12.08 POS PURCHASE | C169: 2/21 | D169: 12.08 | E169: 2/21 12.08 POS PURCHASE SQ *JOEBELLA COFFEE PAS Paso Robles CA INB800 *****8244 02/21 17:45
A170: SQ *JOEBELLA COFFEE PAS Paso Robles CA
A171: INB800 *****8244 02/21 17:45
A172: 2/21 66.05 POS PURCHASE | C172: 2/21 | D172: 66.05 | E172: 2/21 66.05 POS PURCHASE TEMPLETON MARKET TEMPLETON CA 668487 *****8244 02/21 12:27
A173: TEMPLETON MARKET TEMPLETON CA 668487
A174: *****8244 02/21 12:27
A175: 2/22 7.70 POS PURCHASE | C175: 2/22 | D175: 7.70 | E175: 2/22 7.70 POS PURCHASE LOWE'S #2730 PASO ROBLES CA 001 *****8244 02/22 11:08
A176: LOWE'S #2730 PASO ROBLES CA 001
A177: *****8244 02/22 11:08
A178: 2/22 11.02 POS PURCHASE | C178: 2/22 | D178: 11.02 | E178: 2/22 11.02 POS PURCHASE SMART AND FINAL 939 PASO ROBLES CA 482200 *****8244 02/22 13:27
A179: SMART AND FINAL 939 PASO ROBLES CA
A180: 482200 *****8244 02/22 13:27
A181: 2/22 22.00 POS PURCHASE | C181: 2/22 | D181: 22.00 | E181: 2/22 22.00 POS PURCHASE GOLDEN HIL PASO ROBLES CA 00N1GR *****8244 02/22 12:42
A182: GOLDEN HIL PASO ROBLES CA 00N1GR
A183: *****8244 02/22 12:42
A184: 2/22 25.50 POS PURCHASE | C184: 2/22 | D184: 25.50 | E184: 2/22 25.50 POS PURCHASE GOLDEN HIL PASO ROBLES CA 00N1GR *****8244 02/22 07:49
A185: GOLDEN HIL PASO ROBLES CA 00N1GR
A186: *****8244 02/22 07:49
A187: 2/22 11.70 POS PURCHASE | C187: 2/22 | D187: 11.70 | E187: 2/22 11.70 POS PURCHASE THIRD BASE MARKET AND S PASO ROBLES CA 00 *****8244 02/21 04:28
A188: THIRD BASE MARKET AND S PASO ROBLES CA
A189: 00 *****8244 02/21 04:28
A190: 2/22 44.35 POS PURCHASE | C190: 2/22 | D190: 44.35 | E190: 2/22 44.35 POS PURCHASE Third Base Market and S Paso Robles CA 679613 *****8244 02/22 08:26
A191: Third Base Market and S Paso Robles CA
A192: 679613 *****8244 02/22 08:26
A193: 2/23 50.16 POS PURCHASE | C193: 2/23 | D193: 50.16 | E193: 2/23 50.16 POS PURCHASE SAN PASO TRUCK STOP PASO ROBLES CA 552145 *****8244 02/23 07:54
A194: SAN PASO TRUCK STOP PASO ROBLES CA
A195: 552145 *****8244 02/23 07:54
A196: 2/26 13.48 POS PURCHASE | C196: 2/26 | D196: 13.48 | E196: 2/26 13.48 POS PURCHASE PLEYTO STORE BRADLEY CA 00 *****8244 02/23 04:57
A197: PLEYTO STORE BRADLEY CA 00
A198: *****8244 02/23 04:57
A199: 2/27 55.80 POS PURCHASE | C199: 2/27 | D199: 55.80 | E199: 2/27 55.80 POS PURCHASE SPRING STREET MART PASO ROBLES CA 107212 *****8244 02/27 10:06
A200: SPRING STREET MART PASO ROBLES CA
... 1764 more rows

Sheet Sheet2
A1: El Camino | B1: =IF(A1="","",SUMIF(Table1[Transaction],"*"&A1&"*",Table1[Amount])) -> 13800.05 | D1: Best Egg | E1: =IF(D1="","",SUMIF(Table1[Transaction],"*"&D1&"*",Table1[Amount])) -> 3055.12
A2: Best Egg | B2: =IF(A2="","",SUMIF(Table1[Transaction],"*"&A2&"*",Table1[Amount])) -> 3055.12 | D2: Headway | E2: =IF(D2="","",SUMIF(Table1[Transaction],"*"&D2&"*",Table1[Amount])) -> 19216.66
A3: Home Depot | B3: =IF(A3="","",SUMIF(Table1[Transaction],"*" & A3 & "*",Table1[Amount])) -> 110.22 | D3: San Paso | E3: =IF(D3="","",SUMIF(Table1[Transaction],"*"&D3&"*",Table1[Amount])) -> 138.04
A4: Lowe's | B4: =IF(A4="","",SUMIF(Table1[Transaction],"*"&A4&"*",Table1[Amount])) -> 1090.28 | D4: Farm Supply | E4: =IF(D4="","",SUMIF(Table1[Transaction],"*"&D4&"*",Table1[Amount])) -> 200.45
A5: Blake's | B5: =IF(A5="","",SUMIF(Table1[Transaction],"*"&A5&"*",Table1[Amount])) -> 320.53 | D5: VZWRLSS | E5: =IF(D5="","",SUMIF(Table1[Transaction],"*"&D5&"*",Table1[Amount])) -> 2042.84
A6: Tractor Supply | B6: =IF(A6="","",SUMIF(Table1[Transaction],"*"&A6&"*",Table1[Amount])) -> 473.58 | D6: Staples | E6: =IF(D6="","",SUMIF(Table1[Transaction],"*"&D6&"*",Table1[Amount])) -> 202.84
A7: Blueprinter | B7: =IF(A7="","",SUMIF(Table1[Transaction],"*"&A7&"*",Table1[Amount])) -> 76.12 | D7: Pioneer | E7: =IF(D7="","",SUMIF(Table1[Transaction],"*"&D7&"*",Table1[Amount])) -> 73.35
A8: State Farm | B8: =IF(A8="","",SUMIF(Table1[Transaction],"*"&A8&"*",Table1[Amount])) -> 2441.6 | D8: Harbor Freight | E8: =IF(D8="","",SUMIF(Table1[Transaction],"*"&D8&"*",Table1[Amount])) -> 215.3
A9: USPS | B9: =IF(A9="","",SUMIF(Table1[Transaction],"*"&A9&"*",Table1[Amount])) -> 35.01 | D9: Gov | E9: =IF(D9="","",SUMIF(Table1[Transaction],"*"&D9&"*",Table1[Amount])) -> 79.84
A10: Kritz | B10: =IF(A10="","",SUMIF(Table1[Transaction],"*"&A10&"*",Table1[Amount])) -> 1175.86 | D10: Costco | E10: =IF(D10="","",SUMIF(Table1[Transaction],"*"&D10&"*",Table1[Amount])) -> 523.89
A11: Golden | B11: =IF(A11="","",SUMIF(Table1[Transaction],"*"&A11&"*",Table1[Amount])) -> 3476.07 | D11: Third Base | E11: =IF(D11="","",SUMIF(Table1[Transaction],"*"&D11&"*",Table1[Amount])) -> 8168
A12: Templeton | B12: =IF(A12="","",SUMIF(Table1[Transaction],"*"&A12&"*",Table1[Amount])) -> 2295.98 | E12: =IF(D12="","",SUMIF(Table1[Transaction],"*"&D12&"*",Table1[Amount])) -> 
A14: Search Term: | B14: Sub-Total
B15: =SUBTOTAL(9,Table1[Amount]) -> 327102.71
B16: Date | C16: Amount | D16: Transaction
B17: 1/02 | C17: 12 | D17: Internet Transfer To 1854
B18: 1/02 | C18: 8287.79 | D18: Internet Transfer To 1854
B19: 1/03 | C19: 443.26 | D19: Internet Transfer To 1684
B20: 1/08 | C20: 280.36 | D20: Internet Transfer To 1684
B21: 1/08 | C21: 398.49 | D21: Internet Transfer To 1684
B22: 1/11 | C22: 381.89 | D22: Best Egg PAYMENT 45087375A SCOTT BRANDON
B23: 1/19 | C23: 20.31 | D23: Internet Transfer To 1684
B24: 1/19 | C24: 325 | D24: Internet Transfer To 1684
B25: 1/19 | C25: 904.26 | D25: Internet Transfer To 1684
B26: 1/19 | C26: 2453.96 | D26: Internet Transfer To 1854
B27: 1/19 | C27: 2888 | D27: Internet Transfer To 1854
B28: 1/22 | C28: 50 | D28: Internet Transfer To 1684
B29: 1/22 | C29: 800 | D29: Internet Transfer To 1854
B30: 1/23 | C30: 0.17 | D30: PPB #6601444972 PAYMENT
B31: 1/31 | C31: 10 | D31: BALANCE REQUIREMENT FEE
B32: 2/01 | C32: 288.19 | D32: POS PURCHASE EL CAMINO BUILDING SUPP Atascadero CA 000100 *****8244 0
B33: 2/01 | C33: 44.35 | D33: POS PURCHASE Third Base Market and S Paso Robles CA 679613 *****8244 0
B34: 2/01 | C34: 48.3 | D34: POS PURCHASE USA 63201 BUELLTON CA 15320 *****8244 0
B35: 2/01 | C35: 63.34 | D35: POS PURCHASE Third Base Market and S Paso Robles CA 679613 *****2385 0
B36: 2/01 | C36: 95.55 | D36: POS PURCHASE TEMPLETON MARKET TEMPLETON CA 668487 *****8244 0
B37: 2/01 | C37: 15.46 | D37: Internet Transfer To 1854
B38: 2/01 | C38: 172.39 | D38: Internet Transfer To 1684
B39: 2/01 | C39: 450 | D39: Internet Transfer To 1854
B40: 2/01 | C40: 778.85 | D40: Internet Transfer To 1854
B41: 2/02 | C41: 40 | D41: ATM WITHDRAWAL PACIFIC PREMI 545 12TH STRE PASO ROBLE CA IC1965 *****2385 0
B42: 2/02 | C42: 100 | D42: ATM WITHDRAWAL PACIFIC PREMI 545 12TH STRE PASO ROBLE CA IC1965 *****2385 0
B43: 2/02 | C43: 26.23 | D43: POS PURCHASE RITE AID 05832 PASO ROBLES CA 549000 *****8244 0
B44: 2/02 | C44: 62 | D44: POS PURCHASE GOLDEN HIL PASO ROBLES CA 00N1GR *****8244 0
B45: 2/02 | C45: 600 | D45: Internet Transfer To 1684
B46: 2/02 | C46: 1000 | D46: Internet Transfer To 1684
B47: 2/02 | C47: 1788.33 | D47: Internet Transfer To 1854
B48: 2/02 | C48: 7353.3 | D48: Internet Transfer To 1854
B49: 2/05 | C49: 29 | D49: POS PURCHASE GOLDEN HIL PASO ROBLES CA 00N1GR *****2385 0
B50: 2/05 | C50: 42.09 | D50: POS PURCHASE TRACTOR SUPPLY CO #1609 PASO ROBLES CA 090001 *****2385 0
B51: 2/05 | C51: 45.57 | D51: POS PURCHASE TRACTOR SUPPLY CO #1609 PASO ROBLES CA 090001 *****2385 0
B52: 2/05 | C52: 80.62 | D52: POS PURCHASE SMART AND FINAL 939 PASO ROBLES CA 482200 *****2385 0
B53: 2/05 | C53: 27.19 | D53: POS PURCHASE SQ *THE BLUEPRINTER & G Paso Robles CA IND100 *****8244 0
B54: 2/05 | C54: 42.2 | D54: POS PURCHASE TEMPLETON MARKET TEMPLETON CA 668487 *****8244 0
B55: 2/05 | C55: 42.99 | D55: POS PURCHASE Third Base Market and S Paso Robles CA 679613 *****8244 0
B56: 2/05 | C56: 46.44 | D56: POS PURCHASE TEMPLETON MARKET TEMPLETON CA 668487 *****8244 0
B57: 2/05 | C57: 70.33 | D57: POS PURCHASE FARM SUPPLY COMPANY P PASO ROBLES CA 000079 *****8244 0
B58: 2/05 | C58: 107.54 | D58: POS PURCHASE CKE*STREET SIDE ALE HOU ATASCADERO CA 523659 *****8244 0
B59: 2/05 | C59: 186.38 | D59: POS PURCHASE STATE FARM INSURANCE 800-956-6310 IL 00 *****2385 0
B60: 2/05 | C60: 247.55 | D60: POS PURCHASE VZWRLSS*BILL PAY VB 800-922-0204 FL INC100 *****2385 0
B61: 2/06 | C61: 59 | D61: POS PURCHASE PASO PETCARE VETERINARY PASO ROBLES CA IN8900 *****2385 0
B62: 2/06 | C62: 1840 | D62: TELLER WITHDRAWL
B63: 2/06 | C63: 2223.9 | D63: Internet Transfer To 1854
B64: 2/07 | C64: 46.69 | D64: POS PURCHASE TEMPLETON MARKET TEMPLETON CA 668487 *****8244 0
B65: 2/08 | C65: 23.08 | D65: POS PURCHASE TEMPLETON MARKET TEMPLETON CA 668487 *****8244 0
B66: 2/08 | C66: 31.5 | D66: POS PURCHASE GOLDEN HIL PASO ROBLES CA 00N1GR *****8244 0
B67: 2/08 | C67: 41.87 | D67: POS PURCHASE TEMPLETON MARKET TEMPLETON CA 668487 *****8244 0
B68: 2/09 | C68: 4.4 | D68: POS PURCHASE USPS PO 05777004 101 N TEMPLETON CA 999999 *****2385 0
B69: 2/09 | C69: 23.25 | D69: POS PURCHASE GOLDEN HIL PASO ROBLES CA 00N1GR *****8244 0
B70: 2/09 | C70: 87.96 | D70: POS PURCHASE FOOD 4 LESS 0012 PASO ROBLES CA 986142 *****8244 0
B71: 2/09 | C71: 1000 | D71: POS PURCHASE Third Base Market and S Paso Robles CA 679613 *****8244 0
B72: 2/09 | C72: 52.5 | D72: POS PURCHASE GOLDEN HIL PASO ROBLES CA 00N1GR *****8244 0
B73: 2/09 | C73: 54.74 | D73: POS PURCHASE Third Base Market and S Paso Robles CA 679613 *****8244 0
B74: 2/12 | C74: 22.84 | D74: POS PURCHASE EL CAMINO BUILDING SUPP Atascadero CA 000100 *****8244 0
B75: 2/12 | C75: 25.37 | D75: POS PURCHASE TEMPLETON MARKET TEMPLETON CA 668487 *****8244 0
B76: 2/12 | C76: 45.61 | D76: POS PURCHASE SMART AND FINAL 939 PASO ROBLES CA 482200 *****8244 0
B77: 2/12 | C77: 817.26 | D77: POS PURCHASE EL CAMINO BUILDING SUPP Atascadero CA 000100 *****8244 0
B78: 2/12 | C78: 40 | D78: POS PURCHASE Third Base Market and S Paso Robles CA 679613 *****8244 0
B79: 2/12 | C79: 442.38 | D79: Internet Transfer To 1854
B80: 2/13 | C80: 8.66 | D80: POS PURCHASE CV
B81: 2/13 | C81: 64 | D81: POS PURCHASE EL CAMINO BUILDING SUPP Atascadero CA 000100 *****8244 0
B82: 2/13 | C82: 84.32 | D82: POS PURCHASE OAK HILL MARKET PASO ROBLES CA 832598 *****8244 0
B83: 2/13 | C83: 40 | D83: POS PURCHASE Third Base Market and S Paso Robles CA 679613 *****8244 0
B84: 2/13 | C84: 44.35 | D84: POS PURCHASE Third Base Market and S Paso Robles CA 679613 *****8244 0
B85: 2/13 | C85: 381.89 | D85: Best Egg PAYMENT 45087375A SCOTT BRANDON
B86: 2/14 | C86: 13.03 | D86: POS PURCHASE TEMPLETON MARKET TEMPLETON CA 668487 *****8244 0
B87: 2/14 | C87: 14.36 | D87: POS PURCHASE LOWE'S #2730 PASO ROBLES CA 001 *****8244 0
B88: 2/14 | C88: 23 | D88: POS PURCHASE GOLDEN HIL PASO ROBLES CA 00N1GR *****8244 0
B89: 2/14 | C89: 41.28 | D89: POS PURCHASE LOWE'S #2730 PASO ROBLES CA 001 *****8244 0
B90: 2/15 | C90: 31 | D90: POS PURCHASE GOLDEN HIL PASO ROBLES CA 00N1GR *****8244 0
B91: 2/15 | C91: 30 | D91: POS PURCHASE GOLDEN HIL PASO ROBLES CA 00N1GR *****8244 0
B92: 2/15 | C92: 39.6 | D92: POS PURCHASE TST* OFF THE 46 MEXICAN Paso Robles CA IN0700 *****8244 0
B93: 2/15 | C93: 48.09 | D93: POS PURCHASE TEMPLETON MARKET TEMPLETON CA 668487 *****8244 0
B94: 2/15 | C94: 100 | D94: CAPITAL ON
B95: 2/15 | C95: 340 | D95: DISCOVE
B96: 2/16 | C96: 31.99 | D96: POS PURCHASE GOLDEN HIL PASO ROBLES CA 00N1GR *****8244 0
B97: 2/16 | C97: 44.35 | D97: POS PURCHASE Third Base Market and S Paso Robles CA 679613 *****8244 0
B98: 2/20 | C98: 26.18 | D98: POS PURCHASE TEMPLETON MARKET TEMPLETON CA 668487 *****8244 0
B99: 2/20 | C99: 120.01 | D99: POS PURCHASE FOOD 4 LESS 0012 PASO ROBLES CA 986142 *****2385 0
B100: 2/20 | C100: 60 | D100: POS PURCHASE GOLDEN HIL PASO ROBLES CA 00N1GR *****8244 0
B101: 2/21 | C101: 33.69 | D101: POS PURCHASE TRACTOR SUPPLY CO #1609 PASO ROBLES CA 090001 *****2385 0
B102: 2/21 | C102: 12.08 | D102: POS PURCHASE SQ *JOEBELLA COFFEE PAS Paso Robles CA INB800 *****8244 0
B103: 2/21 | C103: 66.05 | D103: POS PURCHASE TEMPLETON MARKET TEMPLETON CA 668487 *****8244 0
B104: 2/22 | C104: 7.7 | D104: POS PURCHASE LOWE'S #2730 PASO ROBLES CA 001 *****8244 0
B105: 2/22 | C105: 11.02 | D105: POS PURCHASE SMART AND FINAL 939 PASO ROBLES CA 482200 *****8244 0
B106: 2/22 | C106: 22 | D106: POS PURCHASE GOLDEN HIL PASO ROBLES CA 00N1GR *****8244 0
B107: 2/22 | C107: 25.5 | D107: POS PURCHASE GOLDEN HIL PASO ROBLES CA 00N1GR *****8244 0
B108: 2/22 | C108: 11.7 | D108: POS PURCHASE THIRD BASE MARKET AND S PASO ROBLES CA 00 *****8244 0
B109: 2/22 | C109: 44.35 | D109: POS PURCHASE Third Base Market and S Paso Robles CA 679613 *****8244 0
B110: 2/22 | C110: 2120 | D110: TELLER WITHDRAWL
B111: 2/22 | C111: 438.96 | D111: Internet Transfer To 1854
B112: 2/23 | C112: 50.16 | D112: POS PURCHASE SAN PASO TRUCK STOP PASO ROBLES CA 552145 *****8244 0
B113: 2/23 | C113: 23.69 | D113: PPB #6601444972 PAYMENT
B114: 2/26 | C114: 13.48 | D114: POS PURCHASE PLEYTO STORE BRADLEY CA 00 *****8244 0
B115: 2/27 | C115: 55.8 | D115: POS PURCHASE SPRING STREET MART PASO ROBLES CA 107212 *****8244 0
B116: 2/29 | C116: 47.91 | D116: POS PURCHASE SMART AND FINAL 392 PASO ROBLES CA 481922 *****8244 0
B117: 2/29 | C117: 48.61 | D117: POS PURCHASE Third Base Market and S Paso Robles CA 679613 *****8244 0
B118: 2/29 | C118: 0.2 | D118: DEPOSIT CORRECTION DEBIT
B119: 2/29 | C119: 2177.19 | D119: HEADWAYCAPITAL
B120: 2/29 | C120: 10 | D120: BALANCE REQUIREMENT FEE
B121: 2/29 | C121: 2 | D121: PAPER STATEMENT FEE
B122: 3/01 | C122: 1175.86 | D122: POS PURCHASE KRITZ EXCAVATING AND T PASO ROBLES CA 090286 *****2385 0
B123: 3/01 | C123: 66.43 | D123: POS PURCHASE Third Base Market and S Paso Robles CA 679613 *****8244 0
B124: 3/01 | C124: 12 | D124: Internet Transfer To 1854
B125: 3/01 | C125: 2667.3 | D125: Internet Transfer To 1684
B126: 3/04 | C126: 9.65 | D126: POS PURCHASE TEMPLETON MARKET TEMPLETON CA 668487 *****8244 0
B127: 3/04 | C127: 16 | D127: POS PURCHASE GOLDEN HIL PASO ROBLES CA 00N1GR *****8244 0
B128: 3/04 | C128: 23.88 | D128: POS PURCHASE NST THE HOME DEPOT 0029 ATASCADERO CA 061394 *****8244 0
B129: 3/04 | C129: 29 | D129: POS PURCHASE GOLDEN HIL PASO ROBLES CA 00N1GR *****8244 0
B130: 3/04 | C130: 61.98 | D130: POS PURCHASE TRACTOR SUPPLY CO #1609 PASO ROBLES CA 090001 *****2385 0
B131: 3/04 | C131: 73.58 | D131: POS PURCHASE SPENCER S FRESH MARKETS MORRO BAY CA 447745 *****2385 0
B132: 3/04 | C132: 16.31 | D132: POS PURCHASE SQ *THE BLUEPRINTER & G Paso Robles CA IN4400 *****8244 0
B133: 3/04 | C133: 44.35 | D133: POS PURCHASE Third Base Market and S Paso Robles CA 679613 *****8244 0
B134: 3/04 | C134: 52.68 | D134: POS PURCHASE TEMPLETON MARKET TEMPLETON CA 668487 *****8244 0
B135: 3/04 | C135: 54.14 | D135: POS PURCHASE TEMPLETON MARKET TEMPLETON CA 668487 *****8244 0
B136: 3/04 | C136: 393.1 | D136: POS PURCHASE VZWRLSS*BILL PAY VB 800-922-0204 FL IN2000 *****2385 0
B137: 3/05 | C137: 19.28 | D137: POS PURCHASE CV
B138: 3/05 | C138: 85.17 | D138: POS PURCHASE LOWE'S #2730 PASO ROBLES CA 001 *****8244 0
B139: 3/05 | C139: 12.93 | D139: POS PURCHASE COFFEE BEAN AND TEA LEA PISMO BEACH CA 823960 *****8244 0
B140: 3/05 | C140: 40 | D140: POS PURCHASE Third Base Market and S Paso Robles CA 679613 *****8244 0
B141: 3/05 | C141: 43.91 | D141: POS PURCHASE TEMPLETON MARKET TEMPLETON CA 668487 *****8244 0
B142: 3/06 | C142: 2376.09 | D142: Internet Transfer To 1854
B143: 3/06 | C143: 4200 | D143: Internet Transfer To 1854
B144: 3/07 | C144: 10.99 | D144: POS PURCHASE GOLDEN HILL 76 PASO ROBLES CA 00N1GR *****8244 0
B145: 3/07 | C145: 23.43 | D145: POS PURCHASE OAK HILL MARKET PASO ROBLES CA 832598 *****8244 0
B146: 3/07 | C146: 46.69 | D146: POS PURCHASE TEMPLETON MARKET TEMPLETON CA 668487 *****8244 0
B147: 3/07 | C147: 47.88 | D147: POS PURCHASE SAN PASO TRUCK STOP PASO ROBLES CA 552145 *****8244 0
B148: 3/08 | C148: 32.99 | D148: POS PURCHASE GOLDEN HIL PASO ROBLES CA 00N1GR *****8244 0
B149: 3/08 | C149: 220.78 | D149: POS PURCHASE BLAKE'S TRUE VALUE PASO ROBLES CA 000045 *****8244 0
B150: 3/11 | C150: 14.38 | D150: POS PURCHASE HAYWARD LUMBER SLO SAN LUIS OBIS CA 986834 *****8244 0
B151: 3/11 | C151: 17.74 | D151: POS PURCHASE GOLDEN HIL PASO ROBLES CA 00N1GR *****8244 0
B152: 3/11 | C152: 35.44 | D152: POS PURCHASE CV
B153: 3/11 | C153: 48.81 | D153: POS PURCHASE SMART AND FINAL 939 PASO ROBLES CA 482200 *****8244 0
B154: 3/11 | C154: 131.33 | D154: POS PURCHASE FOOD 4 LESS 0012 PASO ROBLES CA 986142 *****2385 0
B155: 3/11 | C155: 155.49 | D155: POS PURCHASE Lemos Feed & Pet Supply Paso Robles CA 000100 *****2385 0
B156: 3/11 | C156: 44.35 | D156: POS PURCHASE Third Base Market and S Paso Robles CA 679613 *****8244 0
B157: 3/11 | C157: 46.5 | D157: POS PURCHASE GOLDEN HIL PASO ROBLES CA 00N1GR *****8244 0
B158: 3/11 | C158: 48.18 | D158: POS PURCHASE TEMPLETON MARKET TEMPLETON CA 668487 *****8244 0
B159: 3/11 | C159: 73.35 | D159: POS PURCHASE SES PIONEER MART PASO ROBLES CA 460587 *****8244 0
B160: 3/11 | C160: 780 | D160: Internet Transfer To 1854
B161: 3/11 | C161: 1312.27 | D161: Internet Transfer To 1854
B162: 3/11 | C162: 6576.09 | D162: Internet Transfer To 1854
B163: 3/12 | C163: 27.19 | D163: POS PURCHASE EL CAMINO BUILDING SUPP Atascadero CA 000100 *****8244 0
B164: 3/12 | C164: 57.21 | D164: POS PURCHASE LOWE'S #2730 PASO ROBLES CA 001 *****8244 0
B165: 3/12 | C165: 40 | D165: POS PURCHASE TEMPLETON MARKET TEMPLETON CA 668487 *****8244 0
B166: 3/12 | C166: 381.89 | D166: Best Egg PAYMENT 45087375A SCOTT BRANDON
B167: 3/13 | C167: 16.17 | D167: POS PURCHASE RITE AID 05832 PASO ROBLES CA 549000 *****8244 0
B168: 3/13 | C168: 44.35 | D168: POS PURCHASE Third Base Market and S Paso Robles CA 679613 *****8244 0
B169: 3/13 | C169: 66 | D169: DISCOVE
B170: 3/14 | C170: 34.44 | D170: POS PURCHASE GOLDEN HIL PASO ROBLES CA 00N1GR *****8244 0
B171: 3/14 | C171: 42.99 | D171: POS PURCHASE Third Base Market and S Paso Robles CA 679613 *****8244 0
B172: 3/15 | C172: 11 | D172: POS PURCHASE GOLDEN HILL 76 PASO ROBLES CA 00N1GR *****8244 0
B173: 3/15 | C173: 42.98 | D173: POS PURCHASE TEMPLETON MARKET TEMPLETON CA 668487 *****8244 0
B174: 3/18 | C174: 58.9 | D174: POS PURCHASE Third Base Market and S Paso Robles CA 679613 *****8244 0
B175: 3/20 | C175: 9.79 | D175: POS PURCHASE EL CAMINO BUILDING SUPP Atascadero CA 000100 *****8244 0
B176: 3/20 | C176: 11.5 | D176: POS PURCHASE GOLDEN HILL 76 PASO ROBLES CA 00N1GR *****8244 0
B177: 3/20 | C177: 26.6 | D177: POS PURCHASE LOWE'S #27 PASO ROBLES CA 001 *****8244 0
B178: 3/20 | C178: 30.44 | D178: POS PURCHASE SPECIALTY PET SUPPLY ATASCADERO CA 075454 *****2385 0
B179: 3/20 | C179: 55.43 | D179: POS PURCHASE COSTCO WHSE #0741 SAN LUIS OBIS CA 990741 *****2385 0
B180: 3/20 | C180: 39.84 | D180: POS PURCHASE SP NATURAL ALTERNATIVE 180-52378290 CA CLIE7O *****8244 0
B181: 3/20 | C181: 49.59 | D181: POS PURCHASE Third Base Market and S Paso Robles CA 679613 *****8244 0
B182: 3/20 | C182: 50 | D182: POS PURCHASE Third Base Market and S Paso Robles CA 679613 *****2385 0
B183: 3/21 | C183: 8.73 | D183: POS PURCHASE USPS PO 05777004 101 N TEMPLETON CA 999999 *****2385 0
B184: 3/21 | C184: 11.74 | D184: POS PURCHASE TEMPLETON MARKET TEMPLETON CA 668487 *****8244 0
B185: 3/21 | C185: 54.35 | D185: POS PURCHASE Third Base Market and S Paso Robles CA 679613 *****8244 0
B186: 3/21 | C186: 396.32 | D186: TELLER WITHDRAWL
B187: 3/21 | C187: 100 | D187: Internet Transfer To 1684
B188: 3/21 | C188: 340 | D188: Internet Transfer To 1854
B189: 3/21 | C189: 675.12 | D189: Internet Transfer To 1684
B190: 3/21 | C190: 800 | D190: Internet Transfer To 1854
B191: 3/21 | C191: 7889.65 | D191: Internet Transfer To 1854
B192: 3/22 | C192: 16.92 | D192: POS PURCHASE TEMPLETON MARKET TEMPLETON CA 668487 *****8244 0
B193: 3/22 | C193: 26.99 | D193: POS PURCHASE GOLDEN HIL PASO ROBLES CA 00N1GR *****8244 0
B194: 3/22 | C194: 88.07 | D194: POS PURCHASE Lemos Feed & Pet Supply Paso Robles CA 000100 *****2385 0
B195: 3/22 | C195: 44.35 | D195: POS PURCHASE Third Base Market and S Paso Robles CA 679613 *****8244 0
B196: 3/22 | C196: 100 | D196: CAPITAL ON
B197: 3/25 | C197: 4.5 | D197: POS PURCHASE GOLDEN HILL 76 PASO ROBLES CA 00N1GR *****8244 0
B198: 3/25 | C198: 11.75 | D198: POS PURCHASE GOLDEN HILL 76 PASO ROBLES CA 00N1GR *****8244 0
B199: 3/25 | C199: 71.42 | D199: POS PURCHASE GROCERY OUTLET OF PASO PASO ROBLES CA 820627 *****2385 0
B200: 3/25 | C200: 149.38 | D200: POS PURCHASE FOOD 4 LESS 0012 PASO ROBLES CA 986142 *****2385 0
B201: 3/25 | C201: 8 | D201: POS PURCHASE RITE AID 05832 PASO ROBLES CA 549000 *****8244 0
... 576 more rows

Sheet Sheet3
A1: 1/02 | B1: 12.00 | C1: 1/02 12.00 Internet Transfer To 1854 1/02 8,287.79 Internet Transfer To 1854 1/03 443.26 Internet Transfer To 1684 | D1: =FIND("/",C1,5) -> 39 | E1: =RIGHT(C1,LEN(C1)-(D1-2)) -> 1/02 8,287.79 Internet Transfer To 1854 1/03 443.26 Internet Transfer To 1684 | F1: =SUBSTITUTE(C1,E1,"") -> 1/02 12.00 Internet Transfer To 1854 | K1: 1/02 | L1: 12 | M1: Internet Transfer To 1854 | O1: =SUBSTITUTE(Q1,A1,"") -> 12.00 Internet Transfer To 1854 | P1: =TRIM(SUBSTITUTE(O1,B1,"")) -> Internet Transfer To 1854 | Q1: 1/02 12.00 Internet Transfer To 1854
A2: 1/02 | B2: 8,287.79 | C2: 1/02 8,287.79 Internet Transfer To 1854 1/03 443.26 Internet Transfer To 1684 1/08 280.36 Internet Transfer To 1684 | D2: =FIND("/",C2,5) -> 42 | E2: =RIGHT(C2,LEN(C2)-(D2-2)) -> 1/03 443.26 Internet Transfer To 1684 1/08 280.36 Internet Transfer To 1684 | F2: =SUBSTITUTE(C2,E2,"") -> 1/02 8,287.79 Internet Transfer To 1854 | K2: 1/02 | L2: 8287.79 | M2: Internet Transfer To 1854 | O2: =SUBSTITUTE(Q2,A2,"") -> 8,287.79 Internet Transfer To 1854 | P2: =TRIM(SUBSTITUTE(O2,B2,"")) -> Internet Transfer To 1854 | Q2: 1/02 8,287.79 Internet Transfer To 1854
A3: 1/03 | B3: 443.26 | C3: 1/03 443.26 Internet Transfer To 1684 1/08 280.36 Internet Transfer To 1684 1/08 398.49 Internet Transfer To 1684 | D3: 40 | E3: 1/08 280.36 Internet Transfer To 1684 1/08 398.49 Internet Transfer To 1684 | F3: 1/03 443.26 Internet Transfer To 1684 | K3: 1/03 | L3: 443.26 | M3: Internet Transfer To 1684 | O3: 443.26 Internet Transfer To 1684 | P3: Internet Transfer To 1684 | Q3: 1/03 443.26 Internet Transfer To 1684
A4: 1/08 | B4: 280.36 | C4: 1/08 280.36 Internet Transfer To 1684 1/08 398.49 Internet Transfer To 1684 1/11 381.89 Best Egg PAYMENT | D4: 40 | E4: 1/08 398.49 Internet Transfer To 1684 1/11 381.89 Best Egg PAYMENT | F4: 1/08 280.36 Internet Transfer To 1684 | K4: 1/08 | L4: 280.36 | M4: Internet Transfer To 1684 | O4: 280.36 Internet Transfer To 1684 | P4: Internet Transfer To 1684 | Q4: 1/08 280.36 Internet Transfer To 1684
A5: 1/08 | B5: 398.49 | C5: 1/08 398.49 Internet Transfer To 1684 1/11 381.89 Best Egg PAYMENT 45087375A SCOTT BRANDON | D5: 40 | E5: 1/11 381.89 Best Egg PAYMENT 45087375A SCOTT BRANDON | F5: 1/08 398.49 Internet Transfer To 1684 | K5: 1/08 | L5: 398.49 | M5: Internet Transfer To 1684 | O5: 398.49 Internet Transfer To 1684 | P5: Internet Transfer To 1684 | Q5: 1/08 398.49 Internet Transfer To 1684
A6: 1/11 | B6: 381.89 | C6: 1/11 381.89 Best Egg PAYMENT 45087375A SCOTT BRANDON 1/19 20.31 Internet Transfer To 1684 | D6: 55 | E6: 1/19 20.31 Internet Transfer To 1684 | F6: 1/11 381.89 Best Egg PAYMENT 45087375A SCOTT BRANDON | K6: 1/11 | L6: 381.89 | M6: Best Egg PAYMENT 45087375A SCOTT BRANDON | O6: 381.89 Best Egg PAYMENT 45087375A SCOTT BRANDON | P6: Best Egg PAYMENT 45087375A SCOTT BRANDON | Q6: 1/11 381.89 Best Egg PAYMENT 45087375A SCOTT BRANDON
A7: 1/19 | B7: 20.31 | C7: 1/19 20.31 Internet Transfer To 1684 1/19 325.00 Internet Transfer To 1684 1/19 904.26 Internet Transfer To 1684 | D7: 39 | E7: 1/19 325.00 Internet Transfer To 1684 1/19 904.26 Internet Transfer To 1684 | F7: 1/19 20.31 Internet Transfer To 1684 | K7: 1/19 | L7: 20.31 | M7: Internet Transfer To 1684 | O7: 20.31 Internet Transfer To 1684 | P7: Internet Transfer To 1684 | Q7: 1/19 20.31 Internet Transfer To 1684
A8: 1/19 | B8: 325.00 | C8: 1/19 325.00 Internet Transfer To 1684 1/19 904.26 Internet Transfer To 1684 1/19 2,453.96 Internet Transfer To 1854 | D8: 40 | E8: 1/19 904.26 Internet Transfer To 1684 1/19 2,453.96 Internet Transfer To 1854 | F8: 1/19 325.00 Internet Transfer To 1684 | K8: 1/19 | L8: 325 | M8: Internet Transfer To 1684 | O8: 325.00 Internet Transfer To 1684 | P8: Internet Transfer To 1684 | Q8: 1/19 325.00 Internet Transfer To 1684
A9: 1/19 | B9: 904.26 | C9: 1/19 904.26 Internet Transfer To 1684 1/19 2,453.96 Internet Transfer To 1854 1/19 2,888.00 Internet Transfer To 1854 | D9: 40 | E9: 1/19 2,453.96 Internet Transfer To 1854 1/19 2,888.00 Internet Transfer To 1854 | F9: 1/19 904.26 Internet Transfer To 1684 | K9: 1/19 | L9: 904.26 | M9: Internet Transfer To 1684 | O9: 904.26 Internet Transfer To 1684 | P9: Internet Transfer To 1684 | Q9: 1/19 904.26 Internet Transfer To 1684
A10: 1/19 | B10: 2,453.96 | C10: 1/19 2,453.96 Internet Transfer To 1854 1/19 2,888.00 Internet Transfer To 1854 1/22 50.00 Internet Transfer To 1684 | D10: 42 | E10: 1/19 2,888.00 Internet Transfer To 1854 1/22 50.00 Internet Transfer To 1684 | F10: 1/19 2,453.96 Internet Transfer To 1854 | K10: 1/19 | L10: 2453.96 | M10: Internet Transfer To 1854 | O10: 2,453.96 Internet Transfer To 1854 | P10: Internet Transfer To 1854 | Q10: 1/19 2,453.96 Internet Transfer To 1854
A11: 1/19 | B11: 2,888.00 | C11: 1/19 2,888.00 Internet Transfer To 1854 1/22 50.00 Internet Transfer To 1684 1/22 800.00 Internet Transfer To 1854 | D11: 42 | E11: 1/22 50.00 Internet Transfer To 1684 1/22 800.00 Internet Transfer To 1854 | F11: 1/19 2,888.00 Internet Transfer To 1854 | K11: 1/19 | L11: 2888 | M11: Internet Transfer To 1854 | O11: 2,888.00 Internet Transfer To 1854 | P11: Internet Transfer To 1854 | Q11: 1/19 2,888.00 Internet Transfer To 1854
A12: 1/22 | B12: 50.00 | C12: 1/22 50.00 Internet Transfer To 1684 1/22 800.00 Internet Transfer To 1854 1/23 .17 PPB #6601444972 PAYMENT | D12: 39 | E12: 1/22 800.00 Internet Transfer To 1854 1/23 .17 PPB #6601444972 PAYMENT | F12: 1/22 50.00 Internet Transfer To 1684 | K12: 1/22 | L12: 50 | M12: Internet Transfer To 1684 | O12: 50.00 Internet Transfer To 1684 | P12: Internet Transfer To 1684 | Q12: 1/22 50.00 Internet Transfer To 1684
A13: 1/22 | B13: 800.00 | C13: 1/22 800.00 Internet Transfer To 1854 1/23 .17 PPB #6601444972 PAYMENT 1/31 10.00 BALANCE REQUIREMENT FEE | D13: 40 | E13: 1/23 .17 PPB #6601444972 PAYMENT 1/31 10.00 BALANCE REQUIREMENT FEE | F13: 1/22 800.00 Internet Transfer To 1854 | K13: 1/22 | L13: 800 | M13: Internet Transfer To 1854 | O13: 800.00 Internet Transfer To 1854 | P13: Internet Transfer To 1854 | Q13: 1/22 800.00 Internet Transfer To 1854
A14: 1/23 | B14: .17 | C14: 1/23 .17 PPB #6601444972 PAYMENT 1/31 10.00 BALANCE REQUIREMENT FEE 2/01 15.46 Internet Transfer To 1854 | D14: 35 | E14: 1/31 10.00 BALANCE REQUIREMENT FEE 2/01 15.46 Internet Transfer To 1854 | F14: 1/23 .17 PPB #6601444972 PAYMENT | K14: 1/23 | L14: 0.17 | M14: PPB #6601444972 PAYMENT | O14: .17 PPB #6601444972 PAYMENT | P14: PPB #6601444972 PAYMENT | Q14: 1/23 .17 PPB #6601444972 PAYMENT
A15: 1/31 | B15: 10.00 | C15: 1/31 10.00 BALANCE REQUIREMENT FEE 2/01 15.46 Internet Transfer To 1854 2/01 172.39 Internet Transfer To 1684 | D15: 37 | E15: 2/01 15.46 Internet Transfer To 1854 2/01 172.39 Internet Transfer To 1684 | F15: 1/31 10.00 BALANCE REQUIREMENT FEE | K15: 1/31 | L15: 10 | M15: BALANCE REQUIREMENT FEE | O15: 10.00 BALANCE REQUIREMENT FEE | P15: BALANCE REQUIREMENT FEE | Q15: 1/31 10.00 BALANCE REQUIREMENT FEE
A16: 2/01 | B16: 288.19 | C16: 2/01 288.19 POS PURCHASE EL CAMINO BUILDING SUPP Atascadero CA 000100 *****8244 02/01 11:36 | D16: 83 | E16: 2/01 11:36 | F16: 2/01 288.19 POS PURCHASE EL CAMINO BUILDING SUPP Atascadero CA 000100 *****8244 0 | K16: 2/01 | L16: 288.19 | M16: POS PURCHASE EL CAMINO BUILDING SUPP Atascadero CA 000100 *****8244 0 | O16: 288.19 POS PURCHASE EL CAMINO BUILDING SUPP Atascadero CA 000100 *****8244 0 | P16: POS PURCHASE EL CAMINO BUILDING SUPP Atascadero CA 000100 *****8244 0 | Q16: 2/01 288.19 POS PURCHASE EL CAMINO BUILDING SUPP Atascadero CA 000100 *****8244 0
A17: 2/01 | B17: 44.35 | C17: 2/01 44.35 POS PURCHASE Third Base Market and S Paso Robles CA 679613 *****8244 02/01 07:12 | D17: 83 | E17: 2/01 07:12 | F17: 2/01 44.35 POS PURCHASE Third Base Market and S Paso Robles CA 679613 *****8244 0 | K17: 2/01 | L17: 44.35 | M17: POS PURCHASE Third Base Market and S Paso Robles CA 679613 *****8244 0 | O17: 44.35 POS PURCHASE Third Base Market and S Paso Robles CA 679613 *****8244 0 | P17: POS PURCHASE Third Base Market and S Paso Robles CA 679613 *****8244 0 | Q17: 2/01 44.35 POS PURCHASE Third Base Market and S Paso Robles CA 679613 *****8244 0
A18: 2/01 | B18: 48.30 | C18: 2/01 48.30 POS PURCHASE USA 63201 BUELLTON CA 15320 *****8244 02/01 15:44 | D18: 65 | E18: 2/01 15:44 | F18: 2/01 48.30 POS PURCHASE USA 63201 BUELLTON CA 15320 *****8244 0 | K18: 2/01 | L18: 48.3 | M18: POS PURCHASE USA 63201 BUELLTON CA 15320 *****8244 0 | O18: 48.30 POS PURCHASE USA 63201 BUELLTON CA 15320 *****8244 0 | P18: POS PURCHASE USA 63201 BUELLTON CA 15320 *****8244 0 | Q18: 2/01 48.30 POS PURCHASE USA 63201 BUELLTON CA 15320 *****8244 0
A19: 2/01 | B19: 63.34 | C19: 2/01 63.34 POS PURCHASE Third Base Market and S Paso Robles CA 679613 *****2385 02/01 10:46 | D19: 83 | E19: 2/01 10:46 | F19: 2/01 63.34 POS PURCHASE Third Base Market and S Paso Robles CA 679613 *****2385 0 | K19: 2/01 | L19: 63.34 | M19: POS PURCHASE Third Base Market and S Paso Robles CA 679613 *****2385 0 | O19: 63.34 POS PURCHASE Third Base Market and S Paso Robles CA 679613 *****2385 0 | P19: POS PURCHASE Third Base Market and S Paso Robles CA 679613 *****2385 0 | Q19: 2/01 63.34 POS PURCHASE Third Base Market and S Paso Robles CA 679613 *****2385 0
A20: 2/01 | B20: 95.55 | C20: 2/01 95.55 POS PURCHASE TEMPLETON MARKET TEMPLETON CA 668487 *****8244 02/01 11:17 | D20: 74 | E20: =RIGHT(C20,LEN(C20)-(D20-2)) -> 2/01 11:17 | F20: =SUBSTITUTE(C20,E20,"") -> 2/01 95.55 POS PURCHASE TEMPLETON MARKET TEMPLETON CA 668487 *****8244 0 | K20: 2/01 | L20: 95.55 | M20: POS PURCHASE TEMPLETON MARKET TEMPLETON CA 668487 *****8244 0 | O20: 95.55 POS PURCHASE TEMPLETON MARKET TEMPLETON CA 668487 *****8244 0 | P20: POS PURCHASE TEMPLETON MARKET TEMPLETON CA 668487 *****8244 0 | Q20: 2/01 95.55 POS PURCHASE TEMPLETON MARKET TEMPLETON CA 668487 *****8244 0
A21: 2/01 | B21: 15.46 | C21: 2/01 15.46 Internet Transfer To 1854 2/01 172.39 Internet Transfer To 1684 2/01 450.00 Internet Transfer To 1854 | D21: 39 | E21: 2/01 172.39 Internet Transfer To 1684 2/01 450.00 Internet Transfer To 1854 | F21: 2/01 15.46 Internet Transfer To 1854 | K21: 2/01 | L21: 15.46 | M21: Internet Transfer To 1854 | O21: 15.46 Internet Transfer To 1854 | P21: Internet Transfer To 1854 | Q21: 2/01 15.46 Internet Transfer To 1854
A22: 2/01 | B22: 172.39 | C22: 2/01 172.39 Internet Transfer To 1684 2/01 450.00 Internet Transfer To 1854 2/01 778.85 Internet Transfer To 1854 | D22: 40 | E22: 2/01 450.00 Internet Transfer To 1854 2/01 778.85 Internet Transfer To 1854 | F22: 2/01 172.39 Internet Transfer To 1684 | K22: 2/01 | L22: 172.39 | M22: Internet Transfer To 1684 | O22: 172.39 Internet Transfer To 1684 | P22: Internet Transfer To 1684 | Q22: 2/01 172.39 Internet Transfer To 1684
A23: 2/01 | B23: 450.00 | C23: 2/01 450.00 Internet Transfer To 1854 2/01 778.85 Internet Transfer To 1854 2/02 600.00 Internet Transfer To 1684 | D23: 40 | E23: 2/01 778.85 Internet Transfer To 1854 2/02 600.00 Internet Transfer To 1684 | F23: 2/01 450.00 Internet Transfer To 1854 | K23: 2/01 | L23: 450 | M23: Internet Transfer To 1854 | O23: 450.00 Internet Transfer To 1854 | P23: Internet Transfer To 1854 | Q23: 2/01 450.00 Internet Transfer To 1854
A24: 2/01 | B24: 778.85 | C24: 2/01 778.85 Internet Transfer To 1854 2/02 600.00 Internet Transfer To 1684 2/02 1,000.00 Internet Transfer To 1684 | D24: 40 | E24: 2/02 600.00 Internet Transfer To 1684 2/02 1,000.00 Internet Transfer To 1684 | F24: 2/01 778.85 Internet Transfer To 1854 | K24: 2/01 | L24: 778.85 | M24: Internet Transfer To 1854 | O24: 778.85 Internet Transfer To 1854 | P24: Internet Transfer To 1854 | Q24: 2/01 778.85 Internet Transfer To 1854
A25: 2/02 | B25: 40.00 | C25: 2/02 40.00 ATM WITHDRAWAL PACIFIC PREMI 545 12TH STRE PASO ROBLE CA IC1965 *****2385 02/02 10:20 | D25: 88 | E25: 2/02 10:20 | F25: 2/02 40.00 ATM WITHDRAWAL PACIFIC PREMI 545 12TH STRE PASO ROBLE CA IC1965 *****2385 0 | K25: 2/02 | L25: 40 | M25: ATM WITHDRAWAL PACIFIC PREMI 545 12TH STRE PASO ROBLE CA IC1965 *****2385 0 | O25: 40.00 ATM WITHDRAWAL PACIFIC PREMI 545 12TH STRE PASO ROBLE CA IC1965 *****2385 0 | P25: ATM WITHDRAWAL PACIFIC PREMI 545 12TH STRE PASO ROBLE CA IC1965 *****2385 0 | Q25: 2/02 40.00 ATM WITHDRAWAL PACIFIC PREMI 545 12TH STRE PASO ROBLE CA IC1965 *****2385 0
A26: 2/02 | B26: 100.00 | C26: 2/02 100.00 ATM WITHDRAWAL PACIFIC PREMI 545 12TH STRE PASO ROBLE CA IC1965 *****2385 02/02 10:19 | D26: 89 | E26: 2/02 10:19 | F26: 2/02 100.00 ATM WITHDRAWAL PACIFIC PREMI 545 12TH STRE PASO ROBLE CA IC1965 *****2385 0 | K26: 2/02 | L26: 100 | M26: ATM WITHDRAWAL PACIFIC PREMI 545 12TH STRE PASO ROBLE CA IC1965 *****2385 0 | O26: 100.00 ATM WITHDRAWAL PACIFIC PREMI 545 12TH STRE PASO ROBLE CA IC1965 *****2385 0 | P26: ATM WITHDRAWAL PACIFIC PREMI 545 12TH STRE PASO ROBLE CA IC1965 *****2385 0 | Q26: 2/02 100.00 ATM WITHDRAWAL PACIFIC PREMI 545 12TH STRE PASO ROBLE CA IC1965 *****2385 0
A27: 2/02 | B27: 26.23 | C27: 2/02 26.23 POS PURCHASE RITE AID 05832 PASO ROBLES CA 549000 *****8244 02/02 13:43 | D27: 74 | E27: 2/02 13:43 | F27: 2/02 26.23 POS PURCHASE RITE AID 05832 PASO ROBLES CA 549000 *****8244 0 | K27: 2/02 | L27: 26.23 | M27: POS PURCHASE RITE AID 05832 PASO ROBLES CA 549000 *****8244 0 | O27: =SUBSTITUTE(Q27,A27,"") -> 26.23 POS PURCHASE RITE AID 05832 PASO ROBLES CA 549000 *****8244 0 | P27: =TRIM(SUBSTITUTE(O27,B27,"")) -> POS PURCHASE RITE AID 05832 PASO ROBLES CA 549000 *****8244 0 | Q27: 2/02 26.23 POS PURCHASE RITE AID 05832 PASO ROBLES CA 549000 *****8244 0
A28: 2/02 | B28: 62.00 | C28: 2/02 62.00 POS PURCHASE GOLDEN HIL PASO ROBLES CA 00N1GR *****8244 02/02 08:58 | D28: 70 | E28: 2/02 08:58 | F28: 2/02 62.00 POS PURCHASE GOLDEN HIL PASO ROBLES CA 00N1GR *****8244 0 | K28: 2/02 | L28: 62 | M28: POS PURCHASE GOLDEN HIL PASO ROBLES CA 00N1GR *****8244 0 | O28: 62.00 POS PURCHASE GOLDEN HIL PASO ROBLES CA 00N1GR *****8244 0 | P28: POS PURCHASE GOLDEN HIL PASO ROBLES CA 00N1GR *****8244 0 | Q28: 2/02 62.00 POS PURCHASE GOLDEN HIL PASO ROBLES CA 00N1GR *****8244 0
A29: 2/02 | B29: 600.00 | C29: 2/02 600.00 Internet Transfer To 1684 2/02 1,000.00 Internet Transfer To 1684 2/02 1,788.33 Internet Transfer To 1854 | D29: 40 | E29: 2/02 1,000.00 Internet Transfer To 1684 2/02 1,788.33 Internet Transfer To 1854 | F29: 2/02 600.00 Internet Transfer To 1684 | K29: 2/02 | L29: 600 | M29: Internet Transfer To 1684 | O29: 600.00 Internet Transfer To 1684 | P29: Internet Transfer To 1684 | Q29: 2/02 600.00 Internet Transfer To 1684
A30: 2/02 | B30: 1,000.00 | C30: 2/02 1,000.00 Internet Transfer To 1684 2/02 1,788.33 Internet Transfer To 1854 2/02 7,353.30 Internet Transfer To 1854 | D30: 42 | E30: 2/02 1,788.33 Internet Transfer To 1854 2/02 7,353.30 Internet Transfer To 1854 | F30: 2/02 1,000.00 Internet Transfer To 1684 | K30: 2/02 | L30: 1000 | M30: Internet Transfer To 1684 | O30: 1,000.00 Internet Transfer To 1684 | P30: Internet Transfer To 1684 | Q30: 2/02 1,000.00 Internet Transfer To 1684
A31: 2/02 | B31: 1,788.33 | C31: 2/02 1,788.33 Internet Transfer To 1854 2/02 7,353.30 Internet Transfer To 1854 2/06 1,840.00 TELLER WITHDRAWL | D31: 42 | E31: 2/02 7,353.30 Internet Transfer To 1854 2/06 1,840.00 TELLER WITHDRAWL | F31: 2/02 1,788.33 Internet Transfer To 1854 | K31: 2/02 | L31: 1788.33 | M31: Internet Transfer To 1854 | O31: 1,788.33 Internet Transfer To 1854 | P31: Internet Transfer To 1854 | Q31: 2/02 1,788.33 Internet Transfer To 1854
A32: 2/02 | B32: 7,353.30 | C32: 2/02 7,353.30 Internet Transfer To 1854 2/06 1,840.00 TELLER WITHDRAWL 2/06 2,223.90 Internet Transfer To 1854 | D32: 42 | E32: 2/06 1,840.00 TELLER WITHDRAWL 2/06 2,223.90 Internet Transfer To 1854 | F32: 2/02 7,353.30 Internet Transfer To 1854 | K32: 2/02 | L32: 7353.3 | M32: Internet Transfer To 1854 | O32: 7,353.30 Internet Transfer To 1854 | P32: Internet Transfer To 1854 | Q32: 2/02 7,353.30 Internet Transfer To 1854
A33: 2/05 | B33: 29.00 | C33: 2/05 29.00 POS PURCHASE GOLDEN HIL PASO ROBLES CA 00N1GR *****2385 02/04 12:29 | D33: 70 | E33: 2/04 12:29 | F33: 2/05 29.00 POS PURCHASE GOLDEN HIL PASO ROBLES CA 00N1GR *****2385 0 | K33: 2/05 | L33: 29 | M33: POS PURCHASE GOLDEN HIL PASO ROBLES CA 00N1GR *****2385 0 | O33: 29.00 POS PURCHASE GOLDEN HIL PASO ROBLES CA 00N1GR *****2385 0 | P33: POS PURCHASE GOLDEN HIL PASO ROBLES CA 00N1GR *****2385 0 | Q33: 2/05 29.00 POS PURCHASE GOLDEN HIL PASO ROBLES CA 00N1GR *****2385 0
A34: 2/05 | B34: 42.09 | C34: 2/05 42.09 POS PURCHASE TRACTOR SUPPLY CO #1609 PASO ROBLES CA 090001 *****2385 02/04 11:37 | D34: 83 | E34: 2/04 11:37 | F34: 2/05 42.09 POS PURCHASE TRACTOR SUPPLY CO #1609 PASO ROBLES CA 090001 *****2385 0 | K34: 2/05 | L34: 42.09 | M34: POS PURCHASE TRACTOR SUPPLY CO #1609 PASO ROBLES CA 090001 *****2385 0 | O34: 42.09 POS PURCHASE TRACTOR SUPPLY CO #1609 PASO ROBLES CA 090001 *****2385 0 | P34: POS PURCHASE TRACTOR SUPPLY CO #1609 PASO ROBLES CA 090001 *****2385 0 | Q34: 2/05 42.09 POS PURCHASE TRACTOR SUPPLY CO #1609 PASO ROBLES CA 090001 *****2385 0
A35: 2/05 | B35: 45.57 | C35: 2/05 45.57 POS PURCHASE TRACTOR SUPPLY CO #1609 PASO ROBLES CA 090001 *****2385 02/03 15:00 | D35: 83 | E35: 2/03 15:00 | F35: 2/05 45.57 POS PURCHASE TRACTOR SUPPLY CO #1609 PASO ROBLES CA 090001 *****2385 0 | K35: 2/05 | L35: 45.57 | M35: POS PURCHASE TRACTOR SUPPLY CO #1609 PASO ROBLES CA 090001 *****2385 0 | O35: 45.57 POS PURCHASE TRACTOR SUPPLY CO #1609 PASO ROBLES CA 090001 *****2385 0 | P35: POS PURCHASE TRACTOR SUPPLY CO #1609 PASO ROBLES CA 090001 *****2385 0 | Q35: 2/05 45.57 POS PURCHASE TRACTOR SUPPLY CO #1609 PASO ROBLES CA 090001 *****2385 0
A36: 2/05 | B36: 80.62 | C36: 2/05 80.62 POS PURCHASE SMART AND FINAL 939 PASO ROBLES CA 482200 *****2385 02/04 12:20 | D36: 79 | E36: 2/04 12:20 | F36: 2/05 80.62 POS PURCHASE SMART AND FINAL 939 PASO ROBLES CA 482200 *****2385 0 | K36: 2/05 | L36: 80.62 | M36: POS PURCHASE SMART AND FINAL 939 PASO ROBLES CA 482200 *****2385 0 | O36: 80.62 POS PURCHASE SMART AND FINAL 939 PASO ROBLES CA 482200 *****2385 0 | P36: POS PURCHASE SMART AND FINAL 939 PASO ROBLES CA 482200 *****2385 0 | Q36: 2/05 80.62 POS PURCHASE SMART AND FINAL 939 PASO ROBLES CA 482200 *****2385 0
A37: 2/05 | B37: 27.19 | C37: 2/05 27.19 POS PURCHASE SQ *THE BLUEPRINTER & G Paso Robles CA IND100 *****8244 02/02 22:15 | D37: 83 | E37: 2/02 22:15 | F37: 2/05 27.19 POS PURCHASE SQ *THE BLUEPRINTER & G Paso Robles CA IND100 *****8244 0 | K37: 2/05 | L37: 27.19 | M37: POS PURCHASE SQ *THE BLUEPRINTER & G Paso Robles CA IND100 *****8244 0 | O37: 27.19 POS PURCHASE SQ *THE BLUEPRINTER & G Paso Robles CA IND100 *****8244 0 | P37: POS PURCHASE SQ *THE BLUEPRINTER & G Paso Robles CA IND100 *****8244 0 | Q37: 2/05 27.19 POS PURCHASE SQ *THE BLUEPRINTER & G Paso Robles CA IND100 *****8244 0
A38: 2/05 | B38: 42.20 | C38: 2/05 42.20 POS PURCHASE TEMPLETON MARKET TEMPLETON CA 668487 *****8244 02/05 14:42 | D38: 74 | E38: 2/05 14:42 | F38: 2/05 42.20 POS PURCHASE TEMPLETON MARKET TEMPLETON CA 668487 *****8244 0 | K38: 2/05 | L38: 42.2 | M38: POS PURCHASE TEMPLETON MARKET TEMPLETON CA 668487 *****8244 0 | O38: 42.20 POS PURCHASE TEMPLETON MARKET TEMPLETON CA 668487 *****8244 0 | P38: POS PURCHASE TEMPLETON MARKET TEMPLETON CA 668487 *****8244 0 | Q38: 2/05 42.20 POS PURCHASE TEMPLETON MARKET TEMPLETON CA 668487 *****8244 0
A39: 2/05 | B39: 42.99 | C39: 2/05 42.99 POS PURCHASE Third Base Market and S Paso Robles CA 679613 *****8244 02/02 16:33 | D39: 83 | E39: 2/02 16:33 | F39: 2/05 42.99 POS PURCHASE Third Base Market and S Paso Robles CA 679613 *****8244 0 | K39: 2/05 | L39: 42.99 | M39: POS PURCHASE Third Base Market and S Paso Robles CA 679613 *****8244 0 | O39: 42.99 POS PURCHASE Third Base Market and S Paso Robles CA 679613 *****8244 0 | P39: POS PURCHASE Third Base Market and S Paso Robles CA 679613 *****8244 0 | Q39: 2/05 42.99 POS PURCHASE Third Base Market and S Paso Robles CA 679613 *****8244 0
A40: 2/05 | B40: 46.44 | C40: 2/05 46.44 POS PURCHASE TEMPLETON MARKET TEMPLETON CA 668487 *****8244 02/05 07:11 | D40: 74 | E40: 2/05 07:11 | F40: 2/05 46.44 POS PURCHASE TEMPLETON MARKET TEMPLETON CA 668487 *****8244 0 | K40: 2/05 | L40: 46.44 | M40: POS PURCHASE TEMPLETON MARKET TEMPLETON CA 668487 *****8244 0 | O40: 46.44 POS PURCHASE TEMPLETON MARKET TEMPLETON CA 668487 *****8244 0 | P40: POS PURCHASE TEMPLETON MARKET TEMPLETON CA 668487 *****8244 0 | Q40: 2/05 46.44 POS PURCHASE TEMPLETON MARKET TEMPLETON CA 668487 *****8244 0
A41: 2/05 | B41: 70.33 | C41: 2/05 70.33 POS PURCHASE FARM SUPPLY COMPANY P PASO ROBLES CA 000079 *****8244 02/03 05:06 | D41: 81 | E41: 2/03 05:06 | F41: 2/05 70.33 POS PURCHASE FARM SUPPLY COMPANY P PASO ROBLES CA 000079 *****8244 0 | K41: 2/05 | L41: 70.33 | M41: POS PURCHASE FARM SUPPLY COMPANY P PASO ROBLES CA 000079 *****8244 0 | O41: 70.33 POS PURCHASE FARM SUPPLY COMPANY P PASO ROBLES CA 000079 *****8244 0 | P41: POS PURCHASE FARM SUPPLY COMPANY P PASO ROBLES CA 000079 *****8244 0 | Q41: 2/05 70.33 POS PURCHASE FARM SUPPLY COMPANY P PASO ROBLES CA 000079 *****8244 0
A42: 2/05 | B42: 107.54 | C42: 2/05 107.54 POS PURCHASE CKE*STREET SIDE ALE HOU ATASCADERO CA 523659 *****8244 02/04 08:27 | D42: 83 | E42: 2/04 08:27 | F42: 2/05 107.54 POS PURCHASE CKE*STREET SIDE ALE HOU ATASCADERO CA 523659 *****8244 0 | K42: 2/05 | L42: 107.54 | M42: POS PURCHASE CKE*STREET SIDE ALE HOU ATASCADERO CA 523659 *****8244 0 | O42: 107.54 POS PURCHASE CKE*STREET SIDE ALE HOU ATASCADERO CA 523659 *****8244 0 | P42: POS PURCHASE CKE*STREET SIDE ALE HOU ATASCADERO CA 523659 *****8244 0 | Q42: 2/05 107.54 POS PURCHASE CKE*STREET SIDE ALE HOU ATASCADERO CA 523659 *****8244 0
A43: 2/05 | B43: 186.38 | C43: 2/05 186.38 POS PURCHASE STATE FARM INSURANCE 800-956-6310 IL 00 *****2385 02/02 21:26 | D43: 78 | E43: 2/02 21:26 | F43: 2/05 186.38 POS PURCHASE STATE FARM INSURANCE 800-956-6310 IL 00 *****2385 0 | K43: 2/05 | L43: 186.38 | M43: POS PURCHASE STATE FARM INSURANCE 800-956-6310 IL 00 *****2385 0 | O43: 186.38 POS PURCHASE STATE FARM INSURANCE 800-956-6310 IL 00 *****2385 0 | P43: POS PURCHASE STATE FARM INSURANCE 800-956-6310 IL 00 *****2385 0 | Q43: 2/05 186.38 POS PURCHASE STATE FARM INSURANCE 800-956-6310 IL 00 *****2385 0
A44: 2/05 | B44: 247.55 | C44: 2/05 247.55 POS PURCHASE VZWRLSS*BILL PAY VB 800-922-0204 FL INC100 *****2385 02/04 09:17 | D44: 81 | E44: 2/04 09:17 | F44: 2/05 247.55 POS PURCHASE VZWRLSS*BILL PAY VB 800-922-0204 FL INC100 *****2385 0 | K44: 2/05 | L44: 247.55 | M44: POS PURCHASE VZWRLSS*BILL PAY VB 800-922-0204 FL INC100 *****2385 0 | O44: 247.55 POS PURCHASE VZWRLSS*BILL PAY VB 800-922-0204 FL INC100 *****2385 0 | P44: POS PURCHASE VZWRLSS*BILL PAY VB 800-922-0204 FL INC100 *****2385 0 | Q44: 2/05 247.55 POS PURCHASE VZWRLSS*BILL PAY VB 800-922-0204 FL INC100 *****2385 0
A45: 2/06 | B45: 59.00 | C45: 2/06 59.00 POS PURCHASE PASO PETCARE VETERINARY PASO ROBLES CA IN8900 *****2385 02/05 22:39 | D45: 83 | E45: 2/05 22:39 | F45: 2/06 59.00 POS PURCHASE PASO PETCARE VETERINARY PASO ROBLES CA IN8900 *****2385 0 | K45: 2/06 | L45: 59 | M45: POS PURCHASE PASO PETCARE VETERINARY PASO ROBLES CA IN8900 *****2385 0 | O45: 59.00 POS PURCHASE PASO PETCARE VETERINARY PASO ROBLES CA IN8900 *****2385 0 | P45: POS PURCHASE PASO PETCARE VETERINARY PASO ROBLES CA IN8900 *****2385 0 | Q45: 2/06 59.00 POS PURCHASE PASO PETCARE VETERINARY PASO ROBLES CA IN8900 *****2385 0
A46: 2/06 | B46: 1,840.00 | C46: 2/06 1,840.00 TELLER WITHDRAWL 2/06 2,223.90 Internet Transfer To 1854 2/12 442.38 Internet Transfer To 1854 | D46: 33 | E46: 2/06 2,223.90 Internet Transfer To 1854 2/12 442.38 Internet Transfer To 1854 | F46: 2/06 1,840.00 TELLER WITHDRAWL | K46: 2/06 | L46: 1840 | M46: TELLER WITHDRAWL | O46: 1,840.00 TELLER WITHDRAWL | P46: TELLER WITHDRAWL | Q46: 2/06 1,840.00 TELLER WITHDRAWL
A47: 2/06 | B47: 2,223.90 | C47: 2/06 2,223.90 Internet Transfer To 1854 2/12 442.38 Internet Transfer To 1854 2/13 381.89 Best Egg PAYMENT | D47: 42 | E47: 2/12 442.38 Internet Transfer To 1854 2/13 381.89 Best Egg PAYMENT | F47: 2/06 2,223.90 Internet Transfer To 1854 | K47: 2/06 | L47: 2223.9 | M47: Internet Transfer To 1854 | O47: 2,223.90 Internet Transfer To 1854 | P47: Internet Transfer To 1854 | Q47: 2/06 2,223.90 Internet Transfer To 1854
A48: 2/07 | B48: 46.69 | C48: 2/07 46.69 POS PURCHASE TEMPLETON MARKET TEMPLETON CA 668487 *****8244 02/07 07:14 | D48: 74 | E48: 2/07 07:14 | F48: 2/07 46.69 POS PURCHASE TEMPLETON MARKET TEMPLETON CA 668487 *****8244 0 | K48: 2/07 | L48: 46.69 | M48: POS PURCHASE TEMPLETON MARKET TEMPLETON CA 668487 *****8244 0 | O48: 46.69 POS PURCHASE TEMPLETON MARKET TEMPLETON CA 668487 *****8244 0 | P48: POS PURCHASE TEMPLETON MARKET TEMPLETON CA 668487 *****8244 0 | Q48: 2/07 46.69 POS PURCHASE TEMPLETON MARKET TEMPLETON CA 668487 *****8244 0
A49: 2/08 | B49: 23.08 | C49: 2/08 23.08 POS PURCHASE TEMPLETON MARKET TEMPLETON CA 668487 *****8244 02/08 08:05 | D49: 74 | E49: 2/08 08:05 | F49: 2/08 23.08 POS PURCHASE TEMPLETON MARKET TEMPLETON CA 668487 *****8244 0 | K49: 2/08 | L49: 23.08 | M49: POS PURCHASE TEMPLETON MARKET TEMPLETON CA 668487 *****8244 0 | O49: 23.08 POS PURCHASE TEMPLETON MARKET TEMPLETON CA 668487 *****8244 0 | P49: POS PURCHASE TEMPLETON MARKET TEMPLETON CA 668487 *****8244 0 | Q49: 2/08 23.08 POS PURCHASE TEMPLETON MARKET TEMPLETON CA 668487 *****8244 0
A50: 2/08 | B50: 31.50 | C50: 2/08 31.50 POS PURCHASE GOLDEN HIL PASO ROBLES CA 00N1GR *****8244 02/08 07:01 | D50: 70 | E50: 2/08 07:01 | F50: 2/08 31.50 POS PURCHASE GOLDEN HIL PASO ROBLES CA 00N1GR *****8244 0 | K50: 2/08 | L50: 31.5 | M50: POS PURCHASE GOLDEN HIL PASO ROBLES CA 00N1GR *****8244 0 | O50: 31.50 POS PURCHASE GOLDEN HIL PASO ROBLES CA 00N1GR *****8244 0 | P50: POS PURCHASE GOLDEN HIL PASO ROBLES CA 00N1GR *****8244 0 | Q50: 2/08 31.50 POS PURCHASE GOLDEN HIL PASO ROBLES CA 00N1GR *****8244 0
A51: 2/08 | B51: 41.87 | C51: 2/08 41.87 POS PURCHASE TEMPLETON MARKET TEMPLETON CA 668487 *****8244 02/08 09:39 | D51: 74 | E51: 2/08 09:39 | F51: 2/08 41.87 POS PURCHASE TEMPLETON MARKET TEMPLETON CA 668487 *****8244 0 | K51: 2/08 | L51: 41.87 | M51: POS PURCHASE TEMPLETON MARKET TEMPLETON CA 668487 *****8244 0 | O51: 41.87 POS PURCHASE TEMPLETON MARKET TEMPLETON CA 668487 *****8244 0 | P51: POS PURCHASE TEMPLETON MARKET TEMPLETON CA 668487 *****8244 0 | Q51: 2/08 41.87 POS PURCHASE TEMPLETON MARKET TEMPLETON CA 668487 *****8244 0
A52: 2/09 | B52: 4.40 | C52: 2/09 4.40 POS PURCHASE USPS PO 05777004 101 N TEMPLETON CA 999999 *****2385 02/09 13:30 | D52: 79 | E52: 2/09 13:30 | F52: 2/09 4.40 POS PURCHASE USPS PO 05777004 101 N TEMPLETON CA 999999 *****2385 0 | K52: 2/09 | L52: 4.4 | M52: POS PURCHASE USPS PO 05777004 101 N TEMPLETON CA 999999 *****2385 0 | O52: 4.40 POS PURCHASE USPS PO 05777004 101 N TEMPLETON CA 999999 *****2385 0 | P52: POS PURCHASE USPS PO 05777004 101 N TEMPLETON CA 999999 *****2385 0 | Q52: 2/09 4.40 POS PURCHASE USPS PO 05777004 101 N TEMPLETON CA 999999 *****2385 0
A53: 2/09 | B53: 23.25 | C53: 2/09 23.25 POS PURCHASE GOLDEN HIL PASO ROBLES CA 00N1GR *****8244 02/09 09:49 | D53: 70 | E53: 2/09 09:49 | F53: 2/09 23.25 POS PURCHASE GOLDEN HIL PASO ROBLES CA 00N1GR *****8244 0 | K53: 2/09 | L53: 23.25 | M53: POS PURCHASE GOLDEN HIL PASO ROBLES CA 00N1GR *****8244 0 | O53: 23.25 POS PURCHASE GOLDEN HIL PASO ROBLES CA 00N1GR *****8244 0 | P53: POS PURCHASE GOLDEN HIL PASO ROBLES CA 00N1GR *****8244 0 | Q53: 2/09 23.25 POS PURCHASE GOLDEN HIL PASO ROBLES CA 00N1GR *****8244 0
A54: 2/09 | B54: 87.96 | C54: 2/09 87.96 POS PURCHASE FOOD 4 LESS 0012 PASO ROBLES CA 986142 *****8244 02/09 15:13 | D54: 76 | E54: 2/09 15:13 | F54: 2/09 87.96 POS PURCHASE FOOD 4 LESS 0012 PASO ROBLES CA 986142 *****8244 0 | K54: 2/09 | L54: 87.96 | M54: POS PURCHASE FOOD 4 LESS 0012 PASO ROBLES CA 986142 *****8244 0 | O54: 87.96 POS PURCHASE FOOD 4 LESS 0012 PASO ROBLES CA 986142 *****8244 0 | P54: POS PURCHASE FOOD 4 LESS 0012 PASO ROBLES CA 986142 *****8244 0 | Q54: 2/09 87.96 POS PURCHASE FOOD 4 LESS 0012 PASO ROBLES CA 986142 *****8244 0
A55: 2/09 | B55: 1,000.00 | C55: 2/09 1,000.00 POS PURCHASE Third Base Market and S Paso Robles CA 679613 *****8244 02/09 12:40 | D55: 86 | E55: 2/09 12:40 | F55: 2/09 1,000.00 POS PURCHASE Third Base Market and S Paso Robles CA 679613 *****8244 0 | K55: 2/09 | L55: 1000 | M55: POS PURCHASE Third Base Market and S Paso Robles CA 679613 *****8244 0 | O55: 1,000.00 POS PURCHASE Third Base Market and S Paso Robles CA 679613 *****8244 0 | P55: POS PURCHASE Third Base Market and S Paso Robles CA 679613 *****8244 0 | Q55: 2/09 1,000.00 POS PURCHASE Third Base Market and S Paso Robles CA 679613 *****8244 0
A56: 2/09 | B56: 52.50 | C56: 2/09 52.50 POS PURCHASE GOLDEN HIL PASO ROBLES CA 00N1GR *****8244 02/09 08:36 | D56: 70 | E56: 2/09 08:36 | F56: 2/09 52.50 POS PURCHASE GOLDEN HIL PASO ROBLES CA 00N1GR *****8244 0 | K56: 2/09 | L56: 52.5 | M56: POS PURCHASE GOLDEN HIL PASO ROBLES CA 00N1GR *****8244 0 | O56: 52.50 POS PURCHASE GOLDEN HIL PASO ROBLES CA 00N1GR *****8244 0 | P56: POS PURCHASE GOLDEN HIL PASO ROBLES CA 00N1GR *****8244 0 | Q56: 2/09 52.50 POS PURCHASE GOLDEN HIL PASO ROBLES CA 00N1GR *****8244 0
A57: 2/09 | B57: 54.74 | C57: 2/09 54.74 POS PURCHASE Third Base Market and S Paso Robles CA 679613 *****8244 02/09 12:39 | D57: 83 | E57: 2/09 12:39 | F57: 2/09 54.74 POS PURCHASE Third Base Market and S Paso Robles CA 679613 *****8244 0 | K57: 2/09 | L57: 54.74 | M57: POS PURCHASE Third Base Market and S Paso Robles CA 679613 *****8244 0 | O57: 54.74 POS PURCHASE Third Base Market and S Paso Robles CA 679613 *****8244 0 | P57: POS PURCHASE Third Base Market and S Paso Robles CA 679613 *****8244 0 | Q57: 2/09 54.74 POS PURCHASE Third Base Market and S Paso Robles CA 679613 *****8244 0
A58: 2/12 | B58: 22.84 | C58: 2/12 22.84 POS PURCHASE EL CAMINO BUILDING SUPP Atascadero CA 000100 *****8244 02/12 12:07 | D58: 82 | E58: 2/12 12:07 | F58: 2/12 22.84 POS PURCHASE EL CAMINO BUILDING SUPP Atascadero CA 000100 *****8244 0 | K58: 2/12 | L58: 22.84 | M58: POS PURCHASE EL CAMINO BUILDING SUPP Atascadero CA 000100 *****8244 0 | O58: 22.84 POS PURCHASE EL CAMINO BUILDING SUPP Atascadero CA 000100 *****8244 0 | P58: POS PURCHASE EL CAMINO BUILDING SUPP Atascadero CA 000100 *****8244 0 | Q58: 2/12 22.84 POS PURCHASE EL CAMINO BUILDING SUPP Atascadero CA 000100 *****8244 0
A59: 2/12 | B59: 25.37 | C59: 2/12 25.37 POS PURCHASE TEMPLETON MARKET TEMPLETON CA 668487 *****8244 02/12 10:44 | D59: 74 | E59: 2/12 10:44 | F59: 2/12 25.37 POS PURCHASE TEMPLETON MARKET TEMPLETON CA 668487 *****8244 0 | K59: 2/12 | L59: 25.37 | M59: POS PURCHASE TEMPLETON MARKET TEMPLETON CA 668487 *****8244 0 | O59: 25.37 POS PURCHASE TEMPLETON MARKET TEMPLETON CA 668487 *****8244 0 | P59: POS PURCHASE TEMPLETON MARKET TEMPLETON CA 668487 *****8244 0 | Q59: 2/12 25.37 POS PURCHASE TEMPLETON MARKET TEMPLETON CA 668487 *****8244 0
A60: 2/12 | B60: 45.61 | C60: 2/12 45.61 POS PURCHASE SMART AND FINAL 939 PASO ROBLES CA 482200 *****8244 02/10 14:18 | D60: 79 | E60: 2/10 14:18 | F60: 2/12 45.61 POS PURCHASE SMART AND FINAL 939 PASO ROBLES CA 482200 *****8244 0 | K60: 2/12 | L60: 45.61 | M60: POS PURCHASE SMART AND FINAL 939 PASO ROBLES CA 482200 *****8244 0 | O60: 45.61 POS PURCHASE SMART AND FINAL 939 PASO ROBLES CA 482200 *****8244 0 | P60: POS PURCHASE SMART AND FINAL 939 PASO ROBLES CA 482200 *****8244 0 | Q60: 2/12 45.61 POS PURCHASE SMART AND FINAL 939 PASO ROBLES CA 482200 *****8244 0
A61: 2/12 | B61: 817.26 | C61: 2/12 817.26 POS PURCHASE EL CAMINO BUILDING SUPP Atascadero CA 000100 *****8244 02/12 11:39 | D61: 83 | E61: 2/12 11:39 | F61: 2/12 817.26 POS PURCHASE EL CAMINO BUILDING SUPP Atascadero CA 000100 *****8244 0 | K61: 2/12 | L61: 817.26 | M61: POS PURCHASE EL CAMINO BUILDING SUPP Atascadero CA 000100 *****8244 0 | O61: 817.26 POS PURCHASE EL CAMINO BUILDING SUPP Atascadero CA 000100 *****8244 0 | P61: POS PURCHASE EL CAMINO BUILDING SUPP Atascadero CA 000100 *****8244 0 | Q61: 2/12 817.26 POS PURCHASE EL CAMINO BUILDING SUPP Atascadero CA 000100 *****8244 0
A62: 2/12 | B62: 40.00 | C62: 2/12 40.00 POS PURCHASE Third Base Market and S Paso Robles CA 679613 *****8244 02/12 07:08 | D62: 83 | E62: 2/12 07:08 | F62: 2/12 40.00 POS PURCHASE Third Base Market and S Paso Robles CA 679613 *****8244 0 | K62: 2/12 | L62: 40 | M62: POS PURCHASE Third Base Market and S Paso Robles CA 679613 *****8244 0 | O62: 40.00 POS PURCHASE Third Base Market and S Paso Robles CA 679613 *****8244 0 | P62: POS PURCHASE Third Base Market and S Paso Robles CA 679613 *****8244 0 | Q62: 2/12 40.00 POS PURCHASE Third Base Market and S Paso Robles CA 679613 *****8244 0
A63: 2/12 | B63: 442.38 | C63: 2/12 442.38 Internet Transfer To 1854 2/13 381.89 Best Egg PAYMENT 45087375A SCOTT BRANDON | D63: 40 | E63: 2/13 381.89 Best Egg PAYMENT 45087375A SCOTT BRANDON | F63: 2/12 442.38 Internet Transfer To 1854 | K63: 2/12 | L63: 442.38 | M63: Internet Transfer To 1854 | O63: 442.38 Internet Transfer To 1854 | P63: Internet Transfer To 1854 | Q63: 2/12 442.38 Internet Transfer To 1854
A64: 2/13 | B64: 8.66 | C64: 2/13 8.66 POS PURCHASE CVS/PHARMACY #09925 Paso Robles CA 309925 *****8244 02/12 17:53 | D64: 27 | E64: S/PHARMACY #09925 Paso Robles CA 309925 *****8244 02/12 17:53 | F64: 2/13 8.66 POS PURCHASE CV | K64: 2/13 | L64: 8.66 | M64: POS PURCHASE CV | O64: 8.66 POS PURCHASE CV | P64: POS PURCHASE CV | Q64: 2/13 8.66 POS PURCHASE CV
A65: 2/13 | B65: 64.00 | C65: 2/13 64.00 POS PURCHASE EL CAMINO BUILDING SUPP Atascadero CA 000100 *****8244 02/13 10:05 | D65: 82 | E65: 2/13 10:05 | F65: 2/13 64.00 POS PURCHASE EL CAMINO BUILDING SUPP Atascadero CA 000100 *****8244 0 | K65: 2/13 | L65: 64 | M65: POS PURCHASE EL CAMINO BUILDING SUPP Atascadero CA 000100 *****8244 0 | O65: 64.00 POS PURCHASE EL CAMINO BUILDING SUPP Atascadero CA 000100 *****8244 0 | P65: POS PURCHASE EL CAMINO BUILDING SUPP Atascadero CA 000100 *****8244 0 | Q65: 2/13 64.00 POS PURCHASE EL CAMINO BUILDING SUPP Atascadero CA 000100 *****8244 0
A66: 2/13 | B66: 84.32 | C66: 2/13 84.32 POS PURCHASE OAK HILL MARKET PASO ROBLES CA 832598 *****8244 02/13 12:17 | D66: =FIND("/",C66,5) -> 75 | E66: 2/13 12:17 | F66: 2/13 84.32 POS PURCHASE OAK HILL MARKET PASO ROBLES CA 832598 *****8244 0 | K66: 2/13 | L66: 84.32 | M66: POS PURCHASE OAK HILL MARKET PASO ROBLES CA 832598 *****8244 0 | O66: 84.32 POS PURCHASE OAK HILL MARKET PASO ROBLES CA 832598 *****8244 0 | P66: POS PURCHASE OAK HILL MARKET PASO ROBLES CA 832598 *****8244 0 | Q66: 2/13 84.32 POS PURCHASE OAK HILL MARKET PASO ROBLES CA 832598 *****8244 0
A67: 2/13 | B67: 40.00 | C67: 2/13 40.00 POS PURCHASE Third Base Market and S Paso Robles CA 679613 *****8244 02/13 07:22 | D67: 83 | E67: 2/13 07:22 | F67: 2/13 40.00 POS PURCHASE Third Base Market and S Paso Robles CA 679613 *****8244 0 | K67: 2/13 | L67: 40 | M67: POS PURCHASE Third Base Market and S Paso Robles CA 679613 *****8244 0 | O67: 40.00 POS PURCHASE Third Base Market and S Paso Robles CA 679613 *****8244 0 | P67: POS PURCHASE Third Base Market and S Paso Robles CA 679613 *****8244 0 | Q67: 2/13 40.00 POS PURCHASE Third Base Market and S Paso Robles CA 679613 *****8244 0
A68: 2/13 | B68: 44.35 | C68: 2/13 44.35 POS PURCHASE Third Base Market and S Paso Robles CA 679613 *****8244 02/13 10:07 | D68: 83 | E68: 2/13 10:07 | F68: 2/13 44.35 POS PURCHASE Third Base Market and S Paso Robles CA 679613 *****8244 0 | K68: 2/13 | L68: 44.35 | M68: POS PURCHASE Third Base Market and S Paso Robles CA 679613 *****8244 0 | O68: 44.35 POS PURCHASE Third Base Market and S Paso Robles CA 679613 *****8244 0 | P68: POS PURCHASE Third Base Market and S Paso Robles CA 679613 *****8244 0 | Q68: 2/13 44.35 POS PURCHASE Third Base Market and S Paso Robles CA 679613 *****8244 0
A69: 2/13 | B69: 381.89 | C69: 2/13 381.89 Best Egg PAYMENT 45087375A SCOTT BRANDON 2/15 100.00 CAPITAL ONE/ONLINE PMT | D69: 55 | E69: 2/15 100.00 CAPITAL ONE/ONLINE PMT | F69: 2/13 381.89 Best Egg PAYMENT 45087375A SCOTT BRANDON | K69: 2/13 | L69: 381.89 | M69: Best Egg PAYMENT 45087375A SCOTT BRANDON | O69: 381.89 Best Egg PAYMENT 45087375A SCOTT BRANDON | P69: Best Egg PAYMENT 45087375A SCOTT BRANDON | Q69: 2/13 381.89 Best Egg PAYMENT 45087375A SCOTT BRANDON
A70: 2/14 | B70: 13.03 | C70: 2/14 13.03 POS PURCHASE TEMPLETON MARKET TEMPLETON CA 668487 *****8244 02/14 08:23 | D70: 74 | E70: 2/14 08:23 | F70: 2/14 13.03 POS PURCHASE TEMPLETON MARKET TEMPLETON CA 668487 *****8244 0 | K70: 2/14 | L70: 13.03 | M70: POS PURCHASE TEMPLETON MARKET TEMPLETON CA 668487 *****8244 0 | O70: 13.03 POS PURCHASE TEMPLETON MARKET TEMPLETON CA 668487 *****8244 0 | P70: POS PURCHASE TEMPLETON MARKET TEMPLETON CA 668487 *****8244 0 | Q70: 2/14 13.03 POS PURCHASE TEMPLETON MARKET TEMPLETON CA 668487 *****8244 0
A71: 2/14 | B71: 14.36 | C71: 2/14 14.36 POS PURCHASE LOWE'S #2730 PASO ROBLES CA 001 *****8244 02/14 10:08 | D71: 69 | E71: 2/14 10:08 | F71: 2/14 14.36 POS PURCHASE LOWE'S #2730 PASO ROBLES CA 001 *****8244 0 | K71: 2/14 | L71: 14.36 | M71: POS PURCHASE LOWE'S #2730 PASO ROBLES CA 001 *****8244 0 | O71: 14.36 POS PURCHASE LOWE'S #2730 PASO ROBLES CA 001 *****8244 0 | P71: POS PURCHASE LOWE'S #2730 PASO ROBLES CA 001 *****8244 0 | Q71: 2/14 14.36 POS PURCHASE LOWE'S #2730 PASO ROBLES CA 001 *****8244 0
A72: 2/14 | B72: 23.00 | C72: 2/14 23.00 POS PURCHASE GOLDEN HIL PASO ROBLES CA 00N1GR *****8244 02/14 12:59 | D72: 70 | E72: 2/14 12:59 | F72: 2/14 23.00 POS PURCHASE GOLDEN HIL PASO ROBLES CA 00N1GR *****8244 0 | K72: 2/14 | L72: 23 | M72: POS PURCHASE GOLDEN HIL PASO ROBLES CA 00N1GR *****8244 0 | O72: 23.00 POS PURCHASE GOLDEN HIL PASO ROBLES CA 00N1GR *****8244 0 | P72: POS PURCHASE GOLDEN HIL PASO ROBLES CA 00N1GR *****8244 0 | Q72: 2/14 23.00 POS PURCHASE GOLDEN HIL PASO ROBLES CA 00N1GR *****8244 0
A73: 2/14 | B73: 41.28 | C73: 2/14 41.28 POS PURCHASE LOWE'S #2730 PASO ROBLES CA 001 *****8244 02/14 11:55 | D73: 69 | E73: 2/14 11:55 | F73: 2/14 41.28 POS PURCHASE LOWE'S #2730 PASO ROBLES CA 001 *****8244 0 | K73: 2/14 | L73: 41.28 | M73: POS PURCHASE LOWE'S #2730 PASO ROBLES CA 001 *****8244 0 | O73: 41.28 POS PURCHASE LOWE'S #2730 PASO ROBLES CA 001 *****8244 0 | P73: POS PURCHASE LOWE'S #2730 PASO ROBLES CA 001 *****8244 0 | Q73: 2/14 41.28 POS PURCHASE LOWE'S #2730 PASO ROBLES CA 001 *****8244 0
A74: 2/15 | B74: 31.00 | C74: 2/15 31.00 POS PURCHASE GOLDEN HIL PASO ROBLES CA 00N1GR *****8244 02/15 10:07 | D74: 70 | E74: 2/15 10:07 | F74: 2/15 31.00 POS PURCHASE GOLDEN HIL PASO ROBLES CA 00N1GR *****8244 0 | K74: 2/15 | L74: 31 | M74: POS PURCHASE GOLDEN HIL PASO ROBLES CA 00N1GR *****8244 0 | O74: 31.00 POS PURCHASE GOLDEN HIL PASO ROBLES CA 00N1GR *****8244 0 | P74: POS PURCHASE GOLDEN HIL PASO ROBLES CA 00N1GR *****8244 0 | Q74: 2/15 31.00 POS PURCHASE GOLDEN HIL PASO ROBLES CA 00N1GR *****8244 0
A75: 2/15 | B75: 30.00 | C75: 2/15 30.00 POS PURCHASE GOLDEN HIL PASO ROBLES CA 00N1GR *****8244 02/15 10:11 | D75: 70 | E75: 2/15 10:11 | F75: 2/15 30.00 POS PURCHASE GOLDEN HIL PASO ROBLES CA 00N1GR *****8244 0 | K75: 2/15 | L75: 30 | M75: POS PURCHASE GOLDEN HIL PASO ROBLES CA 00N1GR *****8244 0 | O75: 30.00 POS PURCHASE GOLDEN HIL PASO ROBLES CA 00N1GR *****8244 0 | P75: POS PURCHASE GOLDEN HIL PASO ROBLES CA 00N1GR *****8244 0 | Q75: 2/15 30.00 POS PURCHASE GOLDEN HIL PASO ROBLES CA 00N1GR *****8244 0
A76: 2/15 | B76: 39.60 | C76: 2/15 39.60 POS PURCHASE TST* OFF THE 46 MEXICAN Paso Robles CA IN0700 *****8244 02/14 17:49 | D76: 83 | E76: 2/14 17:49 | F76: 2/15 39.60 POS PURCHASE TST* OFF THE 46 MEXICAN Paso Robles CA IN0700 *****8244 0 | K76: 2/15 | L76: 39.6 | M76: POS PURCHASE TST* OFF THE 46 MEXICAN Paso Robles CA IN0700 *****8244 0 | O76: 39.60 POS PURCHASE TST* OFF THE 46 MEXICAN Paso Robles CA IN0700 *****8244 0 | P76: POS PURCHASE TST* OFF THE 46 MEXICAN Paso Robles CA IN0700 *****8244 0 | Q76: 2/15 39.60 POS PURCHASE TST* OFF THE 46 MEXICAN Paso Robles CA IN0700 *****8244 0
A77: 2/15 | B77: 48.09 | C77: 2/15 48.09 POS PURCHASE TEMPLETON MARKET TEMPLETON CA 668487 *****8244 02/15 15:47 | D77: 74 | E77: 2/15 15:47 | F77: 2/15 48.09 POS PURCHASE TEMPLETON MARKET TEMPLETON CA 668487 *****8244 0 | K77: 2/15 | L77: 48.09 | M77: POS PURCHASE TEMPLETON MARKET TEMPLETON CA 668487 *****8244 0 | O77: 48.09 POS PURCHASE TEMPLETON MARKET TEMPLETON CA 668487 *****8244 0 | P77: POS PURCHASE TEMPLETON MARKET TEMPLETON CA 668487 *****8244 0 | Q77: 2/15 48.09 POS PURCHASE TEMPLETON MARKET TEMPLETON CA 668487 *****8244 0
A78: 2/15 | B78: 100.00 | C78: 2/15 100.00 CAPITAL ONE/ONLINE PMT 3WYJJXQ734JCJ18 SCOTT BRANDON 2/15 340.00 DISCOVER/E-PAYMENT | D78: 24 | E78: E/ONLINE PMT 3WYJJXQ734JCJ18 SCOTT BRANDON 2/15 340.00 DISCOVER/E-PAYMENT | F78: 2/15 100.00 CAPITAL ON | K78: 2/15 | L78: 100 | M78: CAPITAL ON | O78: 100.00 CAPITAL ON | P78: CAPITAL ON | Q78: 2/15 100.00 CAPITAL ON
A79: 2/15 | B79: 340.00 | C79: 2/15 340.00 DISCOVER/E-PAYMENT 2336 BRANDON VICTOR 2/22 2,120.00 TELLER WITHDRAWL | D79: 21 | E79: R/E-PAYMENT 2336 BRANDON VICTOR 2/22 2,120.00 TELLER WITHDRAWL | F79: 2/15 340.00 DISCOVE | K79: 2/15 | L79: 340 | M79: DISCOVE | O79: 340.00 DISCOVE | P79: DISCOVE | Q79: 2/15 340.00 DISCOVE
A80: 2/16 | B80: 31.99 | C80: 2/16 31.99 POS PURCHASE GOLDEN HIL PASO ROBLES CA 00N1GR *****8244 02/16 10:47 | D80: 70 | E80: 2/16 10:47 | F80: 2/16 31.99 POS PURCHASE GOLDEN HIL PASO ROBLES CA 00N1GR *****8244 0 | K80: 2/16 | L80: 31.99 | M80: POS PURCHASE GOLDEN HIL PASO ROBLES CA 00N1GR *****8244 0 | O80: 31.99 POS PURCHASE GOLDEN HIL PASO ROBLES CA 00N1GR *****8244 0 | P80: POS PURCHASE GOLDEN HIL PASO ROBLES CA 00N1GR *****8244 0 | Q80: 2/16 31.99 POS PURCHASE GOLDEN HIL PASO ROBLES CA 00N1GR *****8244 0
A81: 2/16 | B81: 44.35 | C81: 2/16 44.35 POS PURCHASE Third Base Market and S Paso Robles CA 679613 *****8244 02/16 08:55 | D81: 83 | E81: 2/16 08:55 | F81: 2/16 44.35 POS PURCHASE Third Base Market and S Paso Robles CA 679613 *****8244 0 | K81: 2/16 | L81: 44.35 | M81: POS PURCHASE Third Base Market and S Paso Robles CA 679613 *****8244 0 | O81: 44.35 POS PURCHASE Third Base Market and S Paso Robles CA 679613 *****8244 0 | P81: POS PURCHASE Third Base Market and S Paso Robles CA 679613 *****8244 0 | Q81: 2/16 44.35 POS PURCHASE Third Base Market and S Paso Robles CA 679613 *****8244 0
A82: 2/20 | B82: 26.18 | C82: 2/20 26.18 POS PURCHASE TEMPLETON MARKET TEMPLETON CA 668487 *****8244 02/19 11:16 | D82: 74 | E82: 2/19 11:16 | F82: 2/20 26.18 POS PURCHASE TEMPLETON MARKET TEMPLETON CA 668487 *****8244 0 | K82: 2/20 | L82: 26.18 | M82: POS PURCHASE TEMPLETON MARKET TEMPLETON CA 668487 *****8244 0 | O82: 26.18 POS PURCHASE TEMPLETON MARKET TEMPLETON CA 668487 *****8244 0 | P82: POS PURCHASE TEMPLETON MARKET TEMPLETON CA 668487 *****8244 0 | Q82: 2/20 26.18 POS PURCHASE TEMPLETON MARKET TEMPLETON CA 668487 *****8244 0
A83: 2/20 | B83: 120.01 | C83: 2/20 120.01 POS PURCHASE FOOD 4 LESS 0012 PASO ROBLES CA 986142 *****2385 02/17 12:56 | D83: 77 | E83: 2/17 12:56 | F83: 2/20 120.01 POS PURCHASE FOOD 4 LESS 0012 PASO ROBLES CA 986142 *****2385 0 | K83: 2/20 | L83: 120.01 | M83: POS PURCHASE FOOD 4 LESS 0012 PASO ROBLES CA 986142 *****2385 0 | O83: 120.01 POS PURCHASE FOOD 4 LESS 0012 PASO ROBLES CA 986142 *****2385 0 | P83: POS PURCHASE FOOD 4 LESS 0012 PASO ROBLES CA 986142 *****2385 0 | Q83: 2/20 120.01 POS PURCHASE FOOD 4 LESS 0012 PASO ROBLES CA 986142 *****2385 0
A84: 2/20 | B84: 60.00 | C84: 2/20 60.00 POS PURCHASE GOLDEN HIL PASO ROBLES CA 00N1GR *****8244 02/19 10:39 | D84: 70 | E84: =RIGHT(C84,LEN(C84)-(D84-2)) -> 2/19 10:39 | F84: =SUBSTITUTE(C84,E84,"") -> 2/20 60.00 POS PURCHASE GOLDEN HIL PASO ROBLES CA 00N1GR *****8244 0 | K84: 2/20 | L84: 60 | M84: POS PURCHASE GOLDEN HIL PASO ROBLES CA 00N1GR *****8244 0 | O84: 60.00 POS PURCHASE GOLDEN HIL PASO ROBLES CA 00N1GR *****8244 0 | P84: POS PURCHASE GOLDEN HIL PASO ROBLES CA 00N1GR *****8244 0 | Q84: 2/20 60.00 POS PURCHASE GOLDEN HIL PASO ROBLES CA 00N1GR *****8244 0
A85: 2/21 | B85: 33.69 | C85: 2/21 33.69 POS PURCHASE TRACTOR SUPPLY CO #1609 PASO ROBLES CA 090001 *****2385 02/21 14:27 | D85: 83 | E85: 2/21 14:27 | F85: 2/21 33.69 POS PURCHASE TRACTOR SUPPLY CO #1609 PASO ROBLES CA 090001 *****2385 0 | K85: 2/21 | L85: 33.69 | M85: POS PURCHASE TRACTOR SUPPLY CO #1609 PASO ROBLES CA 090001 *****2385 0 | O85: 33.69 POS PURCHASE TRACTOR SUPPLY CO #1609 PASO ROBLES CA 090001 *****2385 0 | P85: POS PURCHASE TRACTOR SUPPLY CO #1609 PASO ROBLES CA 090001 *****2385 0 | Q85: 2/21 33.69 POS PURCHASE TRACTOR SUPPLY CO #1609 PASO ROBLES CA 090001 *****2385 0
A86: 2/21 | B86: 12.08 | C86: 2/21 12.08 POS PURCHASE SQ *JOEBELLA COFFEE PAS Paso Robles CA INB800 *****8244 02/21 17:45 | D86: 83 | E86: 2/21 17:45 | F86: 2/21 12.08 POS PURCHASE SQ *JOEBELLA COFFEE PAS Paso Robles CA INB800 *****8244 0 | K86: 2/21 | L86: 12.08 | M86: POS PURCHASE SQ *JOEBELLA COFFEE PAS Paso Robles CA INB800 *****8244 0 | O86: 12.08 POS PURCHASE SQ *JOEBELLA COFFEE PAS Paso Robles CA INB800 *****8244 0 | P86: POS PURCHASE SQ *JOEBELLA COFFEE PAS Paso Robles CA INB800 *****8244 0 | Q86: 2/21 12.08 POS PURCHASE SQ *JOEBELLA COFFEE PAS Paso Robles CA INB800 *****8244 0
A87: 2/21 | B87: 66.05 | C87: 2/21 66.05 POS PURCHASE TEMPLETON MARKET TEMPLETON CA 668487 *****8244 02/21 12:27 | D87: 74 | E87: 2/21 12:27 | F87: 2/21 66.05 POS PURCHASE TEMPLETON MARKET TEMPLETON CA 668487 *****8244 0 | K87: 2/21 | L87: 66.05 | M87: POS PURCHASE TEMPLETON MARKET TEMPLETON CA 668487 *****8244 0 | O87: 66.05 POS PURCHASE TEMPLETON MARKET TEMPLETON CA 668487 *****8244 0 | P87: POS PURCHASE TEMPLETON MARKET TEMPLETON CA 668487 *****8244 0 | Q87: 2/21 66.05 POS PURCHASE TEMPLETON MARKET TEMPLETON CA 668487 *****8244 0
A88: 2/22 | B88: 7.70 | C88: 2/22 7.70 POS PURCHASE LOWE'S #2730 PASO ROBLES CA 001 *****8244 02/22 11:08 | D88: 68 | E88: 2/22 11:08 | F88: 2/22 7.70 POS PURCHASE LOWE'S #2730 PASO ROBLES CA 001 *****8244 0 | K88: 2/22 | L88: 7.7 | M88: POS PURCHASE LOWE'S #2730 PASO ROBLES CA 001 *****8244 0 | O88: 7.70 POS PURCHASE LOWE'S #2730 PASO ROBLES CA 001 *****8244 0 | P88: POS PURCHASE LOWE'S #2730 PASO ROBLES CA 001 *****8244 0 | Q88: 2/22 7.70 POS PURCHASE LOWE'S #2730 PASO ROBLES CA 001 *****8244 0
A89: 2/22 | B89: 11.02 | C89: 2/22 11.02 POS PURCHASE SMART AND FINAL 939 PASO ROBLES CA 482200 *****8244 02/22 13:27 | D89: 79 | E89: 2/22 13:27 | F89: 2/22 11.02 POS PURCHASE SMART AND FINAL 939 PASO ROBLES CA 482200 *****8244 0 | K89: 2/22 | L89: 11.02 | M89: POS PURCHASE SMART AND FINAL 939 PASO ROBLES CA 482200 *****8244 0 | O89: 11.02 POS PURCHASE SMART AND FINAL 939 PASO ROBLES CA 482200 *****8244 0 | P89: POS PURCHASE SMART AND FINAL 939 PASO ROBLES CA 482200 *****8244 0 | Q89: 2/22 11.02 POS PURCHASE SMART AND FINAL 939 PASO ROBLES CA 482200 *****8244 0
A90: 2/22 | B90: 22.00 | C90: 2/22 22.00 POS PURCHASE GOLDEN HIL PASO ROBLES CA 00N1GR *****8244 02/22 12:42 | D90: 70 | E90: 2/22 12:42 | F90: 2/22 22.00 POS PURCHASE GOLDEN HIL PASO ROBLES CA 00N1GR *****8244 0 | K90: 2/22 | L90: 22 | M90: POS PURCHASE GOLDEN HIL PASO ROBLES CA 00N1GR *****8244 0 | O90: 22.00 POS PURCHASE GOLDEN HIL PASO ROBLES CA 00N1GR *****8244 0 | P90: POS PURCHASE GOLDEN HIL PASO ROBLES CA 00N1GR *****8244 0 | Q90: 2/22 22.00 POS PURCHASE GOLDEN HIL PASO ROBLES CA 00N1GR *****8244 0
A91: 2/22 | B91: 25.50 | C91: 2/22 25.50 POS PURCHASE GOLDEN HIL PASO ROBLES CA 00N1GR *****8244 02/22 07:49 | D91: 70 | E91: 2/22 07:49 | F91: 2/22 25.50 POS PURCHASE GOLDEN HIL PASO ROBLES CA 00N1GR *****8244 0 | K91: 2/22 | L91: 25.5 | M91: POS PURCHASE GOLDEN HIL PASO ROBLES CA 00N1GR *****8244 0 | O91: =SUBSTITUTE(Q91,A91,"") -> 25.50 POS PURCHASE GOLDEN HIL PASO ROBLES CA 00N1GR *****8244 0 | P91: =TRIM(SUBSTITUTE(O91,B91,"")) -> POS PURCHASE GOLDEN HIL PASO ROBLES CA 00N1GR *****8244 0 | Q91: 2/22 25.50 POS PURCHASE GOLDEN HIL PASO ROBLES CA 00N1GR *****8244 0
A92: 2/22 | B92: 11.70 | C92: 2/22 11.70 POS PURCHASE THIRD BASE MARKET AND S PASO ROBLES CA 00 *****8244 02/21 04:28 | D92: 79 | E92: 2/21 04:28 | F92: 2/22 11.70 POS PURCHASE THIRD BASE MARKET AND S PASO ROBLES CA 00 *****8244 0 | K92: 2/22 | L92: 11.7 | M92: POS PURCHASE THIRD BASE MARKET AND S PASO ROBLES CA 00 *****8244 0 | O92: 11.70 POS PURCHASE THIRD BASE MARKET AND S PASO ROBLES CA 00 *****8244 0 | P92: POS PURCHASE THIRD BASE MARKET AND S PASO ROBLES CA 00 *****8244 0 | Q92: 2/22 11.70 POS PURCHASE THIRD BASE MARKET AND S PASO ROBLES CA 00 *****8244 0
A93: 2/22 | B93: 44.35 | C93: 2/22 44.35 POS PURCHASE Third Base Market and S Paso Robles CA 679613 *****8244 02/22 08:26 | D93: 83 | E93: 2/22 08:26 | F93: 2/22 44.35 POS PURCHASE Third Base Market and S Paso Robles CA 679613 *****8244 0 | K93: 2/22 | L93: 44.35 | M93: POS PURCHASE Third Base Market and S Paso Robles CA 679613 *****8244 0 | O93: 44.35 POS PURCHASE Third Base Market and S Paso Robles CA 679613 *****8244 0 | P93: POS PURCHASE Third Base Market and S Paso Robles CA 679613 *****8244 0 | Q93: 2/22 44.35 POS PURCHASE Third Base Market and S Paso Robles CA 679613 *****8244 0
A94: 2/22 | B94: 2,120.00 | C94: 2/22 2,120.00 TELLER WITHDRAWL 2/22 438.96 Internet Transfer To 1854 2/23 23.69 PPB #6601444972 PAYMENT | D94: 33 | E94: 2/22 438.96 Internet Transfer To 1854 2/23 23.69 PPB #6601444972 PAYMENT | F94: 2/22 2,120.00 TELLER WITHDRAWL | K94: 2/22 | L94: 2120 | M94: TELLER WITHDRAWL | O94: 2,120.00 TELLER WITHDRAWL | P94: TELLER WITHDRAWL | Q94: 2/22 2,120.00 TELLER WITHDRAWL
A95: 2/22 | B95: 438.96 | C95: 2/22 438.96 Internet Transfer To 1854 2/23 23.69 PPB #6601444972 PAYMENT 2/29 .20 DEPOSIT CORRECTION DEBIT | D95: 40 | E95: 2/23 23.69 PPB #6601444972 PAYMENT 2/29 .20 DEPOSIT CORRECTION DEBIT | F95: 2/22 438.96 Internet Transfer To 1854 | K95: 2/22 | L95: 438.96 | M95: Internet Transfer To 1854 | O95: 438.96 Internet Transfer To 1854 | P95: Internet Transfer To 1854 | Q95: 2/22 438.96 Internet Transfer To 1854
A96: 2/23 | B96: 50.16 | C96: 2/23 50.16 POS PURCHASE SAN PASO TRUCK STOP PASO ROBLES CA 552145 *****8244 02/23 07:54 | D96: 79 | E96: 2/23 07:54 | F96: 2/23 50.16 POS PURCHASE SAN PASO TRUCK STOP PASO ROBLES CA 552145 *****8244 0 | K96: 2/23 | L96: 50.16 | M96: POS PURCHASE SAN PASO TRUCK STOP PASO ROBLES CA 552145 *****8244 0 | O96: 50.16 POS PURCHASE SAN PASO TRUCK STOP PASO ROBLES CA 552145 *****8244 0 | P96: POS PURCHASE SAN PASO TRUCK STOP PASO ROBLES CA 552145 *****8244 0 | Q96: 2/23 50.16 POS PURCHASE SAN PASO TRUCK STOP PASO ROBLES CA 552145 *****8244 0
A97: 2/23 | B97: 23.69 | C97: 2/23 23.69 PPB #6601444972 PAYMENT 2/29 .20 DEPOSIT CORRECTION DEBIT 2/29 2,177.19 HEADWAYCAPITAL 1/HEADWAY | D97: 37 | E97: 2/29 .20 DEPOSIT CORRECTION DEBIT 2/29 2,177.19 HEADWAYCAPITAL 1/HEADWAY | F97: 2/23 23.69 PPB #6601444972 PAYMENT | K97: 2/23 | L97: 23.69 | M97: PPB #6601444972 PAYMENT | O97: 23.69 PPB #6601444972 PAYMENT | P97: PPB #6601444972 PAYMENT | Q97: 2/23 23.69 PPB #6601444972 PAYMENT
A98: 2/26 | B98: 13.48 | C98: 2/26 13.48 POS PURCHASE PLEYTO STORE BRADLEY CA 00 *****8244 02/23 04:57 | D98: 64 | E98: 2/23 04:57 | F98: 2/26 13.48 POS PURCHASE PLEYTO STORE BRADLEY CA 00 *****8244 0 | K98: 2/26 | L98: 13.48 | M98: POS PURCHASE PLEYTO STORE BRADLEY CA 00 *****8244 0 | O98: 13.48 POS PURCHASE PLEYTO STORE BRADLEY CA 00 *****8244 0 | P98: POS PURCHASE PLEYTO STORE BRADLEY CA 00 *****8244 0 | Q98: 2/26 13.48 POS PURCHASE PLEYTO STORE BRADLEY CA 00 *****8244 0
A99: 2/27 | B99: 55.80 | C99: 2/27 55.80 POS PURCHASE SPRING STREET MART PASO ROBLES CA 107212 *****8244 02/27 10:06 | D99: 78 | E99: 2/27 10:06 | F99: 2/27 55.80 POS PURCHASE SPRING STREET MART PASO ROBLES CA 107212 *****8244 0 | K99: 2/27 | L99: 55.8 | M99: POS PURCHASE SPRING STREET MART PASO ROBLES CA 107212 *****8244 0 | O99: 55.80 POS PURCHASE SPRING STREET MART PASO ROBLES CA 107212 *****8244 0 | P99: POS PURCHASE SPRING STREET MART PASO ROBLES CA 107212 *****8244 0 | Q99: 2/27 55.80 POS PURCHASE SPRING STREET MART PASO ROBLES CA 107212 *****8244 0
A100: 2/29 | B100: 47.91 | C100: 2/29 47.91 POS PURCHASE SMART AND FINAL 392 PASO ROBLES CA 481922 *****8244 02/29 14:11 | D100: 79 | E100: 2/29 14:11 | F100: 2/29 47.91 POS PURCHASE SMART AND FINAL 392 PASO ROBLES CA 481922 *****8244 0 | K100: 2/29 | L100: 47.91 | M100: POS PURCHASE SMART AND FINAL 392 PASO ROBLES CA 481922 *****8244 0 | O100: 47.91 POS PURCHASE SMART AND FINAL 392 PASO ROBLES CA 481922 *****8244 0 | P100: POS PURCHASE SMART AND FINAL 392 PASO ROBLES CA 481922 *****8244 0 | Q100: 2/29 47.91 POS PURCHASE SMART AND FINAL 392 PASO ROBLES CA 481922 *****8244 0
A101: 2/29 | B101: 48.61 | C101: 2/29 48.61 POS PURCHASE Third Base Market and S Paso Robles CA 679613 *****8244 02/29 12:53 | D101: 83 | E101: 2/29 12:53 | F101: 2/29 48.61 POS PURCHASE Third Base Market and S Paso Robles CA 679613 *****8244 0 | K101: 2/29 | L101: 48.61 | M101: POS PURCHASE Third Base Market and S Paso Robles CA 679613 *****8244 0 | O101: 48.61 POS PURCHASE Third Base Market and S Paso Robles CA 679613 *****8244 0 | P101: POS PURCHASE Third Base Market and S Paso Robles CA 679613 *****8244 0 | Q101: 2/29 48.61 POS PURCHASE Third Base Market and S Paso Robles CA 679613 *****8244 0
A102: 2/29 | B102: .20 | C102: 2/29 .20 DEPOSIT CORRECTION DEBIT 2/29 2,177.19 HEADWAYCAPITAL 1/HEADWAY 194502294 VICTOR BRANDON | D102: 36 | E102: 2/29 2,177.19 HEADWAYCAPITAL 1/HEADWAY 194502294 VICTOR BRANDON | F102: 2/29 .20 DEPOSIT CORRECTION DEBIT | K102: 2/29 | L102: 0.2 | M102: DEPOSIT CORRECTION DEBIT | O102: .20 DEPOSIT CORRECTION DEBIT | P102: DEPOSIT CORRECTION DEBIT | Q102: 2/29 .20 DEPOSIT CORRECTION DEBIT
A103: 2/29 | B103: 2,177.19 | C103: 2/29 2,177.19 HEADWAYCAPITAL 1/HEADWAY 194502294 VICTOR BRANDON 2/29 10.00 BALANCE REQUIREMENT FEE | D103: 31 | E103: 1/HEADWAY 194502294 VICTOR BRANDON 2/29 10.00 BALANCE REQUIREMENT FEE | F103: 2/29 2,177.19 HEADWAYCAPITAL | K103: 2/29 | L103: 2177.19 | M103: HEADWAYCAPITAL | O103: 2,177.19 HEADWAYCAPITAL | P103: HEADWAYCAPITAL | Q103: 2/29 2,177.19 HEADWAYCAPITAL
A104: 2/29 | B104: 10.00 | C104: 2/29 10.00 BALANCE REQUIREMENT FEE 2/29 2.00 PAPER STATEMENT FEE 3/01 12.00 Internet Transfer To 1854 | D104: 37 | E104: 2/29 2.00 PAPER STATEMENT FEE 3/01 12.00 Internet Transfer To 1854 | F104: 2/29 10.00 BALANCE REQUIREMENT FEE | K104: 2/29 | L104: 10 | M104: BALANCE REQUIREMENT FEE | O104: 10.00 BALANCE REQUIREMENT FEE | P104: BALANCE REQUIREMENT FEE | Q104: 2/29 10.00 BALANCE REQUIREMENT FEE
A105: 2/29 | B105: 2.00 | C105: 2/29 2.00 PAPER STATEMENT FEE 3/01 12.00 Internet Transfer To 1854 3/01 2,667.30 Internet Transfer To 1684 | D105: 32 | E105: 3/01 12.00 Internet Transfer To 1854 3/01 2,667.30 Internet Transfer To 1684 | F105: 2/29 2.00 PAPER STATEMENT FEE | K105: 2/29 | L105: 2 | M105: PAPER STATEMENT FEE | O105: 2.00 PAPER STATEMENT FEE | P105: PAPER STATEMENT FEE | Q105: 2/29 2.00 PAPER STATEMENT FEE
A106: 3/01 | B106: 1,175.86 | C106: 3/01 1,175.86 POS PURCHASE KRITZ EXCAVATING AND T PASO ROBLES CA 090286 *****2385 03/01 13:24 | D106: 85 | E106: 3/01 13:24 | F106: 3/01 1,175.86 POS PURCHASE KRITZ EXCAVATING AND T PASO ROBLES CA 090286 *****2385 0 | K106: 3/01 | L106: 1175.86 | M106: POS PURCHASE KRITZ EXCAVATING AND T PASO ROBLES CA 090286 *****2385 0 | O106: 1,175.86 POS PURCHASE KRITZ EXCAVATING AND T PASO ROBLES CA 090286 *****2385 0 | P106: POS PURCHASE KRITZ EXCAVATING AND T PASO ROBLES CA 090286 *****2385 0 | Q106: 3/01 1,175.86 POS PURCHASE KRITZ EXCAVATING AND T PASO ROBLES CA 090286 *****2385 0
A107: 3/01 | B107: 66.43 | C107: 3/01 66.43 POS PURCHASE Third Base Market and S Paso Robles CA 679613 *****8244 03/01 13:01 | D107: 83 | E107: 3/01 13:01 | F107: 3/01 66.43 POS PURCHASE Third Base Market and S Paso Robles CA 679613 *****8244 0 | K107: 3/01 | L107: 66.43 | M107: POS PURCHASE Third Base Market and S Paso Robles CA 679613 *****8244 0 | O107: 66.43 POS PURCHASE Third Base Market and S Paso Robles CA 679613 *****8244 0 | P107: POS PURCHASE Third Base Market and S Paso Robles CA 679613 *****8244 0 | Q107: 3/01 66.43 POS PURCHASE Third Base Market and S Paso Robles CA 679613 *****8244 0
A108: 3/01 | B108: 12.00 | C108: 3/01 12.00 Internet Transfer To 1854 3/01 2,667.30 Internet Transfer To 1684 3/06 2,376.09 Internet Transfer To 1854 | D108: 39 | E108: 3/01 2,667.30 Internet Transfer To 1684 3/06 2,376.09 Internet Transfer To 1854 | F108: 3/01 12.00 Internet Transfer To 1854 | K108: 3/01 | L108: 12 | M108: Internet Transfer To 1854 | O108: 12.00 Internet Transfer To 1854 | P108: Internet Transfer To 1854 | Q108: 3/01 12.00 Internet Transfer To 1854
A109: 3/01 | B109: 2,667.30 | C109: 3/01 2,667.30 Internet Transfer To 1684 3/06 2,376.09 Internet Transfer To 1854 3/06 4,200.00 Internet Transfer To 1854 | D109: 42 | E109: 3/06 2,376.09 Internet Transfer To 1854 3/06 4,200.00 Internet Transfer To 1854 | F109: 3/01 2,667.30 Internet Transfer To 1684 | K109: 3/01 | L109: 2667.3 | M109: Internet Transfer To 1684 | O109: 2,667.30 Internet Transfer To 1684 | P109: Internet Transfer To 1684 | Q109: 3/01 2,667.30 Internet Transfer To 1684
A110: 3/04 | B110: 9.65 | C110: 3/04 9.65 POS PURCHASE TEMPLETON MARKET TEMPLETON CA 668487 *****8244 03/04 09:56 | D110: 73 | E110: 3/04 09:56 | F110: 3/04 9.65 POS PURCHASE TEMPLETON MARKET TEMPLETON CA 668487 *****8244 0 | K110: 3/04 | L110: 9.65 | M110: POS PURCHASE TEMPLETON MARKET TEMPLETON CA 668487 *****8244 0 | O110: 9.65 POS PURCHASE TEMPLETON MARKET TEMPLETON CA 668487 *****8244 0 | P110: POS PURCHASE TEMPLETON MARKET TEMPLETON CA 668487 *****8244 0 | Q110: 3/04 9.65 POS PURCHASE TEMPLETON MARKET TEMPLETON CA 668487 *****8244 0
A111: 3/04 | B111: 16.00 | C111: 3/04 16.00 POS PURCHASE GOLDEN HIL PASO ROBLES CA 00N1GR *****8244 03/03 17:07 | D111: 70 | E111: 3/03 17:07 | F111: 3/04 16.00 POS PURCHASE GOLDEN HIL PASO ROBLES CA 00N1GR *****8244 0 | K111: 3/04 | L111: 16 | M111: POS PURCHASE GOLDEN HIL PASO ROBLES CA 00N1GR *****8244 0 | O111: 16.00 POS PURCHASE GOLDEN HIL PASO ROBLES CA 00N1GR *****8244 0 | P111: POS PURCHASE GOLDEN HIL PASO ROBLES CA 00N1GR *****8244 0 | Q111: 3/04 16.00 POS PURCHASE GOLDEN HIL PASO ROBLES CA 00N1GR *****8244 0
A112: 3/04 | B112: 23.88 | C112: 3/04 23.88 POS PURCHASE NST THE HOME DEPOT 0029 ATASCADERO CA 061394 *****8244 03/04 08:57 | D112: 82 | E112: 3/04 08:57 | F112: 3/04 23.88 POS PURCHASE NST THE HOME DEPOT 0029 ATASCADERO CA 061394 *****8244 0 | K112: 3/04 | L112: 23.88 | M112: POS PURCHASE NST THE HOME DEPOT 0029 ATASCADERO CA 061394 *****8244 0 | O112: 23.88 POS PURCHASE NST THE HOME DEPOT 0029 ATASCADERO CA 061394 *****8244 0 | P112: POS PURCHASE NST THE HOME DEPOT 0029 ATASCADERO CA 061394 *****8244 0 | Q112: 3/04 23.88 POS PURCHASE NST THE HOME DEPOT 0029 ATASCADERO CA 061394 *****8244 0
A113: 3/04 | B113: 29.00 | C113: 3/04 29.00 POS PURCHASE GOLDEN HIL PASO ROBLES CA 00N1GR *****8244 03/02 15:57 | D113: 70 | E113: 3/02 15:57 | F113: 3/04 29.00 POS PURCHASE GOLDEN HIL PASO ROBLES CA 00N1GR *****8244 0 | K113: 3/04 | L113: 29 | M113: POS PURCHASE GOLDEN HIL PASO ROBLES CA 00N1GR *****8244 0 | O113: 29.00 POS PURCHASE GOLDEN HIL PASO ROBLES CA 00N1GR *****8244 0 | P113: POS PURCHASE GOLDEN HIL PASO ROBLES CA 00N1GR *****8244 0 | Q113: 3/04 29.00 POS PURCHASE GOLDEN HIL PASO ROBLES CA 00N1GR *****8244 0
A114: 3/04 | B114: 61.98 | C114: 3/04 61.98 POS PURCHASE TRACTOR SUPPLY CO #1609 PASO ROBLES CA 090001 *****2385 03/01 16:22 | D114: 83 | E114: 3/01 16:22 | F114: 3/04 61.98 POS PURCHASE TRACTOR SUPPLY CO #1609 PASO ROBLES CA 090001 *****2385 0 | K114: 3/04 | L114: 61.98 | M114: POS PURCHASE TRACTOR SUPPLY CO #1609 PASO ROBLES CA 090001 *****2385 0 | O114: 61.98 POS PURCHASE TRACTOR SUPPLY CO #1609 PASO ROBLES CA 090001 *****2385 0 | P114: POS PURCHASE TRACTOR SUPPLY CO #1609 PASO ROBLES CA 090001 *****2385 0 | Q114: 3/04 61.98 POS PURCHASE TRACTOR SUPPLY CO #1609 PASO ROBLES CA 090001 *****2385 0
A115: 3/04 | B115: 73.58 | C115: 3/04 73.58 POS PURCHASE SPENCER S FRESH MARKETS MORRO BAY CA 447745 *****2385 03/02 15:08 | D115: 81 | E115: 3/02 15:08 | F115: 3/04 73.58 POS PURCHASE SPENCER S FRESH MARKETS MORRO BAY CA 447745 *****2385 0 | K115: 3/04 | L115: 73.58 | M115: POS PURCHASE SPENCER S FRESH MARKETS MORRO BAY CA 447745 *****2385 0 | O115: 73.58 POS PURCHASE SPENCER S FRESH MARKETS MORRO BAY CA 447745 *****2385 0 | P115: POS PURCHASE SPENCER S FRESH MARKETS MORRO BAY CA 447745 *****2385 0 | Q115: 3/04 73.58 POS PURCHASE SPENCER S FRESH MARKETS MORRO BAY CA 447745 *****2385 0
A116: 3/04 | B116: 16.31 | C116: 3/04 16.31 POS PURCHASE SQ *THE BLUEPRINTER & G Paso Robles CA IN4400 *****8244 03/01 18:55 | D116: 83 | E116: 3/01 18:55 | F116: 3/04 16.31 POS PURCHASE SQ *THE BLUEPRINTER & G Paso Robles CA IN4400 *****8244 0 | K116: 3/04 | L116: 16.31 | M116: POS PURCHASE SQ *THE BLUEPRINTER & G Paso Robles CA IN4400 *****8244 0 | O116: 16.31 POS PURCHASE SQ *THE BLUEPRINTER & G Paso Robles CA IN4400 *****8244 0 | P116: POS PURCHASE SQ *THE BLUEPRINTER & G Paso Robles CA IN4400 *****8244 0 | Q116: 3/04 16.31 POS PURCHASE SQ *THE BLUEPRINTER & G Paso Robles CA IN4400 *****8244 0
A117: 3/04 | B117: 44.35 | C117: 3/04 44.35 POS PURCHASE Third Base Market and S Paso Robles CA 679613 *****8244 03/04 07:32 | D117: 83 | E117: 3/04 07:32 | F117: 3/04 44.35 POS PURCHASE Third Base Market and S Paso Robles CA 679613 *****8244 0 | K117: 3/04 | L117: 44.35 | M117: POS PURCHASE Third Base Market and S Paso Robles CA 679613 *****8244 0 | O117: 44.35 POS PURCHASE Third Base Market and S Paso Robles CA 679613 *****8244 0 | P117: POS PURCHASE Third Base Market and S Paso Robles CA 679613 *****8244 0 | Q117: 3/04 44.35 POS PURCHASE Third Base Market and S Paso Robles CA 679613 *****8244 0
A118: 3/04 | B118: 52.68 | C118: 3/04 52.68 POS PURCHASE TEMPLETON MARKET TEMPLETON CA 668487 *****8244 03/04 11:01 | D118: 74 | E118: 3/04 11:01 | F118: 3/04 52.68 POS PURCHASE TEMPLETON MARKET TEMPLETON CA 668487 *****8244 0 | K118: 3/04 | L118: 52.68 | M118: POS PURCHASE TEMPLETON MARKET TEMPLETON CA 668487 *****8244 0 | O118: 52.68 POS PURCHASE TEMPLETON MARKET TEMPLETON CA 668487 *****8244 0 | P118: POS PURCHASE TEMPLETON MARKET TEMPLETON CA 668487 *****8244 0 | Q118: 3/04 52.68 POS PURCHASE TEMPLETON MARKET TEMPLETON CA 668487 *****8244 0
A119: 3/04 | B119: 54.14 | C119: 3/04 54.14 POS PURCHASE TEMPLETON MARKET TEMPLETON CA 668487 *****8244 03/02 13:37 | D119: 74 | E119: 3/02 13:37 | F119: 3/04 54.14 POS PURCHASE TEMPLETON MARKET TEMPLETON CA 668487 *****8244 0 | K119: 3/04 | L119: 54.14 | M119: POS PURCHASE TEMPLETON MARKET TEMPLETON CA 668487 *****8244 0 | O119: 54.14 POS PURCHASE TEMPLETON MARKET TEMPLETON CA 668487 *****8244 0 | P119: POS PURCHASE TEMPLETON MARKET TEMPLETON CA 668487 *****8244 0 | Q119: 3/04 54.14 POS PURCHASE TEMPLETON MARKET TEMPLETON CA 668487 *****8244 0
A120: 3/04 | B120: 393.10 | C120: 3/04 393.10 POS PURCHASE VZWRLSS*BILL PAY VB 800-922-0204 FL IN2000 *****2385 03/04 08:53 | D120: 81 | E120: 3/04 08:53 | F120: 3/04 393.10 POS PURCHASE VZWRLSS*BILL PAY VB 800-922-0204 FL IN2000 *****2385 0 | K120: 3/04 | L120: 393.1 | M120: POS PURCHASE VZWRLSS*BILL PAY VB 800-922-0204 FL IN2000 *****2385 0 | O120: 393.10 POS PURCHASE VZWRLSS*BILL PAY VB 800-922-0204 FL IN2000 *****2385 0 | P120: POS PURCHASE VZWRLSS*BILL PAY VB 800-922-0204 FL IN2000 *****2385 0 | Q120: 3/04 393.10 POS PURCHASE VZWRLSS*BILL PAY VB 800-922-0204 FL IN2000 *****2385 0
A121: 3/05 | B121: 19.28 | C121: 3/05 19.28 POS PURCHASE CVS/PHARMACY #09925 Paso Robles CA 309925 *****8244 03/05 15:58 | D121: 28 | E121: S/PHARMACY #09925 Paso Robles CA 309925 *****8244 03/05 15:58 | F121: 3/05 19.28 POS PURCHASE CV | K121: 3/05 | L121: 19.28 | M121: POS PURCHASE CV | O121: 19.28 POS PURCHASE CV | P121: POS PURCHASE CV | Q121: 3/05 19.28 POS PURCHASE CV
A122: 3/05 | B122: 85.17 | C122: 3/05 85.17 POS PURCHASE LOWE'S #2730 PASO ROBLES CA 001 *****8244 03/05 10:44 | D122: 69 | E122: 3/05 10:44 | F122: 3/05 85.17 POS PURCHASE LOWE'S #2730 PASO ROBLES CA 001 *****8244 0 | K122: 3/05 | L122: 85.17 | M122: POS PURCHASE LOWE'S #2730 PASO ROBLES CA 001 *****8244 0 | O122: 85.17 POS PURCHASE LOWE'S #2730 PASO ROBLES CA 001 *****8244 0 | P122: POS PURCHASE LOWE'S #2730 PASO ROBLES CA 001 *****8244 0 | Q122: 3/05 85.17 POS PURCHASE LOWE'S #2730 PASO ROBLES CA 001 *****8244 0
A123: 3/05 | B123: 12.93 | C123: 3/05 12.93 POS PURCHASE COFFEE BEAN AND TEA LEA PISMO BEACH CA 823960 *****8244 03/04 08:19 | D123: 83 | E123: 3/04 08:19 | F123: 3/05 12.93 POS PURCHASE COFFEE BEAN AND TEA LEA PISMO BEACH CA 823960 *****8244 0 | K123: 3/05 | L123: 12.93 | M123: POS PURCHASE COFFEE BEAN AND TEA LEA PISMO BEACH CA 823960 *****8244 0 | O123: 12.93 POS PURCHASE COFFEE BEAN AND TEA LEA PISMO BEACH CA 823960 *****8244 0 | P123: POS PURCHASE COFFEE BEAN AND TEA LEA PISMO BEACH CA 823960 *****8244 0 | Q123: 3/05 12.93 POS PURCHASE COFFEE BEAN AND TEA LEA PISMO BEACH CA 823960 *****8244 0
A124: 3/05 | B124: 40.00 | C124: 3/05 40.00 POS PURCHASE Third Base Market and S Paso Robles CA 679613 *****8244 03/05 07:55 | D124: 83 | E124: 3/05 07:55 | F124: 3/05 40.00 POS PURCHASE Third Base Market and S Paso Robles CA 679613 *****8244 0 | K124: 3/05 | L124: 40 | M124: POS PURCHASE Third Base Market and S Paso Robles CA 679613 *****8244 0 | O124: 40.00 POS PURCHASE Third Base Market and S Paso Robles CA 679613 *****8244 0 | P124: POS PURCHASE Third Base Market and S Paso Robles CA 679613 *****8244 0 | Q124: 3/05 40.00 POS PURCHASE Third Base Market and S Paso Robles CA 679613 *****8244 0
A125: 3/05 | B125: 43.91 | C125: 3/05 43.91 POS PURCHASE TEMPLETON MARKET TEMPLETON CA 668487 *****8244 03/05 11:54 | D125: 74 | E125: 3/05 11:54 | F125: 3/05 43.91 POS PURCHASE TEMPLETON MARKET TEMPLETON CA 668487 *****8244 0 | K125: 3/05 | L125: 43.91 | M125: POS PURCHASE TEMPLETON MARKET TEMPLETON CA 668487 *****8244 0 | O125: 43.91 POS PURCHASE TEMPLETON MARKET TEMPLETON CA 668487 *****8244 0 | P125: POS PURCHASE TEMPLETON MARKET TEMPLETON CA 668487 *****8244 0 | Q125: 3/05 43.91 POS PURCHASE TEMPLETON MARKET TEMPLETON CA 668487 *****8244 0
A126: 3/06 | B126: 2,376.09 | C126: 3/06 2,376.09 Internet Transfer To 1854 3/06 4,200.00 Internet Transfer To 1854 3/11 780.00 Internet Transfer To 1854 | D126: 42 | E126: 3/06 4,200.00 Internet Transfer To 1854 3/11 780.00 Internet Transfer To 1854 | F126: 3/06 2,376.09 Internet Transfer To 1854 | K126: 3/06 | L126: 2376.09 | M126: Internet Transfer To 1854 | O126: 2,376.09 Internet Transfer To 1854 | P126: Internet Transfer To 1854 | Q126: 3/06 2,376.09 Internet Transfer To 1854
A127: 3/06 | B127: 4,200.00 | C127: 3/06 4,200.00 Internet Transfer To 1854 3/11 780.00 Internet Transfer To 1854 3/11 1,312.27 Internet Transfer To 1854 | D127: 42 | E127: 3/11 780.00 Internet Transfer To 1854 3/11 1,312.27 Internet Transfer To 1854 | F127: 3/06 4,200.00 Internet Transfer To 1854 | K127: 3/06 | L127: 4200 | M127: Internet Transfer To 1854 | O127: 4,200.00 Internet Transfer To 1854 | P127: Internet Transfer To 1854 | Q127: 3/06 4,200.00 Internet Transfer To 1854
A128: 3/07 | B128: 10.99 | C128: 3/07 10.99 POS PURCHASE GOLDEN HILL 76 PASO ROBLES CA 00N1GR *****8244 03/07 13:00 | D128: 74 | E128: 3/07 13:00 | F128: 3/07 10.99 POS PURCHASE GOLDEN HILL 76 PASO ROBLES CA 00N1GR *****8244 0 | K128: 3/07 | L128: 10.99 | M128: POS PURCHASE GOLDEN HILL 76 PASO ROBLES CA 00N1GR *****8244 0 | O128: 10.99 POS PURCHASE GOLDEN HILL 76 PASO ROBLES CA 00N1GR *****8244 0 | P128: POS PURCHASE GOLDEN HILL 76 PASO ROBLES CA 00N1GR *****8244 0 | Q128: 3/07 10.99 POS PURCHASE GOLDEN HILL 76 PASO ROBLES CA 00N1GR *****8244 0
A129: 3/07 | B129: 23.43 | C129: 3/07 23.43 POS PURCHASE OAK HILL MARKET PASO ROBLES CA 832598 *****8244 03/07 12:32 | D129: 75 | E129: 3/07 12:32 | F129: 3/07 23.43 POS PURCHASE OAK HILL MARKET PASO ROBLES CA 832598 *****8244 0 | K129: 3/07 | L129: 23.43 | M129: POS PURCHASE OAK HILL MARKET PASO ROBLES CA 832598 *****8244 0 | O129: 23.43 POS PURCHASE OAK HILL MARKET PASO ROBLES CA 832598 *****8244 0 | P129: POS PURCHASE OAK HILL MARKET PASO ROBLES CA 832598 *****8244 0 | Q129: 3/07 23.43 POS PURCHASE OAK HILL MARKET PASO ROBLES CA 832598 *****8244 0
A130: 3/07 | B130: 46.69 | C130: 3/07 46.69 POS PURCHASE TEMPLETON MARKET TEMPLETON CA 668487 *****8244 03/07 08:53 | D130: =FIND("/",C130,5) -> 74 | E130: 3/07 08:53 | F130: 3/07 46.69 POS PURCHASE TEMPLETON MARKET TEMPLETON CA 668487 *****8244 0 | K130: 3/07 | L130: 46.69 | M130: POS PURCHASE TEMPLETON MARKET TEMPLETON CA 668487 *****8244 0 | O130: 46.69 POS PURCHASE TEMPLETON MARKET TEMPLETON CA 668487 *****8244 0 | P130: POS PURCHASE TEMPLETON MARKET TEMPLETON CA 668487 *****8244 0 | Q130: 3/07 46.69 POS PURCHASE TEMPLETON MARKET TEMPLETON CA 668487 *****8244 0
A131: 3/07 | B131: 47.88 | C131: 3/07 47.88 POS PURCHASE SAN PASO TRUCK STOP PASO ROBLES CA 552145 *****8244 03/07 10:57 | D131: 79 | E131: 3/07 10:57 | F131: 3/07 47.88 POS PURCHASE SAN PASO TRUCK STOP PASO ROBLES CA 552145 *****8244 0 | K131: 3/07 | L131: 47.88 | M131: POS PURCHASE SAN PASO TRUCK STOP PASO ROBLES CA 552145 *****8244 0 | O131: 47.88 POS PURCHASE SAN PASO TRUCK STOP PASO ROBLES CA 552145 *****8244 0 | P131: POS PURCHASE SAN PASO TRUCK STOP PASO ROBLES CA 552145 *****8244 0 | Q131: 3/07 47.88 POS PURCHASE SAN PASO TRUCK STOP PASO ROBLES CA 552145 *****8244 0
A132: 3/08 | B132: 32.99 | C132: 3/08 32.99 POS PURCHASE GOLDEN HIL PASO ROBLES CA 00N1GR *****8244 03/08 10:38 | D132: 70 | E132: 3/08 10:38 | F132: 3/08 32.99 POS PURCHASE GOLDEN HIL PASO ROBLES CA 00N1GR *****8244 0 | K132: 3/08 | L132: 32.99 | M132: POS PURCHASE GOLDEN HIL PASO ROBLES CA 00N1GR *****8244 0 | O132: 32.99 POS PURCHASE GOLDEN HIL PASO ROBLES CA 00N1GR *****8244 0 | P132: POS PURCHASE GOLDEN HIL PASO ROBLES CA 00N1GR *****8244 0 | Q132: 3/08 32.99 POS PURCHASE GOLDEN HIL PASO ROBLES CA 00N1GR *****8244 0
A133: 3/08 | B133: 220.78 | C133: 3/08 220.78 POS PURCHASE BLAKE'S TRUE VALUE PASO ROBLES CA 000045 *****8244 03/07 02:59 | D133: 79 | E133: 3/07 02:59 | F133: 3/08 220.78 POS PURCHASE BLAKE'S TRUE VALUE PASO ROBLES CA 000045 *****8244 0 | K133: 3/08 | L133: 220.78 | M133: POS PURCHASE BLAKE'S TRUE VALUE PASO ROBLES CA 000045 *****8244 0 | O133: 220.78 POS PURCHASE BLAKE'S TRUE VALUE PASO ROBLES CA 000045 *****8244 0 | P133: POS PURCHASE BLAKE'S TRUE VALUE PASO ROBLES CA 000045 *****8244 0 | Q133: 3/08 220.78 POS PURCHASE BLAKE'S TRUE VALUE PASO ROBLES CA 000045 *****8244 0
A134: 3/11 | B134: 14.38 | C134: 3/11 14.38 POS PURCHASE HAYWARD LUMBER SLO SAN LUIS OBIS CA 986834 *****8244 03/11 10:43 | D134: 80 | E134: 3/11 10:43 | F134: 3/11 14.38 POS PURCHASE HAYWARD LUMBER SLO SAN LUIS OBIS CA 986834 *****8244 0 | K134: 3/11 | L134: 14.38 | M134: POS PURCHASE HAYWARD LUMBER SLO SAN LUIS OBIS CA 986834 *****8244 0 | O134: 14.38 POS PURCHASE HAYWARD LUMBER SLO SAN LUIS OBIS CA 986834 *****8244 0 | P134: POS PURCHASE HAYWARD LUMBER SLO SAN LUIS OBIS CA 986834 *****8244 0 | Q134: 3/11 14.38 POS PURCHASE HAYWARD LUMBER SLO SAN LUIS OBIS CA 986834 *****8244 0
A135: 3/11 | B135: 17.74 | C135: 3/11 17.74 POS PURCHASE GOLDEN HIL PASO ROBLES CA 00N1GR *****8244 03/09 14:15 | D135: 70 | E135: 3/09 14:15 | F135: 3/11 17.74 POS PURCHASE GOLDEN HIL PASO ROBLES CA 00N1GR *****8244 0 | K135: 3/11 | L135: 17.74 | M135: POS PURCHASE GOLDEN HIL PASO ROBLES CA 00N1GR *****8244 0 | O135: 17.74 POS PURCHASE GOLDEN HIL PASO ROBLES CA 00N1GR *****8244 0 | P135: POS PURCHASE GOLDEN HIL PASO ROBLES CA 00N1GR *****8244 0 | Q135: 3/11 17.74 POS PURCHASE GOLDEN HIL PASO ROBLES CA 00N1GR *****8244 0
A136: 3/11 | B136: 35.44 | C136: 3/11 35.44 POS PURCHASE CVS/PHARMACY #09925 Paso Robles CA 309925 *****8244 03/11 13:56 | D136: 28 | E136: S/PHARMACY #09925 Paso Robles CA 309925 *****8244 03/11 13:56 | F136: 3/11 35.44 POS PURCHASE CV | K136: 3/11 | L136: 35.44 | M136: POS PURCHASE CV | O136: 35.44 POS PURCHASE CV | P136: POS PURCHASE CV | Q136: 3/11 35.44 POS PURCHASE CV
A137: 3/11 | B137: 48.81 | C137: 3/11 48.81 POS PURCHASE SMART AND FINAL 939 PASO ROBLES CA 482200 *****8244 03/11 14:21 | D137: 79 | E137: 3/11 14:21 | F137: 3/11 48.81 POS PURCHASE SMART AND FINAL 939 PASO ROBLES CA 482200 *****8244 0 | K137: 3/11 | L137: 48.81 | M137: POS PURCHASE SMART AND FINAL 939 PASO ROBLES CA 482200 *****8244 0 | O137: 48.81 POS PURCHASE SMART AND FINAL 939 PASO ROBLES CA 482200 *****8244 0 | P137: POS PURCHASE SMART AND FINAL 939 PASO ROBLES CA 482200 *****8244 0 | Q137: 3/11 48.81 POS PURCHASE SMART AND FINAL 939 PASO ROBLES CA 482200 *****8244 0
A138: 3/11 | B138: 131.33 | C138: 3/11 131.33 POS PURCHASE FOOD 4 LESS 0012 PASO ROBLES CA 986142 *****2385 03/09 15:30 | D138: 77 | E138: 3/09 15:30 | F138: 3/11 131.33 POS PURCHASE FOOD 4 LESS 0012 PASO ROBLES CA 986142 *****2385 0 | K138: 3/11 | L138: 131.33 | M138: POS PURCHASE FOOD 4 LESS 0012 PASO ROBLES CA 986142 *****2385 0 | O138: 131.33 POS PURCHASE FOOD 4 LESS 0012 PASO ROBLES CA 986142 *****2385 0 | P138: POS PURCHASE FOOD 4 LESS 0012 PASO ROBLES CA 986142 *****2385 0 | Q138: 3/11 131.33 POS PURCHASE FOOD 4 LESS 0012 PASO ROBLES CA 986142 *****2385 0
A139: 3/11 | B139: 155.49 | C139: 3/11 155.49 POS PURCHASE Lemos Feed & Pet Supply Paso Robles CA 000100 *****2385 03/08 18:04 | D139: 84 | E139: 3/08 18:04 | F139: 3/11 155.49 POS PURCHASE Lemos Feed & Pet Supply Paso Robles CA 000100 *****2385 0 | K139: 3/11 | L139: 155.49 | M139: POS PURCHASE Lemos Feed & Pet Supply Paso Robles CA 000100 *****2385 0 | O139: 155.49 POS PURCHASE Lemos Feed & Pet Supply Paso Robles CA 000100 *****2385 0 | P139: POS PURCHASE Lemos Feed & Pet Supply Paso Robles CA 000100 *****2385 0 | Q139: 3/11 155.49 POS PURCHASE Lemos Feed & Pet Supply Paso Robles CA 000100 *****2385 0
A140: 3/11 | B140: 44.35 | C140: 3/11 44.35 POS PURCHASE Third Base Market and S Paso Robles CA 679613 *****8244 03/11 08:00 | D140: 83 | E140: 3/11 08:00 | F140: 3/11 44.35 POS PURCHASE Third Base Market and S Paso Robles CA 679613 *****8244 0 | K140: 3/11 | L140: 44.35 | M140: POS PURCHASE Third Base Market and S Paso Robles CA 679613 *****8244 0 | O140: 44.35 POS PURCHASE Third Base Market and S Paso Robles CA 679613 *****8244 0 | P140: POS PURCHASE Third Base Market and S Paso Robles CA 679613 *****8244 0 | Q140: 3/11 44.35 POS PURCHASE Third Base Market and S Paso Robles CA 679613 *****8244 0
A141: 3/11 | B141: 46.50 | C141: 3/11 46.50 POS PURCHASE GOLDEN HIL PASO ROBLES CA 00N1GR *****8244 03/10 18:09 | D141: 70 | E141: 3/10 18:09 | F141: 3/11 46.50 POS PURCHASE GOLDEN HIL PASO ROBLES CA 00N1GR *****8244 0 | K141: 3/11 | L141: 46.5 | M141: POS PURCHASE GOLDEN HIL PASO ROBLES CA 00N1GR *****8244 0 | O141: 46.50 POS PURCHASE GOLDEN HIL PASO ROBLES CA 00N1GR *****8244 0 | P141: POS PURCHASE GOLDEN HIL PASO ROBLES CA 00N1GR *****8244 0 | Q141: 3/11 46.50 POS PURCHASE GOLDEN HIL PASO ROBLES CA 00N1GR *****8244 0
A142: 3/11 | B142: 48.18 | C142: 3/11 48.18 POS PURCHASE TEMPLETON MARKET TEMPLETON CA 668487 *****8244 03/11 10:13 | D142: 74 | E142: 3/11 10:13 | F142: 3/11 48.18 POS PURCHASE TEMPLETON MARKET TEMPLETON CA 668487 *****8244 0 | K142: 3/11 | L142: 48.18 | M142: POS PURCHASE TEMPLETON MARKET TEMPLETON CA 668487 *****8244 0 | O142: 48.18 POS PURCHASE TEMPLETON MARKET TEMPLETON CA 668487 *****8244 0 | P142: POS PURCHASE TEMPLETON MARKET TEMPLETON CA 668487 *****8244 0 | Q142: 3/11 48.18 POS PURCHASE TEMPLETON MARKET TEMPLETON CA 668487 *****8244 0
A143: 3/11 | B143: 73.35 | C143: 3/11 73.35 POS PURCHASE SES PIONEER MART PASO ROBLES CA 460587 *****8244 03/09 14:27 | D143: 76 | E143: 3/09 14:27 | F143: 3/11 73.35 POS PURCHASE SES PIONEER MART PASO ROBLES CA 460587 *****8244 0 | K143: 3/11 | L143: 73.35 | M143: POS PURCHASE SES PIONEER MART PASO ROBLES CA 460587 *****8244 0 | O143: 73.35 POS PURCHASE SES PIONEER MART PASO ROBLES CA 460587 *****8244 0 | P143: POS PURCHASE SES PIONEER MART PASO ROBLES CA 460587 *****8244 0 | Q143: 3/11 73.35 POS PURCHASE SES PIONEER MART PASO ROBLES CA 460587 *****8244 0
A144: 3/11 | B144: 780.00 | C144: 3/11 780.00 Internet Transfer To 1854 3/11 1,312.27 Internet Transfer To 1854 3/11 6,576.09 Internet Transfer To 1854 | D144: 40 | E144: 3/11 1,312.27 Internet Transfer To 1854 3/11 6,576.09 Internet Transfer To 1854 | F144: 3/11 780.00 Internet Transfer To 1854 | K144: 3/11 | L144: 780 | M144: Internet Transfer To 1854 | O144: 780.00 Internet Transfer To 1854 | P144: Internet Transfer To 1854 | Q144: 3/11 780.00 Internet Transfer To 1854
A145: 3/11 | B145: 1,312.27 | C145: 3/11 1,312.27 Internet Transfer To 1854 3/11 6,576.09 Internet Transfer To 1854 3/12 381.89 Best Egg PAYMENT | D145: 42 | E145: 3/11 6,576.09 Internet Transfer To 1854 3/12 381.89 Best Egg PAYMENT | F145: 3/11 1,312.27 Internet Transfer To 1854 | K145: 3/11 | L145: 1312.27 | M145: Internet Transfer To 1854 | O145: 1,312.27 Internet Transfer To 1854 | P145: Internet Transfer To 1854 | Q145: 3/11 1,312.27 Internet Transfer To 1854
A146: 3/11 | B146: 6,576.09 | C146: 3/11 6,576.09 Internet Transfer To 1854 3/12 381.89 Best Egg PAYMENT 45087375A SCOTT BRANDON | D146: 42 | E146: 3/12 381.89 Best Egg PAYMENT 45087375A SCOTT BRANDON | F146: 3/11 6,576.09 Internet Transfer To 1854 | K146: 3/11 | L146: 6576.09 | M146: Internet Transfer To 1854 | O146: 6,576.09 Internet Transfer To 1854 | P146: Internet Transfer To 1854 | Q146: 3/11 6,576.09 Internet Transfer To 1854
A147: 3/12 | B147: 27.19 | C147: 3/12 27.19 POS PURCHASE EL CAMINO BUILDING SUPP Atascadero CA 000100 *****8244 03/12 14:27 | D147: 82 | E147: 3/12 14:27 | F147: 3/12 27.19 POS PURCHASE EL CAMINO BUILDING SUPP Atascadero CA 000100 *****8244 0 | K147: 3/12 | L147: 27.19 | M147: POS PURCHASE EL CAMINO BUILDING SUPP Atascadero CA 000100 *****8244 0 | O147: 27.19 POS PURCHASE EL CAMINO BUILDING SUPP Atascadero CA 000100 *****8244 0 | P147: POS PURCHASE EL CAMINO BUILDING SUPP Atascadero CA 000100 *****8244 0 | Q147: 3/12 27.19 POS PURCHASE EL CAMINO BUILDING SUPP Atascadero CA 000100 *****8244 0
A148: 3/12 | B148: 57.21 | C148: 3/12 57.21 POS PURCHASE LOWE'S #2730 PASO ROBLES CA 001 *****8244 03/12 13:06 | D148: 69 | E148: =RIGHT(C148,LEN(C148)-(D148-2)) -> 3/12 13:06 | F148: =SUBSTITUTE(C148,E148,"") -> 3/12 57.21 POS PURCHASE LOWE'S #2730 PASO ROBLES CA 001 *****8244 0 | K148: 3/12 | L148: 57.21 | M148: POS PURCHASE LOWE'S #2730 PASO ROBLES CA 001 *****8244 0 | O148: 57.21 POS PURCHASE LOWE'S #2730 PASO ROBLES CA 001 *****8244 0 | P148: POS PURCHASE LOWE'S #2730 PASO ROBLES CA 001 *****8244 0 | Q148: 3/12 57.21 POS PURCHASE LOWE'S #2730 PASO ROBLES CA 001 *****8244 0
A149: 3/12 | B149: 40.00 | C149: 3/12 40.00 POS PURCHASE TEMPLETON MARKET TEMPLETON CA 668487 *****8244 03/12 09:08 | D149: 74 | E149: 3/12 09:08 | F149: 3/12 40.00 POS PURCHASE TEMPLETON MARKET TEMPLETON CA 668487 *****8244 0 | K149: 3/12 | L149: 40 | M149: POS PURCHASE TEMPLETON MARKET TEMPLETON CA 668487 *****8244 0 | O149: 40.00 POS PURCHASE TEMPLETON MARKET TEMPLETON CA 668487 *****8244 0 | P149: POS PURCHASE TEMPLETON MARKET TEMPLETON CA 668487 *****8244 0 | Q149: 3/12 40.00 POS PURCHASE TEMPLETON MARKET TEMPLETON CA 668487 *****8244 0
A150: 3/12 | B150: 381.89 | C150: 3/12 381.89 Best Egg PAYMENT 45087375A SCOTT BRANDON 3/13 66.00 DISCOVER/E-PAYMENT | D150: 55 | E150: 3/13 66.00 DISCOVER/E-PAYMENT | F150: 3/12 381.89 Best Egg PAYMENT 45087375A SCOTT BRANDON | K150: 3/12 | L150: 381.89 | M150: Best Egg PAYMENT 45087375A SCOTT BRANDON | O150: 381.89 Best Egg PAYMENT 45087375A SCOTT BRANDON | P150: Best Egg PAYMENT 45087375A SCOTT BRANDON | Q150: 3/12 381.89 Best Egg PAYMENT 45087375A SCOTT BRANDON
A151: 3/13 | B151: 16.17 | C151: 3/13 16.17 POS PURCHASE RITE AID 05832 PASO ROBLES CA 549000 *****8244 03/13 08:55 | D151: 74 | E151: 3/13 08:55 | F151: 3/13 16.17 POS PURCHASE RITE AID 05832 PASO ROBLES CA 549000 *****8244 0 | K151: 3/13 | L151: 16.17 | M151: POS PURCHASE RITE AID 05832 PASO ROBLES CA 549000 *****8244 0 | O151: 16.17 POS PURCHASE RITE AID 05832 PASO ROBLES CA 549000 *****8244 0 | P151: POS PURCHASE RITE AID 05832 PASO ROBLES CA 549000 *****8244 0 | Q151: 3/13 16.17 POS PURCHASE RITE AID 05832 PASO ROBLES CA 549000 *****8244 0
A152: 3/13 | B152: 44.35 | C152: 3/13 44.35 POS PURCHASE Third Base Market and S Paso Robles CA 679613 *****8244 03/13 08:26 | D152: 83 | E152: 3/13 08:26 | F152: 3/13 44.35 POS PURCHASE Third Base Market and S Paso Robles CA 679613 *****8244 0 | K152: 3/13 | L152: 44.35 | M152: POS PURCHASE Third Base Market and S Paso Robles CA 679613 *****8244 0 | O152: 44.35 POS PURCHASE Third Base Market and S Paso Robles CA 679613 *****8244 0 | P152: POS PURCHASE Third Base Market and S Paso Robles CA 679613 *****8244 0 | Q152: 3/13 44.35 POS PURCHASE Third Base Market and S Paso Robles CA 679613 *****8244 0
A153: 3/13 | B153: 66.00 | C153: 3/13 66.00 DISCOVER/E-PAYMENT 4373 BRANDON VICTOR 3/21 396.32 TELLER WITHDRAWL | D153: 20 | E153: R/E-PAYMENT 4373 BRANDON VICTOR 3/21 396.32 TELLER WITHDRAWL | F153: 3/13 66.00 DISCOVE | K153: 3/13 | L153: 66 | M153: DISCOVE | O153: 66.00 DISCOVE | P153: DISCOVE | Q153: 3/13 66.00 DISCOVE
A154: 3/14 | B154: 34.44 | C154: 3/14 34.44 POS PURCHASE GOLDEN HIL PASO ROBLES CA 00N1GR *****8244 03/14 10:25 | D154: 70 | E154: 3/14 10:25 | F154: 3/14 34.44 POS PURCHASE GOLDEN HIL PASO ROBLES CA 00N1GR *****8244 0 | K154: 3/14 | L154: 34.44 | M154: POS PURCHASE GOLDEN HIL PASO ROBLES CA 00N1GR *****8244 0 | O154: 34.44 POS PURCHASE GOLDEN HIL PASO ROBLES CA 00N1GR *****8244 0 | P154: POS PURCHASE GOLDEN HIL PASO ROBLES CA 00N1GR *****8244 0 | Q154: 3/14 34.44 POS PURCHASE GOLDEN HIL PASO ROBLES CA 00N1GR *****8244 0
A155: 3/14 | B155: 42.99 | C155: 3/14 42.99 POS PURCHASE Third Base Market and S Paso Robles CA 679613 *****8244 03/14 08:26 | D155: 83 | E155: 3/14 08:26 | F155: 3/14 42.99 POS PURCHASE Third Base Market and S Paso Robles CA 679613 *****8244 0 | K155: 3/14 | L155: 42.99 | M155: POS PURCHASE Third Base Market and S Paso Robles CA 679613 *****8244 0 | O155: =SUBSTITUTE(Q155,A155,"") -> 42.99 POS PURCHASE Third Base Market and S Paso Robles CA 679613 *****8244 0 | P155: =TRIM(SUBSTITUTE(O155,B155,"")) -> POS PURCHASE Third Base Market and S Paso Robles CA 679613 *****8244 0 | Q155: 3/14 42.99 POS PURCHASE Third Base Market and S Paso Robles CA 679613 *****8244 0
A156: 3/15 | B156: 11.00 | C156: 3/15 11.00 POS PURCHASE GOLDEN HILL 76 PASO ROBLES CA 00N1GR *****8244 03/15 15:32 | D156: 74 | E156: 3/15 15:32 | F156: 3/15 11.00 POS PURCHASE GOLDEN HILL 76 PASO ROBLES CA 00N1GR *****8244 0 | K156: 3/15 | L156: 11 | M156: POS PURCHASE GOLDEN HILL 76 PASO ROBLES CA 00N1GR *****8244 0 | O156: 11.00 POS PURCHASE GOLDEN HILL 76 PASO ROBLES CA 00N1GR *****8244 0 | P156: POS PURCHASE GOLDEN HILL 76 PASO ROBLES CA 00N1GR *****8244 0 | Q156: 3/15 11.00 POS PURCHASE GOLDEN HILL 76 PASO ROBLES CA 00N1GR *****8244 0
A157: 3/15 | B157: 42.98 | C157: 3/15 42.98 POS PURCHASE TEMPLETON MARKET TEMPLETON CA 668487 *****8244 03/15 08:50 | D157: 74 | E157: 3/15 08:50 | F157: 3/15 42.98 POS PURCHASE TEMPLETON MARKET TEMPLETON CA 668487 *****8244 0 | K157: 3/15 | L157: 42.98 | M157: POS PURCHASE TEMPLETON MARKET TEMPLETON CA 668487 *****8244 0 | O157: 42.98 POS PURCHASE TEMPLETON MARKET TEMPLETON CA 668487 *****8244 0 | P157: POS PURCHASE TEMPLETON MARKET TEMPLETON CA 668487 *****8244 0 | Q157: 3/15 42.98 POS PURCHASE TEMPLETON MARKET TEMPLETON CA 668487 *****8244 0
A158: 3/18 | B158: 58.90 | C158: 3/18 58.90 POS PURCHASE Third Base Market and S Paso Robles CA 679613 *****8244 03/16 13:34 | D158: 83 | E158: 3/16 13:34 | F158: 3/18 58.90 POS PURCHASE Third Base Market and S Paso Robles CA 679613 *****8244 0 | K158: 3/18 | L158: 58.9 | M158: POS PURCHASE Third Base Market and S Paso Robles CA 679613 *****8244 0 | O158: 58.90 POS PURCHASE Third Base Market and S Paso Robles CA 679613 *****8244 0 | P158: POS PURCHASE Third Base Market and S Paso Robles CA 679613 *****8244 0 | Q158: 3/18 58.90 POS PURCHASE Third Base Market and S Paso Robles CA 679613 *****8244 0
A159: 3/20 | B159: 9.79 | C159: 3/20 9.79 POS PURCHASE EL CAMINO BUILDING SUPP Atascadero CA 000100 *****8244 03/20 15:57 | D159: 81 | E159: 3/20 15:57 | F159: 3/20 9.79 POS PURCHASE EL CAMINO BUILDING SUPP Atascadero CA 000100 *****8244 0 | K159: 3/20 | L159: 9.79 | M159: POS PURCHASE EL CAMINO BUILDING SUPP Atascadero CA 000100 *****8244 0 | O159: 9.79 POS PURCHASE EL CAMINO BUILDING SUPP Atascadero CA 000100 *****8244 0 | P159: POS PURCHASE EL CAMINO BUILDING SUPP Atascadero CA 000100 *****8244 0 | Q159: 3/20 9.79 POS PURCHASE EL CAMINO BUILDING SUPP Atascadero CA 000100 *****8244 0
A160: 3/20 | B160: 11.50 | C160: 3/20 11.50 POS PURCHASE GOLDEN HILL 76 PASO ROBLES CA 00N1GR *****8244 03/20 14:51 | D160: 74 | E160: 3/20 14:51 | F160: 3/20 11.50 POS PURCHASE GOLDEN HILL 76 PASO ROBLES CA 00N1GR *****8244 0 | K160: 3/20 | L160: 11.5 | M160: POS PURCHASE GOLDEN HILL 76 PASO ROBLES CA 00N1GR *****8244 0 | O160: 11.50 POS PURCHASE GOLDEN HILL 76 PASO ROBLES CA 00N1GR *****8244 0 | P160: POS PURCHASE GOLDEN HILL 76 PASO ROBLES CA 00N1GR *****8244 0 | Q160: 3/20 11.50 POS PURCHASE GOLDEN HILL 76 PASO ROBLES CA 00N1GR *****8244 0
A161: 3/20 | B161: 26.60 | C161: 3/20 26.60 POS PURCHASE LOWE'S #27 PASO ROBLES CA 001 *****8244 03/20 13:34 | D161: 67 | E161: 3/20 13:34 | F161: 3/20 26.60 POS PURCHASE LOWE'S #27 PASO ROBLES CA 001 *****8244 0 | K161: 3/20 | L161: 26.6 | M161: POS PURCHASE LOWE'S #27 PASO ROBLES CA 001 *****8244 0 | O161: 26.60 POS PURCHASE LOWE'S #27 PASO ROBLES CA 001 *****8244 0 | P161: POS PURCHASE LOWE'S #27 PASO ROBLES CA 001 *****8244 0 | Q161: 3/20 26.60 POS PURCHASE LOWE'S #27 PASO ROBLES CA 001 *****8244 0
A162: 3/20 | B162: 30.44 | C162: 3/20 30.44 POS PURCHASE SPECIALTY PET SUPPLY ATASCADERO CA 075454 *****2385 03/20 15:53 | D162: 79 | E162: 3/20 15:53 | F162: 3/20 30.44 POS PURCHASE SPECIALTY PET SUPPLY ATASCADERO CA 075454 *****2385 0 | K162: 3/20 | L162: 30.44 | M162: POS PURCHASE SPECIALTY PET SUPPLY ATASCADERO CA 075454 *****2385 0 | O162: 30.44 POS PURCHASE SPECIALTY PET SUPPLY ATASCADERO CA 075454 *****2385 0 | P162: POS PURCHASE SPECIALTY PET SUPPLY ATASCADERO CA 075454 *****2385 0 | Q162: 3/20 30.44 POS PURCHASE SPECIALTY PET SUPPLY ATASCADERO CA 075454 *****2385 0
A163: 3/20 | B163: 55.43 | C163: 3/20 55.43 POS PURCHASE COSTCO WHSE #0741 SAN LUIS OBIS CA 990741 *****2385 03/20 12:12 | D163: 79 | E163: 3/20 12:12 | F163: 3/20 55.43 POS PURCHASE COSTCO WHSE #0741 SAN LUIS OBIS CA 990741 *****2385 0 | K163: 3/20 | L163: 55.43 | M163: POS PURCHASE COSTCO WHSE #0741 SAN LUIS OBIS CA 990741 *****2385 0 | O163: 55.43 POS PURCHASE COSTCO WHSE #0741 SAN LUIS OBIS CA 990741 *****2385 0 | P163: POS PURCHASE COSTCO WHSE #0741 SAN LUIS OBIS CA 990741 *****2385 0 | Q163: 3/20 55.43 POS PURCHASE COSTCO WHSE #0741 SAN LUIS OBIS CA 990741 *****2385 0
A164: 3/20 | B164: 39.84 | C164: 3/20 39.84 POS PURCHASE SP NATURAL ALTERNATIVE 180-52378290 CA CLIE7O *****8244 03/20 17:47 | D164: 83 | E164: 3/20 17:47 | F164: 3/20 39.84 POS PURCHASE SP NATURAL ALTERNATIVE 180-52378290 CA CLIE7O *****8244 0 | K164: 3/20 | L164: 39.84 | M164: POS PURCHASE SP NATURAL ALTERNATIVE 180-52378290 CA CLIE7O *****8244 0 | O164: 39.84 POS PURCHASE SP NATURAL ALTERNATIVE 180-52378290 CA CLIE7O *****8244 0 | P164: POS PURCHASE SP NATURAL ALTERNATIVE 180-52378290 CA CLIE7O *****8244 0 | Q164: 3/20 39.84 POS PURCHASE SP NATURAL ALTERNATIVE 180-52378290 CA CLIE7O *****8244 0
A165: 3/20 | B165: 49.59 | C165: 3/20 49.59 POS PURCHASE Third Base Market and S Paso Robles CA 679613 *****8244 03/20 12:02 | D165: 83 | E165: 3/20 12:02 | F165: 3/20 49.59 POS PURCHASE Third Base Market and S Paso Robles CA 679613 *****8244 0 | K165: 3/20 | L165: 49.59 | M165: POS PURCHASE Third Base Market and S Paso Robles CA 679613 *****8244 0 | O165: 49.59 POS PURCHASE Third Base Market and S Paso Robles CA 679613 *****8244 0 | P165: POS PURCHASE Third Base Market and S Paso Robles CA 679613 *****8244 0 | Q165: 3/20 49.59 POS PURCHASE Third Base Market and S Paso Robles CA 679613 *****8244 0
A166: 3/20 | B166: 50.00 | C166: 3/20 50.00 POS PURCHASE Third Base Market and S Paso Robles CA 679613 *****2385 03/20 10:48 | D166: 83 | E166: 3/20 10:48 | F166: 3/20 50.00 POS PURCHASE Third Base Market and S Paso Robles CA 679613 *****2385 0 | K166: 3/20 | L166: 50 | M166: POS PURCHASE Third Base Market and S Paso Robles CA 679613 *****2385 0 | O166: 50.00 POS PURCHASE Third Base Market and S Paso Robles CA 679613 *****2385 0 | P166: POS PURCHASE Third Base Market and S Paso Robles CA 679613 *****2385 0 | Q166: 3/20 50.00 POS PURCHASE Third Base Market and S Paso Robles CA 679613 *****2385 0
A167: 3/21 | B167: 8.73 | C167: 3/21 8.73 POS PURCHASE USPS PO 05777004 101 N TEMPLETON CA 999999 *****2385 03/21 13:51 | D167: 79 | E167: 3/21 13:51 | F167: 3/21 8.73 POS PURCHASE USPS PO 05777004 101 N TEMPLETON CA 999999 *****2385 0 | K167: 3/21 | L167: 8.73 | M167: POS PURCHASE USPS PO 05777004 101 N TEMPLETON CA 999999 *****2385 0 | O167: 8.73 POS PURCHASE USPS PO 05777004 101 N TEMPLETON CA 999999 *****2385 0 | P167: POS PURCHASE USPS PO 05777004 101 N TEMPLETON CA 999999 *****2385 0 | Q167: 3/21 8.73 POS PURCHASE USPS PO 05777004 101 N TEMPLETON CA 999999 *****2385 0
A168: 3/21 | B168: 11.74 | C168: 3/21 11.74 POS PURCHASE TEMPLETON MARKET TEMPLETON CA 668487 *****8244 03/21 11:22 | D168: 74 | E168: 3/21 11:22 | F168: 3/21 11.74 POS PURCHASE TEMPLETON MARKET TEMPLETON CA 668487 *****8244 0 | K168: 3/21 | L168: 11.74 | M168: POS PURCHASE TEMPLETON MARKET TEMPLETON CA 668487 *****8244 0 | O168: 11.74 POS PURCHASE TEMPLETON MARKET TEMPLETON CA 668487 *****8244 0 | P168: POS PURCHASE TEMPLETON MARKET TEMPLETON CA 668487 *****8244 0 | Q168: 3/21 11.74 POS PURCHASE TEMPLETON MARKET TEMPLETON CA 668487 *****8244 0
A169: 3/21 | B169: 54.35 | C169: 3/21 54.35 POS PURCHASE Third Base Market and S Paso Robles CA 679613 *****8244 03/21 08:25 | D169: 83 | E169: 3/21 08:25 | F169: 3/21 54.35 POS PURCHASE Third Base Market and S Paso Robles CA 679613 *****8244 0 | K169: 3/21 | L169: 54.35 | M169: POS PURCHASE Third Base Market and S Paso Robles CA 679613 *****8244 0 | O169: 54.35 POS PURCHASE Third Base Market and S Paso Robles CA 679613 *****8244 0 | P169: POS PURCHASE Third Base Market and S Paso Robles CA 679613 *****8244 0 | Q169: 3/21 54.35 POS PURCHASE Third Base Market and S Paso Robles CA 679613 *****8244 0
A170: 3/21 | B170: 396.32 | C170: 3/21 396.32 TELLER WITHDRAWL 3/21 100.00 Internet Transfer To 1684 3/21 340.00 Internet Transfer To 1854 | D170: 31 | E170: 3/21 100.00 Internet Transfer To 1684 3/21 340.00 Internet Transfer To 1854 | F170: 3/21 396.32 TELLER WITHDRAWL | K170: 3/21 | L170: 396.32 | M170: TELLER WITHDRAWL | O170: 396.32 TELLER WITHDRAWL | P170: TELLER WITHDRAWL | Q170: 3/21 396.32 TELLER WITHDRAWL
A171: 3/21 | B171: 100.00 | C171: 3/21 100.00 Internet Transfer To 1684 3/21 340.00 Internet Transfer To 1854 3/21 675.12 Internet Transfer To 1684 | D171: 40 | E171: 3/21 340.00 Internet Transfer To 1854 3/21 675.12 Internet Transfer To 1684 | F171: 3/21 100.00 Internet Transfer To 1684 | K171: 3/21 | L171: 100 | M171: Internet Transfer To 1684 | O171: 100.00 Internet Transfer To 1684 | P171: Internet Transfer To 1684 | Q171: 3/21 100.00 Internet Transfer To 1684
A172: 3/21 | B172: 340.00 | C172: 3/21 340.00 Internet Transfer To 1854 3/21 675.12 Internet Transfer To 1684 3/21 800.00 Internet Transfer To 1854 | D172: 40 | E172: 3/21 675.12 Internet Transfer To 1684 3/21 800.00 Internet Transfer To 1854 | F172: 3/21 340.00 Internet Transfer To 1854 | K172: 3/21 | L172: 340 | M172: Internet Transfer To 1854 | O172: 340.00 Internet Transfer To 1854 | P172: Internet Transfer To 1854 | Q172: 3/21 340.00 Internet Transfer To 1854
A173: 3/21 | B173: 675.12 | C173: 3/21 675.12 Internet Transfer To 1684 3/21 800.00 Internet Transfer To 1854 3/21 7,889.65 Internet Transfer To 1854 | D173: 40 | E173: 3/21 800.00 Internet Transfer To 1854 3/21 7,889.65 Internet Transfer To 1854 | F173: 3/21 675.12 Internet Transfer To 1684 | K173: 3/21 | L173: 675.12 | M173: Internet Transfer To 1684 | O173: 675.12 Internet Transfer To 1684 | P173: Internet Transfer To 1684 | Q173: 3/21 675.12 Internet Transfer To 1684
A174: 3/21 | B174: 800.00 | C174: 3/21 800.00 Internet Transfer To 1854 3/21 7,889.65 Internet Transfer To 1854 3/22 100.00 CAPITAL ONE/ONLINE PMT | D174: 40 | E174: 3/21 7,889.65 Internet Transfer To 1854 3/22 100.00 CAPITAL ONE/ONLINE PMT | F174: 3/21 800.00 Internet Transfer To 1854 | K174: 3/21 | L174: 800 | M174: Internet Transfer To 1854 | O174: 800.00 Internet Transfer To 1854 | P174: Internet Transfer To 1854 | Q174: 3/21 800.00 Internet Transfer To 1854
A175: 3/21 | B175: 7,889.65 | C175: 3/21 7,889.65 Internet Transfer To 1854 3/22 100.00 CAPITAL ONE/ONLINE PMT 3X64XRUIOCIIOGS SCOTT BRANDON | D175: 42 | E175: 3/22 100.00 CAPITAL ONE/ONLINE PMT 3X64XRUIOCIIOGS SCOTT BRANDON | F175: 3/21 7,889.65 Internet Transfer To 1854 | K175: 3/21 | L175: 7889.65 | M175: Internet Transfer To 1854 | O175: 7,889.65 Internet Transfer To 1854 | P175: Internet Transfer To 1854 | Q175: 3/21 7,889.65 Internet Transfer To 1854
A176: 3/22 | B176: 16.92 | C176: 3/22 16.92 POS PURCHASE TEMPLETON MARKET TEMPLETON CA 668487 *****8244 03/22 08:48 | D176: 74 | E176: 3/22 08:48 | F176: 3/22 16.92 POS PURCHASE TEMPLETON MARKET TEMPLETON CA 668487 *****8244 0 | K176: 3/22 | L176: 16.92 | M176: POS PURCHASE TEMPLETON MARKET TEMPLETON CA 668487 *****8244 0 | O176: 16.92 POS PURCHASE TEMPLETON MARKET TEMPLETON CA 668487 *****8244 0 | P176: POS PURCHASE TEMPLETON MARKET TEMPLETON CA 668487 *****8244 0 | Q176: 3/22 16.92 POS PURCHASE TEMPLETON MARKET TEMPLETON CA 668487 *****8244 0
A177: 3/22 | B177: 26.99 | C177: 3/22 26.99 POS PURCHASE GOLDEN HIL PASO ROBLES CA 00N1GR *****8244 03/22 11:43 | D177: 70 | E177: 3/22 11:43 | F177: 3/22 26.99 POS PURCHASE GOLDEN HIL PASO ROBLES CA 00N1GR *****8244 0 | K177: 3/22 | L177: 26.99 | M177: POS PURCHASE GOLDEN HIL PASO ROBLES CA 00N1GR *****8244 0 | O177: 26.99 POS PURCHASE GOLDEN HIL PASO ROBLES CA 00N1GR *****8244 0 | P177: POS PURCHASE GOLDEN HIL PASO ROBLES CA 00N1GR *****8244 0 | Q177: 3/22 26.99 POS PURCHASE GOLDEN HIL PASO ROBLES CA 00N1GR *****8244 0
A178: 3/22 | B178: 88.07 | C178: 3/22 88.07 POS PURCHASE Lemos Feed & Pet Supply Paso Robles CA 000100 *****2385 03/21 18:59 | D178: 83 | E178: 3/21 18:59 | F178: 3/22 88.07 POS PURCHASE Lemos Feed & Pet Supply Paso Robles CA 000100 *****2385 0 | K178: 3/22 | L178: 88.07 | M178: POS PURCHASE Lemos Feed & Pet Supply Paso Robles CA 000100 *****2385 0 | O178: 88.07 POS PURCHASE Lemos Feed & Pet Supply Paso Robles CA 000100 *****2385 0 | P178: POS PURCHASE Lemos Feed & Pet Supply Paso Robles CA 000100 *****2385 0 | Q178: 3/22 88.07 POS PURCHASE Lemos Feed & Pet Supply Paso Robles CA 000100 *****2385 0
A179: 3/22 | B179: 44.35 | C179: 3/22 44.35 POS PURCHASE Third Base Market and S Paso Robles CA 679613 *****8244 03/22 07:38 | D179: 83 | E179: 3/22 07:38 | F179: 3/22 44.35 POS PURCHASE Third Base Market and S Paso Robles CA 679613 *****8244 0 | K179: 3/22 | L179: 44.35 | M179: POS PURCHASE Third Base Market and S Paso Robles CA 679613 *****8244 0 | O179: 44.35 POS PURCHASE Third Base Market and S Paso Robles CA 679613 *****8244 0 | P179: POS PURCHASE Third Base Market and S Paso Robles CA 679613 *****8244 0 | Q179: 3/22 44.35 POS PURCHASE Third Base Market and S Paso Robles CA 679613 *****8244 0
A180: 3/22 | B180: 100.00 | C180: 3/22 100.00 CAPITAL ONE/ONLINE PMT 3X64XRUIOCIIOGS SCOTT BRANDON 3/25 27.01 PPB #6601444972 PAYMENT | D180: 24 | E180: E/ONLINE PMT 3X64XRUIOCIIOGS SCOTT BRANDON 3/25 27.01 PPB #6601444972 PAYMENT | F180: 3/22 100.00 CAPITAL ON | K180: 3/22 | L180: 100 | M180: CAPITAL ON | O180: 100.00 CAPITAL ON | P180: CAPITAL ON | Q180: 3/22 100.00 CAPITAL ON
A181: 3/25 | B181: 4.50 | C181: 3/25 4.50 POS PURCHASE GOLDEN HILL 76 PASO ROBLES CA 00N1GR *****8244 03/25 09:40 | D181: 73 | E181: 3/25 09:40 | F181: 3/25 4.50 POS PURCHASE GOLDEN HILL 76 PASO ROBLES CA 00N1GR *****8244 0 | K181: 3/25 | L181: 4.5 | M181: POS PURCHASE GOLDEN HILL 76 PASO ROBLES CA 00N1GR *****8244 0 | O181: 4.50 POS PURCHASE GOLDEN HILL 76 PASO ROBLES CA 00N1GR *****8244 0 | P181: POS PURCHASE GOLDEN HILL 76 PASO ROBLES CA 00N1GR *****8244 0 | Q181: 3/25 4.50 POS PURCHASE GOLDEN HILL 76 PASO ROBLES CA 00N1GR *****8244 0
A182: 3/25 | B182: 11.75 | C182: 3/25 11.75 POS PURCHASE GOLDEN HILL 76 PASO ROBLES CA 00N1GR *****8244 03/24 11:37 | D182: 74 | E182: 3/24 11:37 | F182: 3/25 11.75 POS PURCHASE GOLDEN HILL 76 PASO ROBLES CA 00N1GR *****8244 0 | K182: 3/25 | L182: 11.75 | M182: POS PURCHASE GOLDEN HILL 76 PASO ROBLES CA 00N1GR *****8244 0 | O182: 11.75 POS PURCHASE GOLDEN HILL 76 PASO ROBLES CA 00N1GR *****8244 0 | P182: POS PURCHASE GOLDEN HILL 76 PASO ROBLES CA 00N1GR *****8244 0 | Q182: 3/25 11.75 POS PURCHASE GOLDEN HILL 76 PASO ROBLES CA 00N1GR *****8244 0
A183: 3/25 | B183: 71.42 | C183: 3/25 71.42 POS PURCHASE GROCERY OUTLET OF PASO PASO ROBLES CA 820627 *****2385 03/25 15:22 | D183: 82 | E183: 3/25 15:22 | F183: 3/25 71.42 POS PURCHASE GROCERY OUTLET OF PASO PASO ROBLES CA 820627 *****2385 0 | K183: 3/25 | L183: 71.42 | M183: POS PURCHASE GROCERY OUTLET OF PASO PASO ROBLES CA 820627 *****2385 0 | O183: 71.42 POS PURCHASE GROCERY OUTLET OF PASO PASO ROBLES CA 820627 *****2385 0 | P183: POS PURCHASE GROCERY OUTLET OF PASO PASO ROBLES CA 820627 *****2385 0 | Q183: 3/25 71.42 POS PURCHASE GROCERY OUTLET OF PASO PASO ROBLES CA 820627 *****2385 0
A184: 3/25 | B184: 149.38 | C184: 3/25 149.38 POS PURCHASE FOOD 4 LESS 0012 PASO ROBLES CA 986142 *****2385 03/22 16:32 | D184: 77 | E184: 3/22 16:32 | F184: 3/25 149.38 POS PURCHASE FOOD 4 LESS 0012 PASO ROBLES CA 986142 *****2385 0 | K184: 3/25 | L184: 149.38 | M184: POS PURCHASE FOOD 4 LESS 0012 PASO ROBLES CA 986142 *****2385 0 | O184: 149.38 POS PURCHASE FOOD 4 LESS 0012 PASO ROBLES CA 986142 *****2385 0 | P184: POS PURCHASE FOOD 4 LESS 0012 PASO ROBLES CA 986142 *****2385 0 | Q184: 3/25 149.38 POS PURCHASE FOOD 4 LESS 0012 PASO ROBLES CA 986142 *****2385 0
A185: 3/25 | B185: 8.00 | C185: 3/25 8.00 POS PURCHASE RITE AID 05832 PASO ROBLES CA 549000 *****8244 03/23 13:13 | D185: 73 | E185: 3/23 13:13 | F185: 3/25 8.00 POS PURCHASE RITE AID 05832 PASO ROBLES CA 549000 *****8244 0 | K185: 3/25 | L185: 8 | M185: POS PURCHASE RITE AID 05832 PASO ROBLES CA 549000 *****8244 0 | O185: 8.00 POS PURCHASE RITE AID 05832 PASO ROBLES CA 549000 *****8244 0 | P185: POS PURCHASE RITE AID 05832 PASO ROBLES CA 549000 *****8244 0 | Q185: 3/25 8.00 POS PURCHASE RITE AID 05832 PASO ROBLES CA 549000 *****8244 0
A186: 3/25 | B186: 14.13 | C186: 3/25 14.13 POS PURCHASE JERSEY MIKES 20303 PASO ROBLES CA 000065 *****8244 03/21 00:50 | D186: 78 | E186: 3/21 00:50 | F186: 3/25 14.13 POS PURCHASE JERSEY MIKES 20303 PASO ROBLES CA 000065 *****8244 0 | K186: 3/25 | L186: 14.13 | M186: POS PURCHASE JERSEY MIKES 20303 PASO ROBLES CA 000065 *****8244 0 | O186: 14.13 POS PURCHASE JERSEY MIKES 20303 PASO ROBLES CA 000065 *****8244 0 | P186: POS PURCHASE JERSEY MIKES 20303 PASO ROBLES CA 000065 *****8244 0 | Q186: 3/25 14.13 POS PURCHASE JERSEY MIKES 20303 PASO ROBLES CA 000065 *****8244 0
A187: 3/25 | B187: 18.00 | C187: 3/25 18.00 POS PURCHASE SQ *BROWN BUTTER COOKIE Cayucos CA IN6600 *****8244 03/24 20:20 | D187: 79 | E187: 3/24 20:20 | F187: 3/25 18.00 POS PURCHASE SQ *BROWN BUTTER COOKIE Cayucos CA IN6600 *****8244 0 | K187: 3/25 | L187: 18 | M187: POS PURCHASE SQ *BROWN BUTTER COOKIE Cayucos CA IN6600 *****8244 0 | O187: 18.00 POS PURCHASE SQ *BROWN BUTTER COOKIE Cayucos CA IN6600 *****8244 0 | P187: POS PURCHASE SQ *BROWN BUTTER COOKIE Cayucos CA IN6600 *****8244 0 | Q187: 3/25 18.00 POS PURCHASE SQ *BROWN BUTTER COOKIE Cayucos CA IN6600 *****8244 0
A188: 3/25 | B188: 40.00 | C188: 3/25 40.00 POS PURCHASE Third Base Market and S Paso Robles CA 679613 *****8244 03/25 11:00 | D188: 83 | E188: 3/25 11:00 | F188: 3/25 40.00 POS PURCHASE Third Base Market and S Paso Robles CA 679613 *****8244 0 | K188: 3/25 | L188: 40 | M188: POS PURCHASE Third Base Market and S Paso Robles CA 679613 *****8244 0 | O188: 40.00 POS PURCHASE Third Base Market and S Paso Robles CA 679613 *****8244 0 | P188: POS PURCHASE Third Base Market and S Paso Robles CA 679613 *****8244 0 | Q188: 3/25 40.00 POS PURCHASE Third Base Market and S Paso Robles CA 679613 *****8244 0
A189: 3/25 | B189: 44.35 | C189: 3/25 44.35 POS PURCHASE Third Base Market and S Paso Robles CA 679613 *****8244 03/25 08:44 | D189: 83 | E189: 3/25 08:44 | F189: 3/25 44.35 POS PURCHASE Third Base Market and S Paso Robles CA 679613 *****8244 0 | K189: 3/25 | L189: 44.35 | M189: POS PURCHASE Third Base Market and S Paso Robles CA 679613 *****8244 0 | O189: 44.35 POS PURCHASE Third Base Market and S Paso Robles CA 679613 *****8244 0 | P189: POS PURCHASE Third Base Market and S Paso Robles CA 679613 *****8244 0 | Q189: 3/25 44.35 POS PURCHASE Third Base Market and S Paso Robles CA 679613 *****8244 0
A190: 3/25 | B190: 59.36 | C190: 3/25 59.36 POS PURCHASE Third Base Market and S Paso Robles CA 679613 *****8244 03/23 12:09 | D190: 83 | E190: 3/23 12:09 | F190: 3/25 59.36 POS PURCHASE Third Base Market and S Paso Robles CA 679613 *****8244 0 | K190: 3/25 | L190: 59.36 | M190: POS PURCHASE Third Base Market and S Paso Robles CA 679613 *****8244 0 | O190: 59.36 POS PURCHASE Third Base Market and S Paso Robles CA 679613 *****8244 0 | P190: POS PURCHASE Third Base Market and S Paso Robles CA 679613 *****8244 0 | Q190: 3/25 59.36 POS PURCHASE Third Base Market and S Paso Robles CA 679613 *****8244 0
A191: 3/25 | B191: 278.16 | C191: 3/25 278.16 POS PURCHASE VZWRLSS*BILL PAY VB 800-922-0204 FL INC000 *****2385 03/24 10:18 | D191: 81 | E191: 3/24 10:18 | F191: 3/25 278.16 POS PURCHASE VZWRLSS*BILL PAY VB 800-922-0204 FL INC000 *****2385 0 | K191: 3/25 | L191: 278.16 | M191: POS PURCHASE VZWRLSS*BILL PAY VB 800-922-0204 FL INC000 *****2385 0 | O191: 278.16 POS PURCHASE VZWRLSS*BILL PAY VB 800-922-0204 FL INC000 *****2385 0 | P191: POS PURCHASE VZWRLSS*BILL PAY VB 800-922-0204 FL INC000 *****2385 0 | Q191: 3/25 278.16 POS PURCHASE VZWRLSS*BILL PAY VB 800-922-0204 FL INC000 *****2385 0
A192: 3/25 | B192: 27.01 | C192: 3/25 27.01 PPB #6601444972 PAYMENT 3/27 16.27 Internet Transfer To 1684 3/27 2,800.00 Internet Transfer To 1854 | D192: 37 | E192: 3/27 16.27 Internet Transfer To 1684 3/27 2,800.00 Internet Transfer To 1854 | F192: 3/25 27.01 PPB #6601444972 PAYMENT | K192: 3/25 | L192: 27.01 | M192: PPB #6601444972 PAYMENT | O192: 27.01 PPB #6601444972 PAYMENT | P192: PPB #6601444972 PAYMENT | Q192: 3/25 27.01 PPB #6601444972 PAYMENT
A193: 3/26 | B193: 7.66 | C193: 3/26 7.66 POS PURCHASE TEMPLETON MARKET TEMPLETON CA 668487 *****8244 03/26 09:50 | D193: 73 | E193: 3/26 09:50 | F193: 3/26 7.66 POS PURCHASE TEMPLETON MARKET TEMPLETON CA 668487 *****8244 0 | K193: 3/26 | L193: 7.66 | M193: POS PURCHASE TEMPLETON MARKET TEMPLETON CA 668487 *****8244 0 | O193: 7.66 POS PURCHASE TEMPLETON MARKET TEMPLETON CA 668487 *****8244 0 | P193: POS PURCHASE TEMPLETON MARKET TEMPLETON CA 668487 *****8244 0 | Q193: 3/26 7.66 POS PURCHASE TEMPLETON MARKET TEMPLETON CA 668487 *****8244 0
A194: 3/26 | B194: 22.00 | C194: 3/26 22.00 POS PURCHASE GOLDEN HIL PASO ROBLES CA 00N1GR *****8244 03/25 19:23 | D194: =FIND("/",C194,5) -> 70 | E194: 3/25 19:23 | F194: 3/26 22.00 POS PURCHASE GOLDEN HIL PASO ROBLES CA 00N1GR *****8244 0 | K194: 3/26 | L194: 22 | M194: POS PURCHASE GOLDEN HIL PASO ROBLES CA 00N1GR *****8244 0 | O194: 22.00 POS PURCHASE GOLDEN HIL PASO ROBLES CA 00N1GR *****8244 0 | P194: POS PURCHASE GOLDEN HIL PASO ROBLES CA 00N1GR *****8244 0 | Q194: 3/26 22.00 POS PURCHASE GOLDEN HIL PASO ROBLES CA 00N1GR *****8244 0
A195: 3/26 | B195: 104.68 | C195: 3/26 104.68 POS PURCHASE SMART AND FINAL 939 PASO ROBLES CA 482200 *****8244 03/26 15:15 | D195: 80 | E195: 3/26 15:15 | F195: 3/26 104.68 POS PURCHASE SMART AND FINAL 939 PASO ROBLES CA 482200 *****8244 0 | K195: 3/26 | L195: 104.68 | M195: POS PURCHASE SMART AND FINAL 939 PASO ROBLES CA 482200 *****8244 0 | O195: 104.68 POS PURCHASE SMART AND FINAL 939 PASO ROBLES CA 482200 *****8244 0 | P195: POS PURCHASE SMART AND FINAL 939 PASO ROBLES CA 482200 *****8244 0 | Q195: 3/26 104.68 POS PURCHASE SMART AND FINAL 939 PASO ROBLES CA 482200 *****8244 0
A196: 3/26 | B196: 50.89 | C196: 3/26 50.89 POS PURCHASE Third Base Market and S Paso Robles CA 679613 *****8244 03/26 08:13 | D196: 83 | E196: 3/26 08:13 | F196: 3/26 50.89 POS PURCHASE Third Base Market and S Paso Robles CA 679613 *****8244 0 | K196: 3/26 | L196: 50.89 | M196: POS PURCHASE Third Base Market and S Paso Robles CA 679613 *****8244 0 | O196: 50.89 POS PURCHASE Third Base Market and S Paso Robles CA 679613 *****8244 0 | P196: POS PURCHASE Third Base Market and S Paso Robles CA 679613 *****8244 0 | Q196: 3/26 50.89 POS PURCHASE Third Base Market and S Paso Robles CA 679613 *****8244 0
A197: 3/27 | B197: 23.57 | C197: 3/27 23.57 POS PURCHASE GROCERY OUTLET OF PASO PASO ROBLES CA 820627 *****8244 03/27 13:22 | D197: 82 | E197: 3/27 13:22 | F197: 3/27 23.57 POS PURCHASE GROCERY OUTLET OF PASO PASO ROBLES CA 820627 *****8244 0 | K197: 3/27 | L197: 23.57 | M197: POS PURCHASE GROCERY OUTLET OF PASO PASO ROBLES CA 820627 *****8244 0 | O197: 23.57 POS PURCHASE GROCERY OUTLET OF PASO PASO ROBLES CA 820627 *****8244 0 | P197: POS PURCHASE GROCERY OUTLET OF PASO PASO ROBLES CA 820627 *****8244 0 | Q197: 3/27 23.57 POS PURCHASE GROCERY OUTLET OF PASO PASO ROBLES CA 820627 *****8244 0
A198: 3/27 | B198: 101.99 | C198: 3/27 101.99 POS PURCHASE STAPLES 1385 ATASCADERO CA 081596 *****2385 03/27 09:54 | D198: 72 | E198: 3/27 09:54 | F198: 3/27 101.99 POS PURCHASE STAPLES 1385 ATASCADERO CA 081596 *****2385 0 | K198: 3/27 | L198: 101.99 | M198: POS PURCHASE STAPLES 1385 ATASCADERO CA 081596 *****2385 0 | O198: 101.99 POS PURCHASE STAPLES 1385 ATASCADERO CA 081596 *****2385 0 | P198: POS PURCHASE STAPLES 1385 ATASCADERO CA 081596 *****2385 0 | Q198: 3/27 101.99 POS PURCHASE STAPLES 1385 ATASCADERO CA 081596 *****2385 0
A199: 3/27 | B199: 7.93 | C199: 3/27 7.93 POS PURCHASE BLAKE'S TRUE VALUE PASO ROBLES CA 000045 *****8244 03/26 03:02 | D199: 77 | E199: 3/26 03:02 | F199: 3/27 7.93 POS PURCHASE BLAKE'S TRUE VALUE PASO ROBLES CA 000045 *****8244 0 | K199: 3/27 | L199: 7.93 | M199: POS PURCHASE BLAKE'S TRUE VALUE PASO ROBLES CA 000045 *****8244 0 | O199: 7.93 POS PURCHASE BLAKE'S TRUE VALUE PASO ROBLES CA 000045 *****8244 0 | P199: POS PURCHASE BLAKE'S TRUE VALUE PASO ROBLES CA 000045 *****8244 0 | Q199: 3/27 7.93 POS PURCHASE BLAKE'S TRUE VALUE PASO ROBLES CA 000045 *****8244 0
A200: 3/27 | B200: 40.00 | C200: 3/27 40.00 POS PURCHASE Third Base Market and S Paso Robles CA 679613 *****8244 03/27 11:38 | D200: 83 | E200: 3/27 11:38 | F200: 3/27 40.00 POS PURCHASE Third Base Market and S Paso Robles CA 679613 *****8244 0 | K200: 3/27 | L200: 40 | M200: POS PURCHASE Third Base Market and S Paso Robles CA 679613 *****8244 0 | O200: 40.00 POS PURCHASE Third Base Market and S Paso Robles CA 679613 *****8244 0 | P200: POS PURCHASE Third Base Market and S Paso Robles CA 679613 *****8244 0 | Q200: 3/27 40.00 POS PURCHASE Third Base Market and S Paso Robles CA 679613 *****8244 0
... 561 more rows
